{"text_format":"1","workbook":"xlsx","n_sheets":7,"sheets":["Instructions","Report Calculator (Required)","Report Calculator (Voluntary)","Summary","Lists","Calcs","Zips"],"not_rendered":{"charts":0,"images":6,"macros":1,"external_links":0,"defined_names":1,"comments":0,"pivot_tables":0},"unopened":[],"bounds":{"document_bytes":16777216,"sheet_cells":100000,"rows_first":2000,"rows_last":500,"rows_between":2000,"halvings":0,"cell_chars":16384,"cell_head_chars":4096},"cells_cut":0,"cells_raw":0,"read":"whole","date_system":"1900"}

{"sheet":"Instructions","index":0,"n_rows":54,"n_cols":3,"rows_kept":54,"cut":false,"hidden":false,"merged":[[0,0,0,2]]}
["Please note the following instructions for the best way to complete each part of the tool."]
["Question","Required or Optional","Instructions"]
["What year is this report being filed for?","Required","Please enter the year this report will cover (i.e., 2020)."]
["Under Filer Details:"]
["What is your relationship to the business(es) for whom this Annual Report is being filed? ","Required; only if you want to know your reports filing due date. ","Select the appropriate answer that corresponds to this report from the drop-down list. "]
["Business Name","Optional ","Fill out the business or property title that the report will reflect. "]
["Mailing Address and Zip Code","Required; only if you want to know your Program Specialist's contact information.","Fill out only one address for the report. If the report reflects multiple businesses or a multi-tenant building, only fill in the primary reporting address. If the zip codes differ, consider using the tool for each individual business, as the zip code will supply the name and contact information for your specific Program Specialist. If you do not need this information, consider leaving this part blank. "]
["Phone Number","Optional ","Fill out the main contact number if you would like this for your records. "]
["Contact Person and Title","Optional ","Fill out your name and title."]
["Contact Person Email ","Optional ","Fill out your email address. "]
["If Government Agency, select which: ","Required; only if you are a government agency and want to know your Program Specialist's contact information.","Select the appropriate answer that corresponds to you from the drop-down list. If you are not a government agency, consider leaving this blank or selecting \"none of the above.\""]
["Total number of employees covered by this report:","Optional ","Fill out the number of active employees for all businesses covered in this report. If it is a multi-tenant facility, please complete this to the best of your knowledge for your own records. "]
["Total square feet of building space covered by this report: ","Optional ","Fill out the total area of the one or multiple businesses covered by the report. "]
["Total acreage of green area (landscaped and grassy area) covered by this report: ","Required; only if you want to calculate your yard trim weights. ","Fill out the total acreage of landscaped area only. If you have no green area, consider leaving this blank. "]
["Under COVID-19 Information: "]
["Was your business closed at any point due to the COVID-19 pandemic? ","Required","Select the appropriate answer that corresponds to this report from the drop-down list. "]
["For how many weeks were you closed? ","Required","If you selected \"yes\" for the appove question, please fill out how many weeks you were closed due to the pandemic. "]
["Under Required Recycling Information: "]
["Does your business have Dual Stream or Single Stream recycling?","Required","Select the appropriate answer that corresponds to this report from the drop-down list. "]
["If you selected Single Stream: "]
["Container Size for Single Stream: ","Required","Select the appropriate answer that corresponds to this report from the drop-down list. If you do not see your container size listed and still would like to use the tool, select the closest approximation. If you have this recycling stream baled or collected \"on-call,\" please contact your hauler instead of using this tool, as those weights will be more accurate. "]
["Number of Containers for Single Stream: ","Required","Fill out the number of containers for this specific recycling stream only. "]
["Pickup Frequency for Single Stream: ","Required","Fill out the pickup frequency for this specific recycling stream only, then select from the drop-down the appropriate frequency rate. "]
["For how much of the reporting year was the container above serviced at the selected pickup frequency?","Required","Fill out how much of the reporting year was the container above serviced at the selected frequency for this specific recycling stream only. If this pickup frequency did not change, please fill out \"1 year\" by typing \"1\" and then selecting \"year\" from the drop-down list. "]
["Do you have a different sized Single Stream Container?","Required","Select from the drop-down list if you do or do not have another Single Stream Container to report. "]
["If you selected Dual Stream: "]
["Under Mixed Paper: "]
["Container Size for Mixed Paper:","Required","Select the appropriate answer that corresponds to this report from the drop-down list. If you do not see your container size listed and still would like to use the tool, select the closest approximation. If you have this recycling stream baled or collected \"on-call,\" please contact your hauler instead of using this tool, as those weights will be more accurate. "]
["Number of Containers for Mixed Paper: ","Required","Fill out the number of containers for this specific recycling stream only. "]
["Pickup Frequency for Mixed Paper:","Required","Fill out the pickup frequency for this specific recycling stream only, then select from the drop-down the appropriate frequency rate. "]
["For how much of the reporting year was the container above serviced at the selected pickup frequency?","Required","Fill out how much of the reporting year was the container above serviced at the selected frequency for this specific recycling stream only. If this pickup frequency did not change, please fill out \"1 year\" by typing \"1\" and then selecting \"year\" from the drop-down list. "]
["Do you have a different sized Mixed Paper Container?","Required","Select from the drop-down list if you do or do not have another Mixed Paper Container to report. "]
["Is cardboard collected seperately?","Required","If cardboard is collected separately, select \"yes\" from the drop down menu only if the recycling stream is not baled or compacted. If the carboard is baled or placed in a compactor, please contact your hauler instead of using this tool, as those weights will be more accurate"]
["Container Size for Corrugated Cardboard:","Required","Select the appropriate answer that corresponds to this report from the drop-down list. If you do not see your container size listed and still would like to use the tool, select the closest approximation. If you have this recycling stream baled or collected \"on-call,\" please contact your hauler instead of using this tool, as those weights will be more accurate. "]
["Number of Containers Corrugated Cardboard:","Required","Fill out the number of containers for this specific recycling stream only. "]
["Pickup Frequency Corrugated Cardboard:","Required","Fill out the pickup frequency for this specific recycling stream only, then select from the drop-down the appropriate frequency rate. "]
["For how much of the reporting year was the container above serviced at the selected pickup frequency?","Required","Fill out how much of the reporting year was the container above serviced at the selected frequency for this specific recycling stream only. If this pickup frequency did not change, please fill out \"1 year\" by typing \"1\" and then selecting \"year\" from the drop-down list. "]
["Do you have a different sized Corrugated Cardboard Container?","Required","Select from the drop-down list if you do or do not have another Cardboard Container to report. "]
["Under Commingled Material Recycling: "]
["Container Size for Commingled Materials:","Required","Select the appropriate answer that corresponds to this report from the drop-down list. If you do not see your container size listed and still would like to use the tool, select the closest approximation. If you have this recycling stream baled or collected \"on-call,\" please contact your hauler instead of using this tool, as those weights will be more accurate. "]
["Number of Containers for Commingled Materials:","Required","Fill out the number of containers for this specific recycling stream only. "]
["Pickup Frequency for Commingled Materials:","Required","Fill out the pickup frequency for this specific recycling stream only, then select from the drop-down the appropriate frequency rate. "]
["For how much of the reporting year was the container above serviced at the selected pickup frequency?","Required","Fill out how much of the reporting year was the container above serviced at the selected frequency for this specific recycling stream only. If this pickup frequency did not change, please fill out \"1 year\" by typing \"1\" and then selecting \"year\" from the drop-down list. "]
["Do you have a different sized Commingled Material Container?","Required","Select from the drop-down list if you do or do not have another Commingled Material Container to report. "]
["Under Yard Trim Recycling: "]
["Is your Yard Trim taken away by a hauler or left/mulched on-site?","Required","Select the appropriate answer that corresponds to this report from the drop-down list. If your yard trim is collected by your hauler, select \"hauled away,\" and if it is left on-site and/or composted/mulched, select \"left on-site.\""]
["Total acreage of green area:","Required","This should be filled in based on the reported acreage from the Filer Details section. If you selected \"left on-site,\" then this is all the information you need to provide. "]
["Frequency of Yard Trim collection: ","Required","If you selected \"hauled away,\" then please fill out the pickup frequency for yard trim only, then select from the drop-down the appropriate frequency rate. "]
["Under Trash Collection: "]
["Container Size for Trash:","Required","Select the appropriate answer that corresponds to this report from the drop-down list. If you do not see your container size listed and still would like to use the tool, select the closest approximation. If you have this recycling stream baled or collected \"on-call,\" please contact your hauler instead of using this tool, as those weights will be more accurate. "]
["Number of Containers for Trash:","Required","Fill out the number of containers for this specific recycling stream only. "]
["Pickup Frequency for Trash: ","Required","Fill out the pickup frequency for this specific recycling stream only, then select from the drop-down the appropriate frequency rate. "]
["For how much of the reporting year was the container above serviced at the selected pickup frequency?","Required","Fill out how much of the reporting year was the container above serviced at the selected frequency for this specific recycling stream only. If this pickup frequency did not change, please fill out \"1 year\" by typing \"1\" and then selecting \"year\" from the drop-down list. "]
["Do you have a different sized Trash Container?","Required","Select from the drop-down list if you do or do not have another Trash Container to report. "]

{"sheet":"Report Calculator (Required)","index":1,"n_rows":497,"n_cols":11,"rows_kept":497,"cut":false,"hidden":false,"merged":[[452,1,452,2],[454,1,454,2],[456,1,456,2],[471,1,471,2],[473,1,473,2],[475,1,475,2],[399,1,399,2],[91,1,91,2],[106,1,106,2],[108,1,108,2],[110,1,110,2],[296,1,296,2],[298,1,298,2],[300,1,300,2],[277,1,277,2],[279,1,279,2],[281,1,281,2],[258,1,258,2],[260,1,260,2],[262,1,262,2],[239,1,239,2],[241,1,241,2],[243,1,243,2],[220,1,220,2],[222,1,222,2],[224,1,224,2],[210,1,210,2],[229,1,229,2],[248,1,248,2],[267,1,267,2],[286,1,286,2],[22,1,22,2],[49,1,49,2],[51,1,51,2],[53,1,53,2],[68,1,68,2],[70,1,70,2],[72,1,72,2],[87,1,87,2],[89,1,89,2],[214,1,214,2],[216,1,216,2],[218,1,218,2],[227,1,227,2],[228,1,228,2],[231,1,231,2],[235,1,235,2],[237,1,237,2],[478,1,478,2],[479,1,479,2],[461,1,461,2],[463,1,463,2],[465,1,465,2],[467,1,467,2],[469,1,469,2],[459,1,459,2],[460,1,460,2],[492,1,492,2],[494,1,494,2],[498,1,498,2],[500,1,500,2],[490,1,490,2],[480,1,480,2],[482,1,482,2],[484,1,484,2],[486,1,486,2],[488,1,488,2],[446,1,446,2],[448,1,448,2],[450,1,450,2],[440,1,440,2],[441,1,441,2],[406,1,406,2],[408,1,408,2],[410,1,410,2],[412,1,412,2],[421,1,421,2],[422,1,422,2],[431,1,431,2],[423,1,423,2],[425,1,425,2],[427,1,427,2],[429,1,429,2],[442,1,442,2],[444,1,444,2],[414,1,414,2],[416,1,416,2],[418,1,418,2],[433,1,433,2],[435,1,435,2],[437,1,437,2],[395,1,395,2],[385,1,385,2],[387,1,387,2],[389,1,389,2],[391,1,391,2],[393,1,393,2],[376,1,376,2],[379,1,379,2],[380,1,380,2],[381,1,381,2],[383,1,383,2],[366,1,366,2],[368,1,368,2],[370,1,370,2],[372,1,372,2],[374,1,374,2],[364,1,364,2],[347,1,347,2],[349,1,349,2],[351,1,351,2],[353,1,353,2],[355,1,355,2],[338,1,338,2],[341,1,341,2],[342,1,342,2],[343,1,343,2],[345,1,345,2],[357,1,357,2],[360,1,360,2],[361,1,361,2],[362,1,362,2],[328,1,328,2],[330,1,330,2],[332,1,332,2],[334,1,334,2],[336,1,336,2],[307,1,307,2],[323,1,323,2],[324,1,324,2],[326,1,326,2],[246,1,246,2],[247,1,247,2],[250,1,250,2],[252,1,252,2],[254,1,254,2],[256,1,256,2],[309,1,309,2],[322,1,322,2],[311,1,311,2],[305,1,305,2],[294,1,294,2],[284,1,284,2],[285,1,285,2],[288,1,288,2],[290,1,290,2],[292,1,292,2],[275,1,275,2],[265,1,265,2],[266,1,266,2],[269,1,269,2],[271,1,271,2],[273,1,273,2],[203,1,203,2],[205,1,205,2],[24,1,24,2],[26,1,26,2],[28,1,28,2],[30,1,30,2],[56,1,56,2],[57,1,57,2],[58,1,58,2],[64,1,64,2],[66,1,66,2],[193,1,193,2],[195,1,195,2],[197,1,197,2],[199,1,199,2],[201,1,201,2],[184,1,184,2],[186,1,186,2],[190,1,190,2],[191,1,191,2],[174,1,174,2],[176,1,176,2],[178,1,178,2],[180,1,180,2],[167,1,167,2],[170,1,170,2],[171,1,171,2],[172,1,172,2],[16,1,16,2],[0,1,0,2],[3,1,3,2],[2,1,2,2],[4,1,4,2],[5,1,5,2],[7,1,7,2],[8,1,8,2],[9,1,9,2],[10,1,10,2],[11,1,11,2],[12,1,12,2],[13,1,13,2],[14,1,14,2],[15,1,15,2],[1,0,1,2],[17,1,17,2],[18,1,18,2],[34,1,34,2],[32,1,32,2],[189,1,189,2],[19,1,19,2],[20,1,20,2],[113,1,113,2],[37,1,37,2],[38,1,38,2],[39,1,39,2],[41,1,41,2],[75,1,75,2],[76,1,76,2],[77,1,77,2],[79,1,79,2],[81,1,81,2],[43,1,43,2],[45,1,45,2],[47,1,47,2],[104,1,104,2],[95,1,95,2],[96,1,96,2],[98,1,98,2],[100,1,100,2],[102,1,102,2],[182,1,182,2],[165,1,165,2],[208,1,208,2],[209,1,209,2],[212,1,212,2],[303,1,303,2],[304,1,304,2],[121,1,121,2],[119,1,119,2],[132,1,132,2],[133,1,133,2],[134,1,134,2],[136,1,136,2],[140,1,140,2],[142,1,142,2],[144,1,144,2],[155,1,155,2],[157,1,157,2],[159,1,159,2],[161,1,161,2],[163,1,163,2],[146,1,146,2],[148,1,148,2],[151,1,151,2],[152,1,152,2],[153,1,153,2],[0,3,0,8],[398,1,398,2],[400,1,400,2],[402,1,402,2],[403,1,403,2],[404,1,404,2],[313,1,313,2],[315,1,315,2],[60,1,60,2],[62,1,62,2],[125,1,125,2],[127,1,127,2],[129,1,129,2],[123,1,123,2],[114,1,114,2],[83,1,83,2],[85,1,85,2],[94,1,94,2],[117,1,117,2],[138,1,138,2],[317,1,317,2],[319,1,319,2],[233,1,233,2],[115,1,115,2]]}
[null,null,null,"Please note the following instructions:\n1. Click \"Enable Content\" if prompted by Excel, otherwise this form will not function.\n2. Please fill out all relevant fields to best calculate recycling weights.\n3. Limit entries to one (1) business site per form for best results.\n4. One form can accommodate a maximum of five (5) different container types per waste stream.\n5. Refrain from including \"On-Call\" waste streams--please obtain this data directly from collectors/haulers.\n6. If you have any questions about how to fill out the form, please review the provided instruction sheet. "]
["Annual Recycling Report Completion Tool"]
["What year is this report being filed for?"]
["Filer Details"]
["What is your relationship to the business(es) for whom this Annual Report is being filed? "]
["Business Name"]
["Mailing Address and Zip Code"]
["Phone Number"]
["Contact Person and Title"]
["Contact Person Email "]
["If Government Agency, select which: "]
["Total number of employees covered by this report:"]
["Total square feet of building space covered by this report: "]
["Total acreage of green area (landscaped and grassy area) covered by this report: "]
["COVID-19 Information"]
["Was your business closed at any point due to the COVID-19 pandemic? "]
["For how many weeks were you closed? "]
["Required Recycling Information",null,null,null,null,null,null,null,null,null," "]
["Does your business have Dual Stream or Single Stream recycling?"]
["Container Size for Single Stream: "]
["Number of Containers for Single Stream: "]
["Pickup Frequency for Single Stream: "]
["Number of Containers for Single Stream: "]
["Pickup Frequency for Single Stream: "]
["Number of Containers for Single Stream: "]
["Pickup Frequency for Single Stream: "]
["Number of Containers for Single Stream: "]
["Pickup Frequency for Single Stream: "]
["Number of Containers for Single Stream: "]
["Pickup Frequency for Single Stream: "]
["Number of Containers for Single Stream: "]
["Pickup Frequency for Single Stream: "]
["Number of Containers for Single Stream: "]
["Pickup Frequency for Single Stream: "]
["Number of Containers for Single Stream: "]
["Pickup Frequency for Single Stream: "]
["For how much of the reporting year was the container above serviced at the selected pickup frequency?"]
["Do you have a different sized Single Stream Container?",null,null,null,null,null,null," "]
["Container Size for Single Stream: "]
["Number of Containers for Single Stream: "]
["Pickup Frequency for Single Stream: "]
["Number of Containers for Single Stream: "]
["Pickup Frequency for Single Stream: "]
["Number of Containers for Single Stream: "]
["Pickup Frequency for Single Stream: "]
["Number of Containers for Single Stream: "]
["Pickup Frequency for Single Stream: "]
["Number of Containers for Single Stream: "]
["Pickup Frequency for Single Stream: "]
["Number of Containers for Single Stream: "]
["Pickup Frequency for Single Stream: "]
["Number of Containers for Single Stream: "]
["Pickup Frequency for Single Stream: "]
["Number of Containers for Single Stream: "]
["Pickup Frequency for Single Stream: "]
["For how much of the reporting year was the container above serviced at the selected pickup frequency?"]
["Do you have a different sized Single Stream Container?"]
["Container Size for Single Stream: "]
["Number of Containers for Single Stream: "]
["Pickup Frequency for Single Stream: "]
["Number of Containers for Single Stream: "]
["Pickup Frequency for Single Stream: "]
["Number of Containers for Single Stream: "]
["Pickup Frequency for Single Stream: "]
["Number of Containers for Single Stream: "]
["Pickup Frequency for Single Stream: "]
["Number of Containers for Single Stream: "]
["Pickup Frequency for Single Stream: "]
["Number of Containers for Single Stream: "]
["Pickup Frequency for Single Stream: "]
["Number of Containers for Single Stream: "]
["Pickup Frequency for Single Stream: "]
["Number of Containers for Single Stream: "]
["Pickup Frequency for Single Stream: "]
["For how much of the reporting year was the container above serviced at the selected pickup frequency?"]
["Do you have a different sized Single Stream Container?"]
["Container Size for Single Stream: "]
["Number of Containers for Single Stream: "]
["Pickup Frequency for Single Stream: "]
["Number of Containers for Single Stream: "]
["Pickup Frequency for Single Stream: "]
["Number of Containers for Single Stream: "]
["Pickup Frequency for Single Stream: "]
["Number of Containers for Single Stream: "]
["Pickup Frequency for Single Stream: "]
["Number of Containers for Single Stream: "]
["Pickup Frequency for Single Stream: "]
["Number of Containers for Single Stream: "]
["Pickup Frequency for Single Stream: "]
["Number of Containers for Single Stream: "]
["Pickup Frequency for Single Stream: "]
["Number of Containers for Single Stream: "]
["Pickup Frequency for Single Stream: "]
["For how much of the reporting year was the container above serviced at the selected pickup frequency?"]
["Do you have a different sized Single Stream Container?"]
["Container Size for Single Stream: "]
["Number of Containers for Single Stream: "]
["Pickup Frequency for Single Stream: "]
["Number of Containers for Single Stream: "]
["Pickup Frequency for Single Stream: "]
["Number of Containers for Single Stream: "]
["Pickup Frequency for Single Stream: "]
["Number of Containers for Single Stream: "]
["Pickup Frequency for Single Stream: "]
["Number of Containers for Single Stream: "]
["Pickup Frequency for Single Stream: "]
["Number of Containers for Single Stream: "]
["Pickup Frequency for Single Stream: "]
["Number of Containers for Single Stream: "]
["Pickup Frequency for Single Stream: "]
["Number of Containers for Single Stream: "]
["Pickup Frequency for Single Stream: "]
["For how much of the reporting year was the container above serviced at the selected pickup frequency?"]
["Mixed Paper Recycling"]
["Container Size for Mixed Paper:"]
["Number of Containers for Mixed Paper: "]
["Pickup Frequency for Mixed Paper:",2,"/week"]
["Number of Containers for Mixed Paper: "]
["Pickup Frequency for Mixed Paper:"]
["Number of Containers for Mixed Paper: "]
["Pickup Frequency for Mixed Paper:"]
["Number of Containers for Mixed Paper: "]
["Pickup Frequency for Mixed Paper:"]
["Number of Containers for Mixed Paper: "]
["Pickup Frequency for Mixed Paper:"]
["Number of Containers for Mixed Paper: "]
["Pickup Frequency for Mixed Paper:"]
["Number of Containers for Mixed Paper: "]
["Pickup Frequency for Mixed Paper:"]
["Number of Containers for Mixed Paper: "]
["Pickup Frequency for Mixed Paper:"]
["For how much of the reporting year was the container above serviced at the selected pickup frequency?",1,"year"]
["Do you have a different sized Mixed Paper Container?","No"]
["Container Size for Mixed Paper:"]
["Number of Containers for Mixed Paper: "]
["Pickup Frequency for Mixed Paper:",1,"/week"]
["Number of Containers for Mixed Paper: "]
["Pickup Frequency for Mixed Paper:"]
["Number of Containers for Mixed Paper: "]
["Pickup Frequency for Mixed Paper:"]
["Number of Containers for Mixed Paper: "]
["Pickup Frequency for Mixed Paper:"]
["Number of Containers for Mixed Paper: "]
["Pickup Frequency for Mixed Paper:"]
["Number of Containers for Mixed Paper: "]
["Pickup Frequency for Mixed Paper:"]
["Number of Containers for Mixed Paper: "]
["Pickup Frequency for Mixed Paper:"]
["Number of Containers for Mixed Paper: "]
["Pickup Frequency for Mixed Paper:"]
["For how much of the reporting year was the container above serviced at the selected pickup frequency?",22,"weeks"]
["Do you have a different sized Mixed Paper Container?"]
["Container Size for Mixed Paper:"]
["Number of Containers for Mixed Paper: "]
["Pickup Frequency for Mixed Paper:"]
["Number of Containers for Mixed Paper: "]
["Pickup Frequency for Mixed Paper:"]
["Number of Containers for Mixed Paper: "]
["Pickup Frequency for Mixed Paper:"]
["Number of Containers for Mixed Paper: "]
["Pickup Frequency for Mixed Paper:"]
["Number of Containers for Mixed Paper: "]
["Pickup Frequency for Mixed Paper:"]
["Number of Containers for Mixed Paper: "]
["Pickup Frequency for Mixed Paper:"]
["Number of Containers for Mixed Paper: "]
["Pickup Frequency for Mixed Paper:"]
["Number of Containers for Mixed Paper: "]
["Pickup Frequency for Mixed Paper:"]
["For how much of the reporting year was the container above serviced at the selected pickup frequency?"]
["Do you have a different sized Mixed Paper Container?"]
["Container Size for Mixed Paper:"]
["Number of Containers for Mixed Paper: "]
["Pickup Frequency for Mixed Paper:"]
["Number of Containers for Mixed Paper: "]
["Pickup Frequency for Mixed Paper:"]
["Number of Containers for Mixed Paper: "]
["Pickup Frequency for Mixed Paper:"]
["Number of Containers for Mixed Paper: "]
["Pickup Frequency for Mixed Paper:"]
["Number of Containers for Mixed Paper: "]
["Pickup Frequency for Mixed Paper:"]
["Number of Containers for Mixed Paper: "]
["Pickup Frequency for Mixed Paper:"]
["Number of Containers for Mixed Paper: "]
["Pickup Frequency for Mixed Paper:"]
["Number of Containers for Mixed Paper: "]
["Pickup Frequency for Mixed Paper:"]
["For how much of the reporting year was the container above serviced at the selected pickup frequency?"]
["Do you have a different sized Mixed Paper Container?"]
["Container Size for Mixed Paper:"]
["Number of Containers for Mixed Paper: "]
["Pickup Frequency for Mixed Paper:"]
["Number of Containers for Mixed Paper: "]
["Pickup Frequency for Mixed Paper:"]
["Number of Containers for Mixed Paper: "]
["Pickup Frequency for Mixed Paper:"]
["Number of Containers for Mixed Paper: "]
["Pickup Frequency for Mixed Paper:"]
["Number of Containers for Mixed Paper: "]
["Pickup Frequency for Mixed Paper:"]
["Number of Containers for Mixed Paper: "]
["Pickup Frequency for Mixed Paper:"]
["Number of Containers for Mixed Paper: "]
["Pickup Frequency for Mixed Paper:"]
["Number of Containers for Mixed Paper: "]
["Pickup Frequency for Mixed Paper:"]
["For how much of the reporting year was the container above serviced at the selected pickup frequency?"]
["Is cardboard collected seperately?"]
["Container Size for Corrugated Cardboard:"]
["Number of Containers Corrugated Cardboard:"]
["Pickup Frequency Corrugated Cardboard:"]
["Number of Containers Corrugated Cardboard:"]
["Pickup Frequency Corrugated Cardboard:"]
["Number of Containers Corrugated Cardboard:"]
["Pickup Frequency Corrugated Cardboard:"]
["Number of Containers Corrugated Cardboard:"]
["Pickup Frequency Corrugated Cardboard:"]
["Number of Containers Corrugated Cardboard:"]
["Pickup Frequency Corrugated Cardboard:"]
["Number of Containers Corrugated Cardboard:"]
["Pickup Frequency Corrugated Cardboard:"]
["Number of Containers Corrugated Cardboard:"]
["Pickup Frequency Corrugated Cardboard:"]
["Number of Containers Corrugated Cardboard:"]
["Pickup Frequency Corrugated Cardboard:"]
["For how much of the reporting year was the container above serviced at the selected pickup frequency?"]
["Do you have a different sized Corrugated Cardboard Container?"]
["Container Size for Corrugated Cardboard:"]
["Number of Containers Corrugated Cardboard:"]
["Pickup Frequency Corrugated Cardboard:"]
["Number of Containers Corrugated Cardboard:"]
["Pickup Frequency Corrugated Cardboard:"]
["Number of Containers Corrugated Cardboard:"]
["Pickup Frequency Corrugated Cardboard:"]
["Number of Containers Corrugated Cardboard:"]
["Pickup Frequency Corrugated Cardboard:"]
["Number of Containers Corrugated Cardboard:"]
["Pickup Frequency Corrugated Cardboard:"]
["Number of Containers Corrugated Cardboard:"]
["Pickup Frequency Corrugated Cardboard:"]
["Number of Containers Corrugated Cardboard:"]
["Pickup Frequency Corrugated Cardboard:"]
["Number of Containers Corrugated Cardboard:"]
["Pickup Frequency Corrugated Cardboard:"]
["For how much of the reporting year was the container above serviced at the selected pickup frequency?"]
["Do you have a different sized Corrugated Cardboard Container?"]
["Container Size for Corrugated Cardboard:"]
["Number of Containers Corrugated Cardboard:"]
["Pickup Frequency Corrugated Cardboard:"]
["Number of Containers Corrugated Cardboard:"]
["Pickup Frequency Corrugated Cardboard:"]
["Number of Containers Corrugated Cardboard:"]
["Pickup Frequency Corrugated Cardboard:"]
["Number of Containers Corrugated Cardboard:"]
["Pickup Frequency Corrugated Cardboard:"]
["Number of Containers Corrugated Cardboard:"]
["Pickup Frequency Corrugated Cardboard:"]
["Number of Containers Corrugated Cardboard:"]
["Pickup Frequency Corrugated Cardboard:"]
["Number of Containers Corrugated Cardboard:"]
["Pickup Frequency Corrugated Cardboard:"]
["Number of Containers Corrugated Cardboard:"]
["Pickup Frequency Corrugated Cardboard:"]
["For how much of the reporting year was the container above serviced at the selected pickup frequency?"]
["Do you have a different sized Corrugated Cardboard Container?"]
["Container Size for Corrugated Cardboard:"]
["Number of Containers Corrugated Cardboard:"]
["Pickup Frequency Corrugated Cardboard:"]
["Number of Containers Corrugated Cardboard:"]
["Pickup Frequency Corrugated Cardboard:"]
["Number of Containers Corrugated Cardboard:"]
["Pickup Frequency Corrugated Cardboard:"]
["Number of Containers Corrugated Cardboard:"]
["Pickup Frequency Corrugated Cardboard:"]
["Number of Containers Corrugated Cardboard:"]
["Pickup Frequency Corrugated Cardboard:"]
["Number of Containers Corrugated Cardboard:"]
["Pickup Frequency Corrugated Cardboard:"]
["Number of Containers Corrugated Cardboard:"]
["Pickup Frequency Corrugated Cardboard:"]
["Number of Containers Corrugated Cardboard:"]
["Pickup Frequency Corrugated Cardboard:"]
["For how much of the reporting year was the container above serviced at the selected pickup frequency?"]
["Do you have a different sized Corrugated Cardboard Container?"]
["Container Size for Corrugated Cardboard:"]
["Number of Containers Corrugated Cardboard:"]
["Pickup Frequency Corrugated Cardboard:"]
["Number of Containers Corrugated Cardboard:"]
["Pickup Frequency Corrugated Cardboard:"]
["Number of Containers Corrugated Cardboard:"]
["Pickup Frequency Corrugated Cardboard:"]
["Number of Containers Corrugated Cardboard:"]
["Pickup Frequency Corrugated Cardboard:"]
["Number of Containers Corrugated Cardboard:"]
["Pickup Frequency Corrugated Cardboard:"]
["Number of Containers Corrugated Cardboard:"]
["Pickup Frequency Corrugated Cardboard:"]
["Number of Containers Corrugated Cardboard:"]
["Pickup Frequency Corrugated Cardboard:"]
["Number of Containers Corrugated Cardboard:"]
["Pickup Frequency Corrugated Cardboard:"]
["For how much of the reporting year was the container above serviced at the selected pickup frequency?"]
["Commingled Material Recycling"]
["Container Size for Commingled Materials:"]
["Number of Containers for Commingled Materials:"]
["Pickup Frequency for Commingled Materials:"]
["Number of Containers for Commingled Materials:"]
["Pickup Frequency for Commingled Materials:"]
["Number of Containers for Commingled Materials:"]
["Pickup Frequency for Commingled Materials:"]
["Number of Containers for Commingled Materials:"]
["Pickup Frequency for Commingled Materials:"]
["Number of Containers for Commingled Materials:"]
["Pickup Frequency for Commingled Materials:"]
["Number of Containers for Commingled Materials:"]
["Pickup Frequency for Commingled Materials:"]
["Number of Containers for Commingled Materials:"]
["Pickup Frequency for Commingled Materials:"]
["Number of Containers for Commingled Materials:"]
["Pickup Frequency for Commingled Materials:"]
["For how much of the reporting year was the container above serviced at the selected pickup frequency?"]
["Do you have a different sized Commingled Material Container?"]
["Container Size for Commingled Materials:"]
["Number of Containers for Commingled Materials:"]
["Pickup Frequency for Commingled Materials:"]
["Number of Containers for Commingled Materials:"]
["Pickup Frequency for Commingled Materials:"]
["Number of Containers for Commingled Materials:"]
["Pickup Frequency for Commingled Materials:"]
["Number of Containers for Commingled Materials:"]
["Pickup Frequency for Commingled Materials:"]
["Number of Containers for Commingled Materials:"]
["Pickup Frequency for Commingled Materials:"]
["Number of Containers for Commingled Materials:"]
["Pickup Frequency for Commingled Materials:"]
["Number of Containers for Commingled Materials:"]
["Pickup Frequency for Commingled Materials:"]
["Number of Containers for Commingled Materials:"]
["Pickup Frequency for Commingled Materials:"]
["For how much of the reporting year was the container above serviced at the selected pickup frequency?"]
["Do you have a different sized Commingled Material Container?"]
["Container Size for Commingled Materials:"]
["Number of Containers for Commingled Materials:"]
["Pickup Frequency for Commingled Materials:"]
["Number of Containers for Commingled Materials:"]
["Pickup Frequency for Commingled Materials:"]
["Number of Containers for Commingled Materials:"]
["Pickup Frequency for Commingled Materials:"]
["Number of Containers for Commingled Materials:"]
["Pickup Frequency for Commingled Materials:"]
["Number of Containers for Commingled Materials:"]
["Pickup Frequency for Commingled Materials:"]
["Number of Containers for Commingled Materials:"]
["Pickup Frequency for Commingled Materials:"]
["Number of Containers for Commingled Materials:"]
["Pickup Frequency for Commingled Materials:"]
["Number of Containers for Commingled Materials:"]
["Pickup Frequency for Commingled Materials:"]
["For how much of the reporting year was the container above serviced at the selected pickup frequency?"]
["Do you have a different sized Commingled Material Container?"]
["Container Size for Commingled Materials:"]
["Number of Containers for Commingled Materials:"]
["Pickup Frequency for Commingled Materials:"]
["Number of Containers for Commingled Materials:"]
["Pickup Frequency for Commingled Materials:"]
["Number of Containers for Commingled Materials:"]
["Pickup Frequency for Commingled Materials:"]
["Number of Containers for Commingled Materials:"]
["Pickup Frequency for Commingled Materials:"]
["Number of Containers for Commingled Materials:"]
["Pickup Frequency for Commingled Materials:"]
["Number of Containers for Commingled Materials:"]
["Pickup Frequency for Commingled Materials:"]
["Number of Containers for Commingled Materials:"]
["Pickup Frequency for Commingled Materials:"]
["Number of Containers for Commingled Materials:"]
["Pickup Frequency for Commingled Materials:"]
["For how much of the reporting year was the container above serviced at the selected pickup frequency?"]
["Do you have a different sized Commingled Material Container?"]
["Container Size for Commingled Materials:"]
["Number of Containers for Commingled Materials:"]
["Pickup Frequency for Commingled Materials:"]
["Number of Containers for Commingled Materials:"]
["Pickup Frequency for Commingled Materials:"]
["Number of Containers for Commingled Materials:"]
["Pickup Frequency for Commingled Materials:"]
["Number of Containers for Commingled Materials:"]
["Pickup Frequency for Commingled Materials:"]
["Number of Containers for Commingled Materials:"]
["Pickup Frequency for Commingled Materials:"]
["Number of Containers for Commingled Materials:"]
["Pickup Frequency for Commingled Materials:"]
["Number of Containers for Commingled Materials:"]
["Pickup Frequency for Commingled Materials:"]
["Number of Containers for Commingled Materials:"]
["Pickup Frequency for Commingled Materials:"]
["For how much of the reporting year was the container above serviced at the selected pickup frequency?"]
["Yard Trim Recycling"]
["Is your Yard Trim taken away by a hauler or left/mulched on-site?"]
["Total acreage of green area:",{"$f":"IF(B400=0,\"\",B14)","v":""}]
["Frequency of Yard Trim collection: "]
["Trash Collection"]
["Container Size for Trash:"]
["Number of Containers for Trash:"]
["Pickup Frequency for Trash: "]
["Number of Containers for Trash:"]
["Pickup Frequency for Trash: "]
["Number of Containers for Trash:"]
["Pickup Frequency for Trash: "]
["Number of Containers for Trash:"]
["Pickup Frequency for Trash: "]
["Number of Containers for Trash:"]
["Pickup Frequency for Trash: "]
["Number of Containers for Trash:"]
["Pickup Frequency for Trash: "]
["Number of Containers for Trash:"]
["Pickup Frequency for Trash: "]
["Number of Containers for Trash:"]
["Pickup Frequency for Trash: "]
["For how much of the reporting year was the container above serviced at the selected pickup frequency?"]
["Do you have a different sized Trash Container?"]
["Container Size for Trash:"]
["Number of Containers for Trash:"]
["Pickup Frequency for Trash: "]
["Number of Containers for Trash:"]
["Pickup Frequency for Trash: "]
["Number of Containers for Trash:"]
["Pickup Frequency for Trash: "]
["Number of Containers for Trash:"]
["Pickup Frequency for Trash: "]
["Number of Containers for Trash:"]
["Pickup Frequency for Trash: "]
["Number of Containers for Trash:"]
["Pickup Frequency for Trash: "]
["Number of Containers for Trash:"]
["Pickup Frequency for Trash: "]
["Number of Containers for Trash:"]
["Pickup Frequency for Trash: "]
["For how much of the reporting year was the container above serviced at the selected pickup frequency?"]
["Do you have a different sized Trash Container?"]
["Container Size for Trash:"]
["Number of Containers for Trash:"]
["Pickup Frequency for Trash: "]
["Number of Containers for Trash:"]
["Pickup Frequency for Trash: "]
["Number of Containers for Trash:"]
["Pickup Frequency for Trash: "]
["Number of Containers for Trash:"]
["Pickup Frequency for Trash: "]
["Number of Containers for Trash:"]
["Pickup Frequency for Trash: "]
["Number of Containers for Trash:"]
["Pickup Frequency for Trash: "]
["Number of Containers for Trash:"]
["Pickup Frequency for Trash: "]
["Number of Containers for Trash:"]
["Pickup Frequency for Trash: "]
["For how much of the reporting year was the container above serviced at the selected pickup frequency?"]
["Do you have a different sized Trash Container?"]
["Container Size for Trash:"]
["Number of Containers for Trash:"]
["Pickup Frequency for Trash: "]
["Number of Containers for Trash:"]
["Pickup Frequency for Trash: "]
["Number of Containers for Trash:"]
["Pickup Frequency for Trash: "]
["Number of Containers for Trash:"]
["Pickup Frequency for Trash: "]
["Number of Containers for Trash:"]
["Pickup Frequency for Trash: "]
["Number of Containers for Trash:"]
["Pickup Frequency for Trash: "]
["Number of Containers for Trash:"]
["Pickup Frequency for Trash: "]
["Number of Containers for Trash:"]
["Pickup Frequency for Trash: "]
["For how much of the reporting year was the container above serviced at the selected pickup frequency?"]
["Do you have a different sized Trash Container?"]
["Container Size for Trash:"]
["Number of Containers for Trash:"]
["Pickup Frequency for Trash: "]
["Number of Containers for Trash:"]
["Pickup Frequency for Trash: "]
["Number of Containers for Trash:"]
["Pickup Frequency for Trash: "]
["Number of Containers for Trash:"]
["Pickup Frequency for Trash: "]
["Number of Containers for Trash:"]
["Pickup Frequency for Trash: "]
["Number of Containers for Trash:"]
["Pickup Frequency for Trash: "]
["Number of Containers for Trash:"]
["Pickup Frequency for Trash: "]
["Number of Containers for Trash:"]
["Pickup Frequency for Trash: "]
["For how much of the reporting year was the container above serviced at the selected pickup frequency?"]

{"sheet":"Report Calculator (Voluntary)","index":2,"n_rows":91,"n_cols":4,"rows_kept":91,"cut":false,"hidden":false,"merged":[[32,0,32,2],[0,3,0,8],[1,0,1,2],[0,0,0,1],[3,0,3,2],[7,0,7,2],[20,0,20,2],[27,0,27,2],[24,0,24,2],[4,0,4,2],[15,0,15,2],[19,0,19,2],[81,0,81,2],[33,0,33,2],[36,0,36,2],[38,0,38,2],[54,0,54,2],[46,0,46,2],[70,0,70,2],[74,0,74,2],[77,0,77,2],[61,0,61,2],[63,0,63,2],[66,0,66,2],[69,0,69,2]]}
[null,null,null,"Please note the following instructions:\n1. Click \"Enable Content\" if prompted by Excel, otherwise this form will not function.\n2. All quantities for each voluntary material must be for the entire year.\n3. Please fill out all relevant fields to best calculate recycling weights.\n4. Limit entries to one (1) business site per form for best results.\n5. Refrain from including \"On-Call\" waste streams--please obtain this data directly from collectors/haulers.\n"]
["Annual Recycling Report Completion Tool"]
["Recyclable Material","Unit","Number"]
["Computers & Electronic Equipment",null,true]
["Computers"]
["     Desktop","one"]
["     Laptop","one"]
["Peripheral Devices"]
["     CRT Monitor - 15\"","one"]
["     CRT Monitor - 17\"","one"]
["     CRT Monitor - 21\"","one"]
["     Flat Panel Monitor","one"]
["     Printer","one"]
["     Mouse","one"]
["     Keyboard","one"]
["Other"]
["     Television","one"]
["     Cell Phone","one"]
["     Toner Cartridge","one"]
["Automotive",null,true]
["Tires"]
["     Passenger/Light Truck","one"]
["     Bus","one"]
["     Commercial/Heavy Truck","one"]
["Battery"]
["     Passenger/Light Truck","one"]
["     Commercial/Heavy Truck","one"]
["Fluids"]
["     Antifreeze",{"$f":"IF(J30=0,\"--Select--\")","v":"--Select--"}]
["     Used Motor Oil","--Select--"]
["     Oil Filters - Not Crushed","--Select--"]
["     Oil Filters - Crushed","drum"]
["Construction / Demolition",null,true]
["Roofing"]
["     Composite Roofing","cubic yard"]
["     Asphalt Roofing","cubic yard"]
["Wood"]
["     Miscenaleous Lumber","cubic yard"]
["Other"]
["     Concrete","cubic yard"]
["     Asphalt Paving","cubic yard"]
["     Gypsum Board (Drywall)","cubic yard"]
["     Aggregate","cubic yard"]
["     Dirt & Sand","cubic yard"]
["     Remainder/Composite C&D Debris","cubic yard"]
["     Light Bulbs - 4 foot","one"]
["Wood",null,true]
["     Saw Dust - Dry","cubic yard"]
["     Saw Dust - Wet","cubic yard"]
["     Pallet","one"]
["     Wood Chips - Dry","cubic yard"]
["     Wood Chips - Green","cubic yard"]
["     Crates","cubic yard"]
["     Christmas Trees","cubic yard"]
["Clothing & Textiles",null,true]
["     Clothing - Loose","cubic yard"]
["     Clothing - Compacted","cubic yard"]
["     Textiles - Loose","cubic yard"]
["     Carpeting","cubic yard"]
["     Carpet Padding","cubic yard"]
["     Mattress","one"]
["Small Batteries",null,true]
["     Small Batteries - Mixed",{"$f":"IF(J30=0,\"--Select--\")","v":"--Select--"}]
["Food Waste",null,true]
["     Grease - Cooking",{"$f":"IF(J30=0,\"--Select--\")","v":"--Select--"}]
["     Food Waste - General","cubic yard"]
["Other Plastics",null,true]
["     Bags & Films - Loose","cubic yard"]
["     Bags & Films - Compacted","cubic yard"]
["Other Papers",null,true]
["Office Paper"]
["     Paper - Loose","cubic yard"]
["     Paper - Compacted","cubic yard"]
["     Paper - Shredded","cubic yard"]
["Books"]
["     Books - Hardback","cubic yard"]
["     Books - Paperback","cubic yard"]
["Other"]
["     Magazines - Stacked","cubic yard"]
["     Magazines - Loose","cubic yard"]
["     Newsprint - Loose","cubic yard"]
["Major Appliances",null,true]
["     Dishwasher","one"]
["     Microwave","one"]
["     Range","one"]
["     Refrigerator","one"]
["     Freezer","one"]
["     Dryer - Clothes","one"]
["     Washer - Clothes","one"]
["     Air Conditioner","one"]
["     Water Heater","one"]

{"sheet":"Summary","index":3,"n_rows":373,"n_cols":4,"rows_kept":373,"cut":false,"hidden":false,"merged":[[262,2,262,3],[218,2,218,3],[219,2,219,3],[251,2,251,3],[253,2,253,3],[255,2,255,3],[257,2,257,3],[259,2,259,3],[260,2,260,3],[261,2,261,3],[221,2,221,3],[223,2,223,3],[224,2,224,3],[225,2,225,3],[230,2,230,3],[250,2,250,3],[252,2,252,3],[254,2,254,3],[238,2,238,3],[240,2,240,3],[244,2,244,3],[246,2,246,3],[134,2,134,3],[135,2,135,3],[136,2,136,3],[137,2,137,3],[138,2,138,3],[205,2,205,3],[206,2,206,3],[207,2,207,3],[208,2,208,3],[141,2,141,3],[186,2,186,3],[187,2,187,3],[188,2,188,3],[189,2,189,3],[190,2,190,3],[200,2,200,3],[201,2,201,3],[202,2,202,3],[203,2,203,3],[204,2,204,3],[198,2,198,3],[199,2,199,3],[148,2,148,3],[149,2,149,3],[125,2,125,3],[126,2,126,3],[127,2,127,3],[128,2,128,3],[129,2,129,3],[130,2,130,3],[131,2,131,3],[132,2,132,3],[133,2,133,3],[91,2,91,3],[92,2,92,3],[93,2,93,3],[94,2,94,3],[95,2,95,3],[96,2,96,3],[97,2,97,3],[98,2,98,3],[124,2,124,3],[36,2,36,3],[38,2,38,3],[144,2,144,3],[146,2,146,3],[150,2,150,3],[152,2,152,3],[154,2,154,3],[156,2,156,3],[67,2,67,3],[69,2,69,3],[71,2,71,3],[73,2,73,3],[77,2,77,3],[79,2,79,3],[155,2,155,3],[145,2,145,3],[147,2,147,3],[84,2,84,3],[85,2,85,3],[86,2,86,3],[87,2,87,3],[88,2,88,3],[89,2,89,3],[90,2,90,3],[151,2,151,3],[153,2,153,3],[78,2,78,3],[80,2,80,3],[82,2,82,3],[27,2,27,3],[28,2,28,3],[29,2,29,3],[24,2,24,3],[26,2,26,3],[104,2,104,3],[105,2,105,3],[106,2,106,3],[107,2,107,3],[108,2,108,3],[109,2,109,3],[110,2,110,3],[111,2,111,3],[139,2,139,3],[52,2,52,3],[53,2,53,3],[55,2,55,3],[57,2,57,3],[64,2,64,3],[19,2,19,3],[30,2,30,3],[32,2,32,3],[34,2,34,3],[256,2,256,3],[258,2,258,3],[4,0,4,3],[14,2,14,3],[5,0,5,1],[6,0,6,1],[248,2,248,3],[249,2,249,3],[239,2,239,3],[241,2,241,3],[242,2,242,3],[243,2,243,3],[245,2,245,3],[247,2,247,3],[227,2,227,3],[229,2,229,3],[231,2,231,3],[233,2,233,3],[235,2,235,3],[237,2,237,3],[15,0,15,1],[7,0,7,1],[8,0,8,1],[173,2,173,3],[175,2,175,3],[168,2,168,3],[170,2,170,3],[172,2,172,3],[174,2,174,3],[81,2,81,3],[83,2,83,3],[140,2,140,3],[142,2,142,3],[68,2,68,3],[70,2,70,3],[72,2,72,3],[74,2,74,3],[75,2,75,3],[76,2,76,3],[99,2,99,3],[100,2,100,3],[101,2,101,3],[102,2,102,3],[103,2,103,3],[176,2,176,3],[178,2,178,3],[220,2,220,3],[222,2,222,3],[226,2,226,3],[228,2,228,3],[232,2,232,3],[234,2,234,3],[236,2,236,3],[177,2,177,3],[179,2,179,3],[211,2,211,3],[212,2,212,3],[213,2,213,3],[214,2,214,3],[215,2,215,3],[216,2,216,3],[217,2,217,3],[209,2,209,3],[210,2,210,3],[66,2,66,3],[54,2,54,3],[56,2,56,3],[58,2,58,3],[65,2,65,3],[59,2,59,3],[60,2,60,3],[61,2,61,3],[62,2,62,3],[63,2,63,3],[11,0,11,1],[12,0,12,1],[43,2,43,3],[45,2,45,3],[47,2,47,3],[49,2,49,3],[51,2,51,3],[44,2,44,3],[46,2,46,3],[48,2,48,3],[50,2,50,3],[18,2,18,3],[20,2,20,3],[22,2,22,3],[41,2,41,3],[31,2,31,3],[33,2,33,3],[35,2,35,3],[37,2,37,3],[39,2,39,3],[40,2,40,3],[21,2,21,3],[23,2,23,3],[25,2,25,3],[169,2,169,3],[171,2,171,3],[42,2,42,3],[0,2,0,3],[2,2,2,3],[3,2,3,3],[2,0,2,1],[12,2,12,3],[13,2,13,3],[15,2,15,3],[16,2,16,3],[17,2,17,3],[6,2,6,3],[7,2,7,3],[8,2,8,3],[9,2,9,3],[10,2,10,3],[11,2,11,3],[13,0,13,1],[14,0,14,1],[16,0,16,1],[17,0,17,1],[9,0,9,1],[10,0,10,1],[1,0,1,1],[1,2,1,3],[191,2,191,3],[192,2,192,3],[193,2,193,3],[194,2,194,3],[195,2,195,3],[196,2,196,3],[197,2,197,3],[121,2,121,3],[122,2,122,3],[123,2,123,3],[180,2,180,3],[181,2,181,3],[182,2,182,3],[183,2,183,3],[184,2,184,3],[185,2,185,3],[112,2,112,3],[113,2,113,3],[114,2,114,3],[115,2,115,3],[116,2,116,3],[117,2,117,3],[350,2,350,3],[18,0,18,1],[350,0,350,1],[351,2,351,3],[352,2,352,3],[353,2,353,3],[354,2,354,3],[355,2,355,3],[356,2,356,3],[118,2,118,3],[119,2,119,3],[120,2,120,3],[143,2,143,3],[157,2,157,3],[159,2,159,3],[161,2,161,3],[163,2,163,3],[165,2,165,3],[158,2,158,3],[160,2,160,3],[162,2,162,3],[164,2,164,3],[166,2,166,3],[167,2,167,3],[366,2,366,3],[367,2,367,3],[368,2,368,3],[369,2,369,3],[370,2,370,3],[371,2,371,3],[372,2,372,3],[357,2,357,3],[358,2,358,3],[359,2,359,3],[360,2,360,3],[361,2,361,3],[362,2,362,3],[363,2,363,3],[364,2,364,3],[365,2,365,3],[367,0,367,1],[368,0,368,1],[369,0,369,1],[370,0,370,1],[371,0,371,1],[372,0,372,1],[351,0,351,1],[352,0,352,1],[353,0,353,1],[354,0,354,1],[355,0,355,1],[356,0,356,1],[357,0,357,1],[358,0,358,1],[359,0,359,1],[360,0,360,1],[361,0,361,1],[362,0,362,1],[363,0,363,1],[364,0,364,1],[365,0,365,1],[366,0,366,1]]}
[]
["Annual Recycling Report Summary",null,{"$f":"IF('Report Calculator (Required)'!B5=0,\"\",IF('Report Calculator (Required)'!B5=\"I am a property manager filing for one or more tenant(s) leasing property at a single site. \",_xlfn.CONCAT(\"DUE: 03/01/\",'Report Calculator (Required)'!B3:C3),IF('Report Calculator (Required)'!B12>=250,_xlfn.CONCAT(\"DUE: 02/01/\",'Report Calculator (Required)'!B3:C3),_xlfn.CONCAT(\"DUE: 03/01/\",'Report Calculator (Required)'!B3:C3))))","v":""}]
["Report for year:",null,{"$f":"'Report Calculator (Required)'!B3","v":0}]
["Filer Details"]
[{"$f":"IF('Report Calculator (Required)'!B5=0, \"[Filer]\", 'Report Calculator (Required)'!B5)","v":"[Filer]"}]
[{"$f":"IF('Report Calculator (Required)'!B6=0, \"[Business Name]\", 'Report Calculator (Required)'!B6)","v":"[Business Name]"},null,{"$f":"IF('Report Calculator (Required)'!B7=0, \"[Mailing Address]\", 'Report Calculator (Required)'!B7)","v":"[Mailing Address]"},{"$f":"IF('Report Calculator (Required)'!C7=0, \"[Zip Code]\", 'Report Calculator (Required)'!C7)","v":"[Zip Code]"}]
[{"$f":"IF('Report Calculator (Required)'!B8=0, \"[Phone Number]\", 'Report Calculator (Required)'!B8)","v":"[Phone Number]"},null,{"$f":"IF('Report Calculator (Required)'!B9=0, \"[Contact Person]\", 'Report Calculator (Required)'!B9)","v":"[Contact Person]"}]
[{"$f":"IF('Report Calculator (Required)'!B11=0, \"[Government Agency?]\", 'Report Calculator (Required)'!B11)","v":"[Government Agency?]"},null,{"$f":"IF('Report Calculator (Required)'!B10=0, \"[Contact Person Email]\", 'Report Calculator (Required)'!B10)","v":"[Contact Person Email]"}]
[]
["Principal Program Specialist",null,{"$f":"IF('Report Calculator (Required)'!B11=\"County\",Zips!B60,IF(COUNTIF(Zips!A2:A22,'Report Calculator (Required)'!C7)>0,Zips!B2,IF(COUNTIF(Zips!A23:A32,'Report Calculator (Required)'!C7)>0,Zips!B23,IF(COUNTIF(Zips!A33:A43,'Report Calculator (Required)'!C7)>0,Zips!B33,IF(COUNTIF(Zips!A44:A58,'Report Calculator (Required)'!C7)>0,Zips!B44,\"Unknown Zip Code!\")))))","v":"Unknown Zip Code!"}]
[null,null,{"$f":"IF('Report Calculator (Required)'!B11=\"County\",Zips!C60,IF(COUNTIF(Zips!A2:A22,'Report Calculator (Required)'!C7)>0,Zips!C2,IF(COUNTIF(Zips!A23:A32,'Report Calculator (Required)'!C7)>0,Zips!C23,IF(COUNTIF(Zips!A33:A43,'Report Calculator (Required)'!C7)>0,Zips!C33,IF(COUNTIF(Zips!A44:A58,'Report Calculator (Required)'!C7)>0,Zips!C44,\"Unknown Zip Code!\")))))","v":"Unknown Zip Code!"}]
["Total # Employees",null,{"$f":"'Report Calculator (Required)'!B12","v":0}]
["Total Square Feet of Building",null,{"$f":"'Report Calculator (Required)'!B13","v":0}]
["Total Acerage of Green Area",null,{"$f":"'Report Calculator (Required)'!B14","v":0}]
[]
["COVID-19 Information"]
["Was your business closed at any point due to the COVID-19 pandemic? ",null,{"$f":"'Report Calculator (Required)'!B16","v":0}]
["For how many weeks were you closed? ",null,{"$f":"'Report Calculator (Required)'!B17","v":0}]
["Mixed Paper"]
[{"$f":"IF(Calcs!L4=0,\"\",_xlfn.CONCAT(Calcs!C4,\" X \",Calcs!A4))","v":""},{"$f":"IF(Calcs!L4=0,\"\",_xlfn.CONCAT(Calcs!D4,\" \",Calcs!E4))","v":""},{"$f":"IF(Calcs!L4=0,\"\",Calcs!L4)","v":""}]
[{"$f":"IF(Calcs!L5=0,\"\",_xlfn.CONCAT(Calcs!C5,\" X \",Calcs!A5))","v":""},{"$f":"IF(Calcs!L5=0,\"\",_xlfn.CONCAT(Calcs!D5,\" \",Calcs!E5))","v":""},{"$f":"IF(Calcs!L5=0,\"\",Calcs!L5)","v":""}]
[{"$f":"IF(Calcs!L6=0,\"\",_xlfn.CONCAT(Calcs!C6,\" X \",Calcs!A6))","v":""},{"$f":"IF(Calcs!L6=0,\"\",_xlfn.CONCAT(Calcs!D6,\" \",Calcs!E6))","v":""},{"$f":"IF(Calcs!L6=0,\"\",Calcs!L6)","v":""}]
[{"$f":"IF(Calcs!L7=0,\"\",_xlfn.CONCAT(Calcs!C7,\" X \",Calcs!A7))","v":""},{"$f":"IF(Calcs!L7=0,\"\",_xlfn.CONCAT(Calcs!D7,\" \",Calcs!E7))","v":""},{"$f":"IF(Calcs!L7=0,\"\",Calcs!L7)","v":""}]
[{"$f":"IF(Calcs!L8=0,\"\",_xlfn.CONCAT(Calcs!C8,\" X \",Calcs!A8))","v":""},{"$f":"IF(Calcs!L8=0,\"\",_xlfn.CONCAT(Calcs!D8,\" \",Calcs!E8))","v":""},{"$f":"IF(Calcs!L8=0,\"\",Calcs!L8)","v":""}]
[{"$f":"IF(Calcs!L9=0,\"\",_xlfn.CONCAT(Calcs!C9,\" X \",Calcs!A9))","v":""},{"$f":"IF(Calcs!L9=0,\"\",_xlfn.CONCAT(Calcs!D9,\" \",Calcs!E9))","v":""},{"$f":"IF(Calcs!L9=0,\"\",Calcs!L9)","v":""}]
[{"$f":"IF(Calcs!L10=0,\"\",_xlfn.CONCAT(Calcs!C10,\" X \",Calcs!A10))","v":""},{"$f":"IF(Calcs!L10=0,\"\",_xlfn.CONCAT(Calcs!D10,\" \",Calcs!E10))","v":""},{"$f":"IF(Calcs!L10=0,\"\",Calcs!L10)","v":""}]
[{"$f":"IF(Calcs!L11=0,\"\",_xlfn.CONCAT(Calcs!C11,\" X \",Calcs!A11))","v":""},{"$f":"IF(Calcs!L11=0,\"\",_xlfn.CONCAT(Calcs!D11,\" \",Calcs!E11))","v":""},{"$f":"IF(Calcs!L11=0,\"\",Calcs!L11)","v":""}]
[{"$f":"IF(Calcs!L12=0,\"\",_xlfn.CONCAT(Calcs!C12,\" X \",Calcs!A12))","v":""},{"$f":"IF(Calcs!L12=0,\"\",_xlfn.CONCAT(Calcs!D12,\" \",Calcs!E12))","v":""},{"$f":"IF(Calcs!L12=0,\"\",Calcs!L12)","v":""}]
[{"$f":"IF(Calcs!L13=0,\"\",_xlfn.CONCAT(Calcs!C13,\" X \",Calcs!A13))","v":""},{"$f":"IF(Calcs!L13=0,\"\",_xlfn.CONCAT(Calcs!D13,\" \",Calcs!E13))","v":""},{"$f":"IF(Calcs!L13=0,\"\",Calcs!L13)","v":""}]
[{"$f":"IF(Calcs!L14=0,\"\",_xlfn.CONCAT(Calcs!C14,\" X \",Calcs!A14))","v":""},{"$f":"IF(Calcs!L14=0,\"\",_xlfn.CONCAT(Calcs!D14,\" \",Calcs!E14))","v":""},{"$f":"IF(Calcs!L14=0,\"\",Calcs!L14)","v":""}]
[{"$f":"IF(Calcs!L15=0,\"\",_xlfn.CONCAT(Calcs!C15,\" X \",Calcs!A15))","v":""},{"$f":"IF(Calcs!L15=0,\"\",_xlfn.CONCAT(Calcs!D15,\" \",Calcs!E15))","v":""},{"$f":"IF(Calcs!L15=0,\"\",Calcs!L15)","v":""}]
[{"$f":"IF(Calcs!L16=0,\"\",_xlfn.CONCAT(Calcs!C16,\" X \",Calcs!A16))","v":""},{"$f":"IF(Calcs!L16=0,\"\",_xlfn.CONCAT(Calcs!D16,\" \",Calcs!E16))","v":""},{"$f":"IF(Calcs!L16=0,\"\",Calcs!L16)","v":""}]
[{"$f":"IF(Calcs!L17=0,\"\",_xlfn.CONCAT(Calcs!C17,\" X \",Calcs!A17))","v":""},{"$f":"IF(Calcs!L17=0,\"\",_xlfn.CONCAT(Calcs!D17,\" \",Calcs!E17))","v":""},{"$f":"IF(Calcs!L17=0,\"\",Calcs!L17)","v":""}]
[{"$f":"IF(Calcs!L18=0,\"\",_xlfn.CONCAT(Calcs!C18,\" X \",Calcs!A18))","v":""},{"$f":"IF(Calcs!L18=0,\"\",_xlfn.CONCAT(Calcs!D18,\" \",Calcs!E18))","v":""},{"$f":"IF(Calcs!L18=0,\"\",Calcs!L18)","v":""}]
[{"$f":"IF(Calcs!L19=0,\"\",_xlfn.CONCAT(Calcs!C19,\" X \",Calcs!A19))","v":""},{"$f":"IF(Calcs!L19=0,\"\",_xlfn.CONCAT(Calcs!D19,\" \",Calcs!E19))","v":""},{"$f":"IF(Calcs!L19=0,\"\",Calcs!L19)","v":""}]
[{"$f":"IF(Calcs!L20=0,\"\",_xlfn.CONCAT(Calcs!C20,\" X \",Calcs!A20))","v":""},{"$f":"IF(Calcs!L20=0,\"\",_xlfn.CONCAT(Calcs!D20,\" \",Calcs!E20))","v":""},{"$f":"IF(Calcs!L20=0,\"\",Calcs!L20)","v":""}]
[{"$f":"IF(Calcs!L21=0,\"\",_xlfn.CONCAT(Calcs!C21,\" X \",Calcs!A21))","v":""},{"$f":"IF(Calcs!L21=0,\"\",_xlfn.CONCAT(Calcs!D21,\" \",Calcs!E21))","v":""},{"$f":"IF(Calcs!L21=0,\"\",Calcs!L21)","v":""}]
[{"$f":"IF(Calcs!L22=0,\"\",_xlfn.CONCAT(Calcs!C22,\" X \",Calcs!A22))","v":""},{"$f":"IF(Calcs!L22=0,\"\",_xlfn.CONCAT(Calcs!D22,\" \",Calcs!E22))","v":""},{"$f":"IF(Calcs!L22=0,\"\",Calcs!L22)","v":""}]
[{"$f":"IF(Calcs!L23=0,\"\",_xlfn.CONCAT(Calcs!C23,\" X \",Calcs!A23))","v":""},{"$f":"IF(Calcs!L23=0,\"\",_xlfn.CONCAT(Calcs!D23,\" \",Calcs!E23))","v":""},{"$f":"IF(Calcs!L23=0,\"\",Calcs!L23)","v":""}]
[{"$f":"IF(Calcs!L24=0,\"\",_xlfn.CONCAT(Calcs!C24,\" X \",Calcs!A24))","v":""},{"$f":"IF(Calcs!L24=0,\"\",_xlfn.CONCAT(Calcs!D24,\" \",Calcs!E24))","v":""},{"$f":"IF(Calcs!L24=0,\"\",Calcs!L24)","v":""}]
[{"$f":"IF(Calcs!L25=0,\"\",_xlfn.CONCAT(Calcs!C25,\" X \",Calcs!A25))","v":""},{"$f":"IF(Calcs!L25=0,\"\",_xlfn.CONCAT(Calcs!D25,\" \",Calcs!E25))","v":""},{"$f":"IF(Calcs!L25=0,\"\",Calcs!L25)","v":""}]
[{"$f":"IF(Calcs!L26=0,\"\",_xlfn.CONCAT(Calcs!C26,\" X \",Calcs!A26))","v":""},{"$f":"IF(Calcs!L26=0,\"\",_xlfn.CONCAT(Calcs!D26,\" \",Calcs!E26))","v":""},{"$f":"IF(Calcs!L26=0,\"\",Calcs!L26)","v":""}]
[{"$f":"IF(Calcs!L27=0,\"\",_xlfn.CONCAT(Calcs!C27,\" X \",Calcs!A27))","v":""},{"$f":"IF(Calcs!L27=0,\"\",_xlfn.CONCAT(Calcs!D27,\" \",Calcs!E27))","v":""},{"$f":"IF(Calcs!L27=0,\"\",Calcs!L27)","v":""}]
[{"$f":"IF(Calcs!L28=0,\"\",_xlfn.CONCAT(Calcs!C28,\" X \",Calcs!A28))","v":""},{"$f":"IF(Calcs!L28=0,\"\",_xlfn.CONCAT(Calcs!D28,\" \",Calcs!E28))","v":""},{"$f":"IF(Calcs!L28=0,\"\",Calcs!L28)","v":""}]
[{"$f":"IF(Calcs!L29=0,\"\",_xlfn.CONCAT(Calcs!C29,\" X \",Calcs!A29))","v":""},{"$f":"IF(Calcs!L29=0,\"\",_xlfn.CONCAT(Calcs!D29,\" \",Calcs!E29))","v":""},{"$f":"IF(Calcs!L29=0,\"\",Calcs!L29)","v":""}]
[{"$f":"IF(Calcs!L30=0,\"\",_xlfn.CONCAT(Calcs!C30,\" X \",Calcs!A30))","v":""},{"$f":"IF(Calcs!L30=0,\"\",_xlfn.CONCAT(Calcs!D30,\" \",Calcs!E30))","v":""},{"$f":"IF(Calcs!L30=0,\"\",Calcs!L30)","v":""}]
[{"$f":"IF(Calcs!L31=0,\"\",_xlfn.CONCAT(Calcs!C31,\" X \",Calcs!A31))","v":""},{"$f":"IF(Calcs!L31=0,\"\",_xlfn.CONCAT(Calcs!D31,\" \",Calcs!E31))","v":""},{"$f":"IF(Calcs!L31=0,\"\",Calcs!L31)","v":""}]
[{"$f":"IF(Calcs!L32=0,\"\",_xlfn.CONCAT(Calcs!C32,\" X \",Calcs!A32))","v":""},{"$f":"IF(Calcs!L32=0,\"\",_xlfn.CONCAT(Calcs!D32,\" \",Calcs!E32))","v":""},{"$f":"IF(Calcs!L32=0,\"\",Calcs!L32)","v":""}]
[{"$f":"IF(Calcs!L33=0,\"\",_xlfn.CONCAT(Calcs!C33,\" X \",Calcs!A33))","v":""},{"$f":"IF(Calcs!L33=0,\"\",_xlfn.CONCAT(Calcs!D33,\" \",Calcs!E33))","v":""},{"$f":"IF(Calcs!L33=0,\"\",Calcs!L33)","v":""}]
[{"$f":"IF(Calcs!L34=0,\"\",_xlfn.CONCAT(Calcs!C34,\" X \",Calcs!A34))","v":""},{"$f":"IF(Calcs!L34=0,\"\",_xlfn.CONCAT(Calcs!D34,\" \",Calcs!E34))","v":""},{"$f":"IF(Calcs!L34=0,\"\",Calcs!L34)","v":""}]
[{"$f":"IF(Calcs!L35=0,\"\",_xlfn.CONCAT(Calcs!C35,\" X \",Calcs!A35))","v":""},{"$f":"IF(Calcs!L35=0,\"\",_xlfn.CONCAT(Calcs!D35,\" \",Calcs!E35))","v":""},{"$f":"IF(Calcs!L35=0,\"\",Calcs!L35)","v":""}]
[{"$f":"IF(Calcs!L36=0,\"\",_xlfn.CONCAT(Calcs!C36,\" X \",Calcs!A36))","v":""},{"$f":"IF(Calcs!L36=0,\"\",_xlfn.CONCAT(Calcs!D36,\" \",Calcs!E36))","v":""},{"$f":"IF(Calcs!L36=0,\"\",Calcs!L36)","v":""}]
[{"$f":"IF(Calcs!L37=0,\"\",_xlfn.CONCAT(Calcs!C37,\" X \",Calcs!A37))","v":""},{"$f":"IF(Calcs!L37=0,\"\",_xlfn.CONCAT(Calcs!D37,\" \",Calcs!E37))","v":""},{"$f":"IF(Calcs!L37=0,\"\",Calcs!L37)","v":""}]
[{"$f":"IF(Calcs!L38=0,\"\",_xlfn.CONCAT(Calcs!C38,\" X \",Calcs!A38))","v":""},{"$f":"IF(Calcs!L38=0,\"\",_xlfn.CONCAT(Calcs!D38,\" \",Calcs!E38))","v":""},{"$f":"IF(Calcs!L38=0,\"\",Calcs!L38)","v":""}]
[{"$f":"IF(Calcs!L39=0,\"\",_xlfn.CONCAT(Calcs!C39,\" X \",Calcs!A39))","v":""},{"$f":"IF(Calcs!L39=0,\"\",_xlfn.CONCAT(Calcs!D39,\" \",Calcs!E39))","v":""},{"$f":"IF(Calcs!L39=0,\"\",Calcs!L39)","v":""}]
[{"$f":"IF(Calcs!L40=0,\"\",_xlfn.CONCAT(Calcs!C40,\" X \",Calcs!A40))","v":""},{"$f":"IF(Calcs!L40=0,\"\",_xlfn.CONCAT(Calcs!D40,\" \",Calcs!E40))","v":""},{"$f":"IF(Calcs!L40=0,\"\",Calcs!L40)","v":""}]
[{"$f":"IF(Calcs!L41=0,\"\",_xlfn.CONCAT(Calcs!C41,\" X \",Calcs!A41))","v":""},{"$f":"IF(Calcs!L41=0,\"\",_xlfn.CONCAT(Calcs!D41,\" \",Calcs!E41))","v":""},{"$f":"IF(Calcs!L41=0,\"\",Calcs!L41)","v":""}]
[{"$f":"IF(Calcs!L42=0,\"\",_xlfn.CONCAT(Calcs!C42,\" X \",Calcs!A42))","v":""},{"$f":"IF(Calcs!L42=0,\"\",_xlfn.CONCAT(Calcs!D42,\" \",Calcs!E42))","v":""},{"$f":"IF(Calcs!L42=0,\"\",Calcs!L42)","v":""}]
[{"$f":"IF(Calcs!L43=0,\"\",_xlfn.CONCAT(Calcs!C43,\" X \",Calcs!A43))","v":""},{"$f":"IF(Calcs!L43=0,\"\",_xlfn.CONCAT(Calcs!D43,\" \",Calcs!E43))","v":""},{"$f":"IF(Calcs!L43=0,\"\",Calcs!L43)","v":""}]
[{"$f":"IF(Calcs!L127=0,\"\",_xlfn.CONCAT(Calcs!C127,\" X \",Calcs!A127))","v":""},{"$f":"IF(Calcs!L127=0,\"\",_xlfn.CONCAT(Calcs!D127,\" \",Calcs!E127))","v":""},{"$f":"IF(Calcs!L127=0,\"\",Calcs!L127)","v":""}]
[{"$f":"IF(Calcs!L128=0,\"\",_xlfn.CONCAT(Calcs!C128,\" X \",Calcs!A128))","v":""},{"$f":"IF(Calcs!L128=0,\"\",_xlfn.CONCAT(Calcs!D128,\" \",Calcs!E128))","v":""},{"$f":"IF(Calcs!L128=0,\"\",Calcs!L128)","v":""}]
[{"$f":"IF(Calcs!L129=0,\"\",_xlfn.CONCAT(Calcs!C129,\" X \",Calcs!A129))","v":""},{"$f":"IF(Calcs!L129=0,\"\",_xlfn.CONCAT(Calcs!D129,\" \",Calcs!E129))","v":""},{"$f":"IF(Calcs!L129=0,\"\",Calcs!L129)","v":""}]
[{"$f":"IF(Calcs!L130=0,\"\",_xlfn.CONCAT(Calcs!C130,\" X \",Calcs!A130))","v":""},{"$f":"IF(Calcs!L130=0,\"\",_xlfn.CONCAT(Calcs!D130,\" \",Calcs!E130))","v":""},{"$f":"IF(Calcs!L130=0,\"\",Calcs!L130)","v":""}]
[{"$f":"IF(Calcs!L131=0,\"\",_xlfn.CONCAT(Calcs!C131,\" X \",Calcs!A131))","v":""},{"$f":"IF(Calcs!L131=0,\"\",_xlfn.CONCAT(Calcs!D131,\" \",Calcs!E131))","v":""},{"$f":"IF(Calcs!L131=0,\"\",Calcs!L131)","v":""}]
[{"$f":"IF(Calcs!L132=0,\"\",_xlfn.CONCAT(Calcs!C132,\" X \",Calcs!A132))","v":""},{"$f":"IF(Calcs!L132=0,\"\",_xlfn.CONCAT(Calcs!D132,\" \",Calcs!E132))","v":""},{"$f":"IF(Calcs!L132=0,\"\",Calcs!L132)","v":""}]
[{"$f":"IF(Calcs!L133=0,\"\",_xlfn.CONCAT(Calcs!C133,\" X \",Calcs!A133))","v":""},{"$f":"IF(Calcs!L133=0,\"\",_xlfn.CONCAT(Calcs!D133,\" \",Calcs!E133))","v":""},{"$f":"IF(Calcs!L133=0,\"\",Calcs!L133)","v":""}]
[{"$f":"IF(Calcs!L134=0,\"\",_xlfn.CONCAT(Calcs!C134,\" X \",Calcs!A134))","v":""},{"$f":"IF(Calcs!L134=0,\"\",_xlfn.CONCAT(Calcs!D134,\" \",Calcs!E134))","v":""},{"$f":"IF(Calcs!L134=0,\"\",Calcs!L134)","v":""}]
[{"$f":"IF(Calcs!L135=0,\"\",_xlfn.CONCAT(Calcs!C135,\" X \",Calcs!A135))","v":""},{"$f":"IF(Calcs!L135=0,\"\",_xlfn.CONCAT(Calcs!D135,\" \",Calcs!E135))","v":""},{"$f":"IF(Calcs!L135=0,\"\",Calcs!L135)","v":""}]
[{"$f":"IF(Calcs!L136=0,\"\",_xlfn.CONCAT(Calcs!C136,\" X \",Calcs!A136))","v":""},{"$f":"IF(Calcs!L136=0,\"\",_xlfn.CONCAT(Calcs!D136,\" \",Calcs!E136))","v":""},{"$f":"IF(Calcs!L136=0,\"\",Calcs!L136)","v":""}]
[{"$f":"IF(Calcs!L137=0,\"\",_xlfn.CONCAT(Calcs!C137,\" X \",Calcs!A137))","v":""},{"$f":"IF(Calcs!L137=0,\"\",_xlfn.CONCAT(Calcs!D137,\" \",Calcs!E137))","v":""},{"$f":"IF(Calcs!L137=0,\"\",Calcs!L137)","v":""}]
[{"$f":"IF(Calcs!L138=0,\"\",_xlfn.CONCAT(Calcs!C138,\" X \",Calcs!A138))","v":""},{"$f":"IF(Calcs!L138=0,\"\",_xlfn.CONCAT(Calcs!D138,\" \",Calcs!E138))","v":""},{"$f":"IF(Calcs!L138=0,\"\",Calcs!L138)","v":""}]
[{"$f":"IF(Calcs!L139=0,\"\",_xlfn.CONCAT(Calcs!C139,\" X \",Calcs!A139))","v":""},{"$f":"IF(Calcs!L139=0,\"\",_xlfn.CONCAT(Calcs!D139,\" \",Calcs!E139))","v":""},{"$f":"IF(Calcs!L139=0,\"\",Calcs!L139)","v":""}]
[{"$f":"IF(Calcs!L140=0,\"\",_xlfn.CONCAT(Calcs!C140,\" X \",Calcs!A140))","v":""},{"$f":"IF(Calcs!L140=0,\"\",_xlfn.CONCAT(Calcs!D140,\" \",Calcs!E140))","v":""},{"$f":"IF(Calcs!L140=0,\"\",Calcs!L140)","v":""}]
[{"$f":"IF(Calcs!L141=0,\"\",_xlfn.CONCAT(Calcs!C141,\" X \",Calcs!A141))","v":""},{"$f":"IF(Calcs!L141=0,\"\",_xlfn.CONCAT(Calcs!D141,\" \",Calcs!E141))","v":""},{"$f":"IF(Calcs!L141=0,\"\",Calcs!L141)","v":""}]
[{"$f":"IF(Calcs!L142=0,\"\",_xlfn.CONCAT(Calcs!C142,\" X \",Calcs!A142))","v":""},{"$f":"IF(Calcs!L142=0,\"\",_xlfn.CONCAT(Calcs!D142,\" \",Calcs!E142))","v":""},{"$f":"IF(Calcs!L142=0,\"\",Calcs!L142)","v":""}]
[{"$f":"IF(Calcs!L143=0,\"\",_xlfn.CONCAT(Calcs!C143,\" X \",Calcs!A143))","v":""},{"$f":"IF(Calcs!L143=0,\"\",_xlfn.CONCAT(Calcs!D143,\" \",Calcs!E143))","v":""},{"$f":"IF(Calcs!L143=0,\"\",Calcs!L143)","v":""}]
[{"$f":"IF(Calcs!L144=0,\"\",_xlfn.CONCAT(Calcs!C144,\" X \",Calcs!A144))","v":""},{"$f":"IF(Calcs!L144=0,\"\",_xlfn.CONCAT(Calcs!D144,\" \",Calcs!E144))","v":""},{"$f":"IF(Calcs!L144=0,\"\",Calcs!L144)","v":""}]
[{"$f":"IF(Calcs!L145=0,\"\",_xlfn.CONCAT(Calcs!C145,\" X \",Calcs!A145))","v":""},{"$f":"IF(Calcs!L145=0,\"\",_xlfn.CONCAT(Calcs!D145,\" \",Calcs!E145))","v":""},{"$f":"IF(Calcs!L145=0,\"\",Calcs!L145)","v":""}]
[{"$f":"IF(Calcs!L146=0,\"\",_xlfn.CONCAT(Calcs!C146,\" X \",Calcs!A146))","v":""},{"$f":"IF(Calcs!L146=0,\"\",_xlfn.CONCAT(Calcs!D146,\" \",Calcs!E146))","v":""},{"$f":"IF(Calcs!L146=0,\"\",Calcs!L146)","v":""}]
[{"$f":"IF(Calcs!L147=0,\"\",_xlfn.CONCAT(Calcs!C147,\" X \",Calcs!A147))","v":""},{"$f":"IF(Calcs!L147=0,\"\",_xlfn.CONCAT(Calcs!D147,\" \",Calcs!E147))","v":""},{"$f":"IF(Calcs!L147=0,\"\",Calcs!L147)","v":""}]
[{"$f":"IF(Calcs!L148=0,\"\",_xlfn.CONCAT(Calcs!C148,\" X \",Calcs!A148))","v":""},{"$f":"IF(Calcs!L148=0,\"\",_xlfn.CONCAT(Calcs!D148,\" \",Calcs!E148))","v":""},{"$f":"IF(Calcs!L148=0,\"\",Calcs!L148)","v":""}]
[{"$f":"IF(Calcs!L149=0,\"\",_xlfn.CONCAT(Calcs!C149,\" X \",Calcs!A149))","v":""},{"$f":"IF(Calcs!L149=0,\"\",_xlfn.CONCAT(Calcs!D149,\" \",Calcs!E149))","v":""},{"$f":"IF(Calcs!L149=0,\"\",Calcs!L149)","v":""}]
[{"$f":"IF(Calcs!L150=0,\"\",_xlfn.CONCAT(Calcs!C150,\" X \",Calcs!A150))","v":""},{"$f":"IF(Calcs!L150=0,\"\",_xlfn.CONCAT(Calcs!D150,\" \",Calcs!E150))","v":""},{"$f":"IF(Calcs!L150=0,\"\",Calcs!L150)","v":""}]
[{"$f":"IF(Calcs!L151=0,\"\",_xlfn.CONCAT(Calcs!C151,\" X \",Calcs!A151))","v":""},{"$f":"IF(Calcs!L151=0,\"\",_xlfn.CONCAT(Calcs!D151,\" \",Calcs!E151))","v":""},{"$f":"IF(Calcs!L151=0,\"\",Calcs!L151)","v":""}]
[{"$f":"IF(Calcs!L152=0,\"\",_xlfn.CONCAT(Calcs!C152,\" X \",Calcs!A152))","v":""},{"$f":"IF(Calcs!L152=0,\"\",_xlfn.CONCAT(Calcs!D152,\" \",Calcs!E152))","v":""},{"$f":"IF(Calcs!L152=0,\"\",Calcs!L152)","v":""}]
[{"$f":"IF(Calcs!L153=0,\"\",_xlfn.CONCAT(Calcs!C153,\" X \",Calcs!A153))","v":""},{"$f":"IF(Calcs!L153=0,\"\",_xlfn.CONCAT(Calcs!D153,\" \",Calcs!E153))","v":""},{"$f":"IF(Calcs!L153=0,\"\",Calcs!L153)","v":""}]
[{"$f":"IF(Calcs!L154=0,\"\",_xlfn.CONCAT(Calcs!C154,\" X \",Calcs!A154))","v":""},{"$f":"IF(Calcs!L154=0,\"\",_xlfn.CONCAT(Calcs!D154,\" \",Calcs!E154))","v":""},{"$f":"IF(Calcs!L154=0,\"\",Calcs!L154)","v":""}]
[{"$f":"IF(Calcs!L155=0,\"\",_xlfn.CONCAT(Calcs!C155,\" X \",Calcs!A155))","v":""},{"$f":"IF(Calcs!L155=0,\"\",_xlfn.CONCAT(Calcs!D155,\" \",Calcs!E155))","v":""},{"$f":"IF(Calcs!L155=0,\"\",Calcs!L155)","v":""}]
[{"$f":"IF(Calcs!L156=0,\"\",_xlfn.CONCAT(Calcs!C156,\" X \",Calcs!A156))","v":""},{"$f":"IF(Calcs!L156=0,\"\",_xlfn.CONCAT(Calcs!D156,\" \",Calcs!E156))","v":""},{"$f":"IF(Calcs!L156=0,\"\",Calcs!L156)","v":""}]
[{"$f":"IF(Calcs!L157=0,\"\",_xlfn.CONCAT(Calcs!C157,\" X \",Calcs!A157))","v":""},{"$f":"IF(Calcs!L157=0,\"\",_xlfn.CONCAT(Calcs!D157,\" \",Calcs!E157))","v":""},{"$f":"IF(Calcs!L157=0,\"\",Calcs!L157)","v":""}]
[{"$f":"IF(Calcs!L158=0,\"\",_xlfn.CONCAT(Calcs!C158,\" X \",Calcs!A158))","v":""},{"$f":"IF(Calcs!L158=0,\"\",_xlfn.CONCAT(Calcs!D158,\" \",Calcs!E158))","v":""},{"$f":"IF(Calcs!L158=0,\"\",Calcs!L158)","v":""}]
[{"$f":"IF(Calcs!L159=0,\"\",_xlfn.CONCAT(Calcs!C159,\" X \",Calcs!A159))","v":""},{"$f":"IF(Calcs!L159=0,\"\",_xlfn.CONCAT(Calcs!D159,\" \",Calcs!E159))","v":""},{"$f":"IF(Calcs!L159=0,\"\",Calcs!L159)","v":""}]
[{"$f":"IF(Calcs!L160=0,\"\",_xlfn.CONCAT(Calcs!C160,\" X \",Calcs!A160))","v":""},{"$f":"IF(Calcs!L160=0,\"\",_xlfn.CONCAT(Calcs!D160,\" \",Calcs!E160))","v":""},{"$f":"IF(Calcs!L160=0,\"\",Calcs!L160)","v":""}]
[{"$f":"IF(Calcs!L161=0,\"\",_xlfn.CONCAT(Calcs!C161,\" X \",Calcs!A161))","v":""},{"$f":"IF(Calcs!L161=0,\"\",_xlfn.CONCAT(Calcs!D161,\" \",Calcs!E161))","v":""},{"$f":"IF(Calcs!L161=0,\"\",Calcs!L161)","v":""}]
[{"$f":"IF(Calcs!L162=0,\"\",_xlfn.CONCAT(Calcs!C162,\" X \",Calcs!A162))","v":""},{"$f":"IF(Calcs!L162=0,\"\",_xlfn.CONCAT(Calcs!D162,\" \",Calcs!E162))","v":""},{"$f":"IF(Calcs!L162=0,\"\",Calcs!L162)","v":""}]
[{"$f":"IF(Calcs!L163=0,\"\",_xlfn.CONCAT(Calcs!C163,\" X \",Calcs!A163))","v":""},{"$f":"IF(Calcs!L163=0,\"\",_xlfn.CONCAT(Calcs!D163,\" \",Calcs!E163))","v":""},{"$f":"IF(Calcs!L163=0,\"\",Calcs!L163)","v":""}]
[{"$f":"IF(Calcs!L164=0,\"\",_xlfn.CONCAT(Calcs!C164,\" X \",Calcs!A164))","v":""},{"$f":"IF(Calcs!L164=0,\"\",_xlfn.CONCAT(Calcs!D164,\" \",Calcs!E164))","v":""},{"$f":"IF(Calcs!L164=0,\"\",Calcs!L164)","v":""}]
[{"$f":"IF(Calcs!L165=0,\"\",_xlfn.CONCAT(Calcs!C165,\" X \",Calcs!A165))","v":""},{"$f":"IF(Calcs!L165=0,\"\",_xlfn.CONCAT(Calcs!D165,\" \",Calcs!E165))","v":""},{"$f":"IF(Calcs!L165=0,\"\",Calcs!L165)","v":""}]
[{"$f":"IF(Calcs!L166=0,\"\",_xlfn.CONCAT(Calcs!C166,\" X \",Calcs!A166))","v":""},{"$f":"IF(Calcs!L166=0,\"\",_xlfn.CONCAT(Calcs!D166,\" \",Calcs!E166))","v":""},{"$f":"IF(Calcs!L166=0,\"\",Calcs!L166)","v":""}]
[{"$f":"IF(Calcs!L86=0,\"\",_xlfn.CONCAT(IMDIV(Calcs!C86,2),\" X \",Calcs!A86))","v":""},{"$f":"IF(Calcs!L86=0,\"\",_xlfn.CONCAT(Calcs!D86,\" \",Calcs!E86))","v":""},{"$f":"IF(Calcs!L86=0,\"\",Calcs!M86)","v":""}]
[{"$f":"IF(Calcs!L87=0,\"\",_xlfn.CONCAT(IMDIV(Calcs!C87,2),\" X \",Calcs!A87))","v":""},{"$f":"IF(Calcs!L87=0,\"\",_xlfn.CONCAT(Calcs!D87,\" \",Calcs!E87))","v":""},{"$f":"IF(Calcs!L87=0,\"\",Calcs!M87)","v":""}]
[{"$f":"IF(Calcs!L88=0,\"\",_xlfn.CONCAT(IMDIV(Calcs!C88,2),\" X \",Calcs!A88))","v":""},{"$f":"IF(Calcs!L88=0,\"\",_xlfn.CONCAT(Calcs!D88,\" \",Calcs!E88))","v":""},{"$f":"IF(Calcs!L88=0,\"\",Calcs!M88)","v":""}]
[{"$f":"IF(Calcs!L89=0,\"\",_xlfn.CONCAT(IMDIV(Calcs!C89,2),\" X \",Calcs!A89))","v":""},{"$f":"IF(Calcs!L89=0,\"\",_xlfn.CONCAT(Calcs!D89,\" \",Calcs!E89))","v":""},{"$f":"IF(Calcs!L89=0,\"\",Calcs!M89)","v":""}]
[{"$f":"IF(Calcs!L90=0,\"\",_xlfn.CONCAT(IMDIV(Calcs!C90,2),\" X \",Calcs!A90))","v":""},{"$f":"IF(Calcs!L90=0,\"\",_xlfn.CONCAT(Calcs!D90,\" \",Calcs!E90))","v":""},{"$f":"IF(Calcs!L90=0,\"\",Calcs!M90)","v":""}]
[{"$f":"IF(Calcs!L91=0,\"\",_xlfn.CONCAT(IMDIV(Calcs!C91,2),\" X \",Calcs!A91))","v":""},{"$f":"IF(Calcs!L91=0,\"\",_xlfn.CONCAT(Calcs!D91,\" \",Calcs!E91))","v":""},{"$f":"IF(Calcs!L91=0,\"\",Calcs!M91)","v":""}]
[{"$f":"IF(Calcs!L92=0,\"\",_xlfn.CONCAT(IMDIV(Calcs!C92,2),\" X \",Calcs!A92))","v":""},{"$f":"IF(Calcs!L92=0,\"\",_xlfn.CONCAT(Calcs!D92,\" \",Calcs!E92))","v":""},{"$f":"IF(Calcs!L92=0,\"\",Calcs!M92)","v":""}]
[{"$f":"IF(Calcs!L93=0,\"\",_xlfn.CONCAT(IMDIV(Calcs!C93,2),\" X \",Calcs!A93))","v":""},{"$f":"IF(Calcs!L93=0,\"\",_xlfn.CONCAT(Calcs!D93,\" \",Calcs!E93))","v":""},{"$f":"IF(Calcs!L93=0,\"\",Calcs!M93)","v":""}]
[{"$f":"IF(Calcs!L94=0,\"\",_xlfn.CONCAT(IMDIV(Calcs!C94,2),\" X \",Calcs!A94))","v":""},{"$f":"IF(Calcs!L94=0,\"\",_xlfn.CONCAT(Calcs!D94,\" \",Calcs!E94))","v":""},{"$f":"IF(Calcs!L94=0,\"\",Calcs!M94)","v":""}]
[{"$f":"IF(Calcs!L95=0,\"\",_xlfn.CONCAT(IMDIV(Calcs!C95,2),\" X \",Calcs!A95))","v":""},{"$f":"IF(Calcs!L95=0,\"\",_xlfn.CONCAT(Calcs!D95,\" \",Calcs!E95))","v":""},{"$f":"IF(Calcs!L95=0,\"\",Calcs!M95)","v":""}]
[{"$f":"IF(Calcs!L96=0,\"\",_xlfn.CONCAT(IMDIV(Calcs!C96,2),\" X \",Calcs!A96))","v":""},{"$f":"IF(Calcs!L96=0,\"\",_xlfn.CONCAT(Calcs!D96,\" \",Calcs!E96))","v":""},{"$f":"IF(Calcs!L96=0,\"\",Calcs!M96)","v":""}]
[{"$f":"IF(Calcs!L97=0,\"\",_xlfn.CONCAT(IMDIV(Calcs!C97,2),\" X \",Calcs!A97))","v":""},{"$f":"IF(Calcs!L97=0,\"\",_xlfn.CONCAT(Calcs!D97,\" \",Calcs!E97))","v":""},{"$f":"IF(Calcs!L97=0,\"\",Calcs!M97)","v":""}]
[{"$f":"IF(Calcs!L98=0,\"\",_xlfn.CONCAT(IMDIV(Calcs!C98,2),\" X \",Calcs!A98))","v":""},{"$f":"IF(Calcs!L98=0,\"\",_xlfn.CONCAT(Calcs!D98,\" \",Calcs!E98))","v":""},{"$f":"IF(Calcs!L98=0,\"\",Calcs!M98)","v":""}]
[{"$f":"IF(Calcs!L99=0,\"\",_xlfn.CONCAT(IMDIV(Calcs!C99,2),\" X \",Calcs!A99))","v":""},{"$f":"IF(Calcs!L99=0,\"\",_xlfn.CONCAT(Calcs!D99,\" \",Calcs!E99))","v":""},{"$f":"IF(Calcs!L99=0,\"\",Calcs!M99)","v":""}]
[{"$f":"IF(Calcs!L100=0,\"\",_xlfn.CONCAT(IMDIV(Calcs!C100,2),\" X \",Calcs!A100))","v":""},{"$f":"IF(Calcs!L100=0,\"\",_xlfn.CONCAT(Calcs!D100,\" \",Calcs!E100))","v":""},{"$f":"IF(Calcs!L100=0,\"\",Calcs!M100)","v":""}]
[{"$f":"IF(Calcs!L101=0,\"\",_xlfn.CONCAT(IMDIV(Calcs!C101,2),\" X \",Calcs!A101))","v":""},{"$f":"IF(Calcs!L101=0,\"\",_xlfn.CONCAT(Calcs!D101,\" \",Calcs!E101))","v":""},{"$f":"IF(Calcs!L101=0,\"\",Calcs!M101)","v":""}]
[{"$f":"IF(Calcs!L102=0,\"\",_xlfn.CONCAT(IMDIV(Calcs!C102,2),\" X \",Calcs!A102))","v":""},{"$f":"IF(Calcs!L102=0,\"\",_xlfn.CONCAT(Calcs!D102,\" \",Calcs!E102))","v":""},{"$f":"IF(Calcs!L102=0,\"\",Calcs!M102)","v":""}]
[{"$f":"IF(Calcs!L103=0,\"\",_xlfn.CONCAT(IMDIV(Calcs!C103,2),\" X \",Calcs!A103))","v":""},{"$f":"IF(Calcs!L103=0,\"\",_xlfn.CONCAT(Calcs!D103,\" \",Calcs!E103))","v":""},{"$f":"IF(Calcs!L103=0,\"\",Calcs!M103)","v":""}]
[{"$f":"IF(Calcs!L104=0,\"\",_xlfn.CONCAT(IMDIV(Calcs!C104,2),\" X \",Calcs!A104))","v":""},{"$f":"IF(Calcs!L104=0,\"\",_xlfn.CONCAT(Calcs!D104,\" \",Calcs!E104))","v":""},{"$f":"IF(Calcs!L104=0,\"\",Calcs!M104)","v":""}]
[{"$f":"IF(Calcs!L105=0,\"\",_xlfn.CONCAT(IMDIV(Calcs!C105,2),\" X \",Calcs!A105))","v":""},{"$f":"IF(Calcs!L105=0,\"\",_xlfn.CONCAT(Calcs!D105,\" \",Calcs!E105))","v":""},{"$f":"IF(Calcs!L105=0,\"\",Calcs!M105)","v":""}]
[{"$f":"IF(Calcs!L106=0,\"\",_xlfn.CONCAT(IMDIV(Calcs!C106,2),\" X \",Calcs!A106))","v":""},{"$f":"IF(Calcs!L106=0,\"\",_xlfn.CONCAT(Calcs!D106,\" \",Calcs!E106))","v":""},{"$f":"IF(Calcs!L106=0,\"\",Calcs!M106)","v":""}]
[{"$f":"IF(Calcs!L107=0,\"\",_xlfn.CONCAT(IMDIV(Calcs!C107,2),\" X \",Calcs!A107))","v":""},{"$f":"IF(Calcs!L107=0,\"\",_xlfn.CONCAT(Calcs!D107,\" \",Calcs!E107))","v":""},{"$f":"IF(Calcs!L107=0,\"\",Calcs!M107)","v":""}]
[{"$f":"IF(Calcs!L108=0,\"\",_xlfn.CONCAT(IMDIV(Calcs!C108,2),\" X \",Calcs!A108))","v":""},{"$f":"IF(Calcs!L108=0,\"\",_xlfn.CONCAT(Calcs!D108,\" \",Calcs!E108))","v":""},{"$f":"IF(Calcs!L108=0,\"\",Calcs!M108)","v":""}]
[{"$f":"IF(Calcs!L109=0,\"\",_xlfn.CONCAT(IMDIV(Calcs!C109,2),\" X \",Calcs!A109))","v":""},{"$f":"IF(Calcs!L109=0,\"\",_xlfn.CONCAT(Calcs!D109,\" \",Calcs!E109))","v":""},{"$f":"IF(Calcs!L109=0,\"\",Calcs!M109)","v":""}]
[{"$f":"IF(Calcs!L110=0,\"\",_xlfn.CONCAT(IMDIV(Calcs!C110,2),\" X \",Calcs!A110))","v":""},{"$f":"IF(Calcs!L110=0,\"\",_xlfn.CONCAT(Calcs!D110,\" \",Calcs!E110))","v":""},{"$f":"IF(Calcs!L110=0,\"\",Calcs!M110)","v":""}]
[{"$f":"IF(Calcs!L111=0,\"\",_xlfn.CONCAT(IMDIV(Calcs!C111,2),\" X \",Calcs!A111))","v":""},{"$f":"IF(Calcs!L111=0,\"\",_xlfn.CONCAT(Calcs!D111,\" \",Calcs!E111))","v":""},{"$f":"IF(Calcs!L111=0,\"\",Calcs!M111)","v":""}]
[{"$f":"IF(Calcs!L112=0,\"\",_xlfn.CONCAT(IMDIV(Calcs!C112,2),\" X \",Calcs!A112))","v":""},{"$f":"IF(Calcs!L112=0,\"\",_xlfn.CONCAT(Calcs!D112,\" \",Calcs!E112))","v":""},{"$f":"IF(Calcs!L112=0,\"\",Calcs!M112)","v":""}]
[{"$f":"IF(Calcs!L113=0,\"\",_xlfn.CONCAT(IMDIV(Calcs!C113,2),\" X \",Calcs!A113))","v":""},{"$f":"IF(Calcs!L113=0,\"\",_xlfn.CONCAT(Calcs!D113,\" \",Calcs!E113))","v":""},{"$f":"IF(Calcs!L113=0,\"\",Calcs!M113)","v":""}]
[{"$f":"IF(Calcs!L114=0,\"\",_xlfn.CONCAT(IMDIV(Calcs!C114,2),\" X \",Calcs!A114))","v":""},{"$f":"IF(Calcs!L114=0,\"\",_xlfn.CONCAT(Calcs!D114,\" \",Calcs!E114))","v":""},{"$f":"IF(Calcs!L114=0,\"\",Calcs!M114)","v":""}]
[{"$f":"IF(Calcs!L115=0,\"\",_xlfn.CONCAT(IMDIV(Calcs!C115,2),\" X \",Calcs!A115))","v":""},{"$f":"IF(Calcs!L115=0,\"\",_xlfn.CONCAT(Calcs!D115,\" \",Calcs!E115))","v":""},{"$f":"IF(Calcs!L115=0,\"\",Calcs!M115)","v":""}]
[{"$f":"IF(Calcs!L116=0,\"\",_xlfn.CONCAT(IMDIV(Calcs!C116,2),\" X \",Calcs!A116))","v":""},{"$f":"IF(Calcs!L116=0,\"\",_xlfn.CONCAT(Calcs!D116,\" \",Calcs!E116))","v":""},{"$f":"IF(Calcs!L116=0,\"\",Calcs!M116)","v":""}]
[{"$f":"IF(Calcs!L117=0,\"\",_xlfn.CONCAT(IMDIV(Calcs!C117,2),\" X \",Calcs!A117))","v":""},{"$f":"IF(Calcs!L117=0,\"\",_xlfn.CONCAT(Calcs!D117,\" \",Calcs!E117))","v":""},{"$f":"IF(Calcs!L117=0,\"\",Calcs!M117)","v":""}]
[{"$f":"IF(Calcs!L118=0,\"\",_xlfn.CONCAT(IMDIV(Calcs!C118,2),\" X \",Calcs!A118))","v":""},{"$f":"IF(Calcs!L118=0,\"\",_xlfn.CONCAT(Calcs!D118,\" \",Calcs!E118))","v":""},{"$f":"IF(Calcs!L118=0,\"\",Calcs!M118)","v":""}]
[{"$f":"IF(Calcs!L119=0,\"\",_xlfn.CONCAT(IMDIV(Calcs!C119,2),\" X \",Calcs!A119))","v":""},{"$f":"IF(Calcs!L119=0,\"\",_xlfn.CONCAT(Calcs!D119,\" \",Calcs!E119))","v":""},{"$f":"IF(Calcs!L119=0,\"\",Calcs!M119)","v":""}]
[{"$f":"IF(Calcs!L120=0,\"\",_xlfn.CONCAT(IMDIV(Calcs!C120,2),\" X \",Calcs!A120))","v":""},{"$f":"IF(Calcs!L120=0,\"\",_xlfn.CONCAT(Calcs!D120,\" \",Calcs!E120))","v":""},{"$f":"IF(Calcs!L120=0,\"\",Calcs!M120)","v":""}]
[{"$f":"IF(Calcs!L121=0,\"\",_xlfn.CONCAT(IMDIV(Calcs!C121,2),\" X \",Calcs!A121))","v":""},{"$f":"IF(Calcs!L121=0,\"\",_xlfn.CONCAT(Calcs!D121,\" \",Calcs!E121))","v":""},{"$f":"IF(Calcs!L121=0,\"\",Calcs!M121)","v":""}]
[{"$f":"IF(Calcs!L122=0,\"\",_xlfn.CONCAT(IMDIV(Calcs!C122,2),\" X \",Calcs!A122))","v":""},{"$f":"IF(Calcs!L122=0,\"\",_xlfn.CONCAT(Calcs!D122,\" \",Calcs!E122))","v":""},{"$f":"IF(Calcs!L122=0,\"\",Calcs!M122)","v":""}]
[{"$f":"IF(Calcs!L123=0,\"\",_xlfn.CONCAT(IMDIV(Calcs!C123,2),\" X \",Calcs!A123))","v":""},{"$f":"IF(Calcs!L123=0,\"\",_xlfn.CONCAT(Calcs!D123,\" \",Calcs!E123))","v":""},{"$f":"IF(Calcs!L123=0,\"\",Calcs!M123)","v":""}]
[{"$f":"IF(Calcs!L124=0,\"\",_xlfn.CONCAT(IMDIV(Calcs!C124,2),\" X \",Calcs!A124))","v":""},{"$f":"IF(Calcs!L124=0,\"\",_xlfn.CONCAT(Calcs!D124,\" \",Calcs!E124))","v":""},{"$f":"IF(Calcs!L124=0,\"\",Calcs!M124)","v":""}]
[{"$f":"IF(Calcs!L125=0,\"\",_xlfn.CONCAT(IMDIV(Calcs!C125,2),\" X \",Calcs!A125))","v":""},{"$f":"IF(Calcs!L125=0,\"\",_xlfn.CONCAT(Calcs!D125,\" \",Calcs!E125))","v":""},{"$f":"IF(Calcs!L125=0,\"\",Calcs!M125)","v":""}]
["Commingled"]
[{"$f":"IF(Calcs!L45=0,\"\",_xlfn.CONCAT(Calcs!C45,\" X \",Calcs!A45))","v":""},{"$f":"IF(Calcs!L45=0,\"\",_xlfn.CONCAT(Calcs!D45,\" \",Calcs!E45))","v":""},{"$f":"IF(Calcs!L45=0,\"\",Calcs!L45)","v":""}]
[{"$f":"IF(Calcs!L46=0,\"\",_xlfn.CONCAT(Calcs!C46,\" X \",Calcs!A46))","v":""},{"$f":"IF(Calcs!L46=0,\"\",_xlfn.CONCAT(Calcs!D46,\" \",Calcs!E46))","v":""},{"$f":"IF(Calcs!L46=0,\"\",Calcs!L46)","v":""}]
[{"$f":"IF(Calcs!L47=0,\"\",_xlfn.CONCAT(Calcs!C47,\" X \",Calcs!A47))","v":""},{"$f":"IF(Calcs!L47=0,\"\",_xlfn.CONCAT(Calcs!D47,\" \",Calcs!E47))","v":""},{"$f":"IF(Calcs!L47=0,\"\",Calcs!L47)","v":""}]
[{"$f":"IF(Calcs!L48=0,\"\",_xlfn.CONCAT(Calcs!C48,\" X \",Calcs!A48))","v":""},{"$f":"IF(Calcs!L48=0,\"\",_xlfn.CONCAT(Calcs!D48,\" \",Calcs!E48))","v":""},{"$f":"IF(Calcs!L48=0,\"\",Calcs!L48)","v":""}]
[{"$f":"IF(Calcs!L49=0,\"\",_xlfn.CONCAT(Calcs!C49,\" X \",Calcs!A49))","v":""},{"$f":"IF(Calcs!L49=0,\"\",_xlfn.CONCAT(Calcs!D49,\" \",Calcs!E49))","v":""},{"$f":"IF(Calcs!L49=0,\"\",Calcs!L49)","v":""}]
[{"$f":"IF(Calcs!L50=0,\"\",_xlfn.CONCAT(Calcs!C50,\" X \",Calcs!A50))","v":""},{"$f":"IF(Calcs!L50=0,\"\",_xlfn.CONCAT(Calcs!D50,\" \",Calcs!E50))","v":""},{"$f":"IF(Calcs!L50=0,\"\",Calcs!L50)","v":""}]
[{"$f":"IF(Calcs!L51=0,\"\",_xlfn.CONCAT(Calcs!C51,\" X \",Calcs!A51))","v":""},{"$f":"IF(Calcs!L51=0,\"\",_xlfn.CONCAT(Calcs!D51,\" \",Calcs!E51))","v":""},{"$f":"IF(Calcs!L51=0,\"\",Calcs!L51)","v":""}]
[{"$f":"IF(Calcs!L52=0,\"\",_xlfn.CONCAT(Calcs!C52,\" X \",Calcs!A52))","v":""},{"$f":"IF(Calcs!L52=0,\"\",_xlfn.CONCAT(Calcs!D52,\" \",Calcs!E52))","v":""},{"$f":"IF(Calcs!L52=0,\"\",Calcs!L52)","v":""}]
[{"$f":"IF(Calcs!L53=0,\"\",_xlfn.CONCAT(Calcs!C53,\" X \",Calcs!A53))","v":""},{"$f":"IF(Calcs!L53=0,\"\",_xlfn.CONCAT(Calcs!D53,\" \",Calcs!E53))","v":""},{"$f":"IF(Calcs!L53=0,\"\",Calcs!L53)","v":""}]
[{"$f":"IF(Calcs!L54=0,\"\",_xlfn.CONCAT(Calcs!C54,\" X \",Calcs!A54))","v":""},{"$f":"IF(Calcs!L54=0,\"\",_xlfn.CONCAT(Calcs!D54,\" \",Calcs!E54))","v":""},{"$f":"IF(Calcs!L54=0,\"\",Calcs!L54)","v":""}]
[{"$f":"IF(Calcs!L55=0,\"\",_xlfn.CONCAT(Calcs!C55,\" X \",Calcs!A55))","v":""},{"$f":"IF(Calcs!L55=0,\"\",_xlfn.CONCAT(Calcs!D55,\" \",Calcs!E55))","v":""},{"$f":"IF(Calcs!L55=0,\"\",Calcs!L55)","v":""}]
[{"$f":"IF(Calcs!L56=0,\"\",_xlfn.CONCAT(Calcs!C56,\" X \",Calcs!A56))","v":""},{"$f":"IF(Calcs!L56=0,\"\",_xlfn.CONCAT(Calcs!D56,\" \",Calcs!E56))","v":""},{"$f":"IF(Calcs!L56=0,\"\",Calcs!L56)","v":""}]
[{"$f":"IF(Calcs!L57=0,\"\",_xlfn.CONCAT(Calcs!C57,\" X \",Calcs!A57))","v":""},{"$f":"IF(Calcs!L57=0,\"\",_xlfn.CONCAT(Calcs!D57,\" \",Calcs!E57))","v":""},{"$f":"IF(Calcs!L57=0,\"\",Calcs!L57)","v":""}]
[{"$f":"IF(Calcs!L58=0,\"\",_xlfn.CONCAT(Calcs!C58,\" X \",Calcs!A58))","v":""},{"$f":"IF(Calcs!L58=0,\"\",_xlfn.CONCAT(Calcs!D58,\" \",Calcs!E58))","v":""},{"$f":"IF(Calcs!L58=0,\"\",Calcs!L58)","v":""}]
[{"$f":"IF(Calcs!L59=0,\"\",_xlfn.CONCAT(Calcs!C59,\" X \",Calcs!A59))","v":""},{"$f":"IF(Calcs!L59=0,\"\",_xlfn.CONCAT(Calcs!D59,\" \",Calcs!E59))","v":""},{"$f":"IF(Calcs!L59=0,\"\",Calcs!L59)","v":""}]
[{"$f":"IF(Calcs!L60=0,\"\",_xlfn.CONCAT(Calcs!C60,\" X \",Calcs!A60))","v":""},{"$f":"IF(Calcs!L60=0,\"\",_xlfn.CONCAT(Calcs!D60,\" \",Calcs!E60))","v":""},{"$f":"IF(Calcs!L60=0,\"\",Calcs!L60)","v":""}]
[{"$f":"IF(Calcs!L61=0,\"\",_xlfn.CONCAT(Calcs!C61,\" X \",Calcs!A61))","v":""},{"$f":"IF(Calcs!L61=0,\"\",_xlfn.CONCAT(Calcs!D61,\" \",Calcs!E61))","v":""},{"$f":"IF(Calcs!L61=0,\"\",Calcs!L61)","v":""}]
[{"$f":"IF(Calcs!L62=0,\"\",_xlfn.CONCAT(Calcs!C62,\" X \",Calcs!A62))","v":""},{"$f":"IF(Calcs!L62=0,\"\",_xlfn.CONCAT(Calcs!D62,\" \",Calcs!E62))","v":""},{"$f":"IF(Calcs!L62=0,\"\",Calcs!L62)","v":""}]
[{"$f":"IF(Calcs!L63=0,\"\",_xlfn.CONCAT(Calcs!C63,\" X \",Calcs!A63))","v":""},{"$f":"IF(Calcs!L63=0,\"\",_xlfn.CONCAT(Calcs!D63,\" \",Calcs!E63))","v":""},{"$f":"IF(Calcs!L63=0,\"\",Calcs!L63)","v":""}]
[{"$f":"IF(Calcs!L64=0,\"\",_xlfn.CONCAT(Calcs!C64,\" X \",Calcs!A64))","v":""},{"$f":"IF(Calcs!L64=0,\"\",_xlfn.CONCAT(Calcs!D64,\" \",Calcs!E64))","v":""},{"$f":"IF(Calcs!L64=0,\"\",Calcs!L64)","v":""}]
[{"$f":"IF(Calcs!L65=0,\"\",_xlfn.CONCAT(Calcs!C65,\" X \",Calcs!A65))","v":""},{"$f":"IF(Calcs!L65=0,\"\",_xlfn.CONCAT(Calcs!D65,\" \",Calcs!E65))","v":""},{"$f":"IF(Calcs!L65=0,\"\",Calcs!L65)","v":""}]
[{"$f":"IF(Calcs!L66=0,\"\",_xlfn.CONCAT(Calcs!C66,\" X \",Calcs!A66))","v":""},{"$f":"IF(Calcs!L66=0,\"\",_xlfn.CONCAT(Calcs!D66,\" \",Calcs!E66))","v":""},{"$f":"IF(Calcs!L66=0,\"\",Calcs!L66)","v":""}]
[{"$f":"IF(Calcs!L67=0,\"\",_xlfn.CONCAT(Calcs!C67,\" X \",Calcs!A67))","v":""},{"$f":"IF(Calcs!L67=0,\"\",_xlfn.CONCAT(Calcs!D67,\" \",Calcs!E67))","v":""},{"$f":"IF(Calcs!L67=0,\"\",Calcs!L67)","v":""}]
[{"$f":"IF(Calcs!L68=0,\"\",_xlfn.CONCAT(Calcs!C68,\" X \",Calcs!A68))","v":""},{"$f":"IF(Calcs!L68=0,\"\",_xlfn.CONCAT(Calcs!D68,\" \",Calcs!E68))","v":""},{"$f":"IF(Calcs!L68=0,\"\",Calcs!L68)","v":""}]
[{"$f":"IF(Calcs!L69=0,\"\",_xlfn.CONCAT(Calcs!C69,\" X \",Calcs!A69))","v":""},{"$f":"IF(Calcs!L69=0,\"\",_xlfn.CONCAT(Calcs!D69,\" \",Calcs!E69))","v":""},{"$f":"IF(Calcs!L69=0,\"\",Calcs!L69)","v":""}]
[{"$f":"IF(Calcs!L70=0,\"\",_xlfn.CONCAT(Calcs!C70,\" X \",Calcs!A70))","v":""},{"$f":"IF(Calcs!L70=0,\"\",_xlfn.CONCAT(Calcs!D70,\" \",Calcs!E70))","v":""},{"$f":"IF(Calcs!L70=0,\"\",Calcs!L70)","v":""}]
[{"$f":"IF(Calcs!L71=0,\"\",_xlfn.CONCAT(Calcs!C71,\" X \",Calcs!A71))","v":""},{"$f":"IF(Calcs!L71=0,\"\",_xlfn.CONCAT(Calcs!D71,\" \",Calcs!E71))","v":""},{"$f":"IF(Calcs!L71=0,\"\",Calcs!L71)","v":""}]
[{"$f":"IF(Calcs!L72=0,\"\",_xlfn.CONCAT(Calcs!C72,\" X \",Calcs!A72))","v":""},{"$f":"IF(Calcs!L72=0,\"\",_xlfn.CONCAT(Calcs!D72,\" \",Calcs!E72))","v":""},{"$f":"IF(Calcs!L72=0,\"\",Calcs!L72)","v":""}]
[{"$f":"IF(Calcs!L73=0,\"\",_xlfn.CONCAT(Calcs!C73,\" X \",Calcs!A73))","v":""},{"$f":"IF(Calcs!L73=0,\"\",_xlfn.CONCAT(Calcs!D73,\" \",Calcs!E73))","v":""},{"$f":"IF(Calcs!L73=0,\"\",Calcs!L73)","v":""}]
[{"$f":"IF(Calcs!L74=0,\"\",_xlfn.CONCAT(Calcs!C74,\" X \",Calcs!A74))","v":""},{"$f":"IF(Calcs!L74=0,\"\",_xlfn.CONCAT(Calcs!D74,\" \",Calcs!E74))","v":""},{"$f":"IF(Calcs!L74=0,\"\",Calcs!L74)","v":""}]
[{"$f":"IF(Calcs!L75=0,\"\",_xlfn.CONCAT(Calcs!C75,\" X \",Calcs!A75))","v":""},{"$f":"IF(Calcs!L75=0,\"\",_xlfn.CONCAT(Calcs!D75,\" \",Calcs!E75))","v":""},{"$f":"IF(Calcs!L75=0,\"\",Calcs!L75)","v":""}]
[{"$f":"IF(Calcs!L76=0,\"\",_xlfn.CONCAT(Calcs!C76,\" X \",Calcs!A76))","v":""},{"$f":"IF(Calcs!L76=0,\"\",_xlfn.CONCAT(Calcs!D76,\" \",Calcs!E76))","v":""},{"$f":"IF(Calcs!L76=0,\"\",Calcs!L76)","v":""}]
[{"$f":"IF(Calcs!L77=0,\"\",_xlfn.CONCAT(Calcs!C77,\" X \",Calcs!A77))","v":""},{"$f":"IF(Calcs!L77=0,\"\",_xlfn.CONCAT(Calcs!D77,\" \",Calcs!E77))","v":""},{"$f":"IF(Calcs!L77=0,\"\",Calcs!L77)","v":""}]
[{"$f":"IF(Calcs!L78=0,\"\",_xlfn.CONCAT(Calcs!C78,\" X \",Calcs!A78))","v":""},{"$f":"IF(Calcs!L78=0,\"\",_xlfn.CONCAT(Calcs!D78,\" \",Calcs!E78))","v":""},{"$f":"IF(Calcs!L78=0,\"\",Calcs!L78)","v":""}]
[{"$f":"IF(Calcs!L79=0,\"\",_xlfn.CONCAT(Calcs!C79,\" X \",Calcs!A79))","v":""},{"$f":"IF(Calcs!L79=0,\"\",_xlfn.CONCAT(Calcs!D79,\" \",Calcs!E79))","v":""},{"$f":"IF(Calcs!L79=0,\"\",Calcs!L79)","v":""}]
[{"$f":"IF(Calcs!L80=0,\"\",_xlfn.CONCAT(Calcs!C80,\" X \",Calcs!A80))","v":""},{"$f":"IF(Calcs!L80=0,\"\",_xlfn.CONCAT(Calcs!D80,\" \",Calcs!E80))","v":""},{"$f":"IF(Calcs!L80=0,\"\",Calcs!L80)","v":""}]
[{"$f":"IF(Calcs!L81=0,\"\",_xlfn.CONCAT(Calcs!C81,\" X \",Calcs!A81))","v":""},{"$f":"IF(Calcs!L81=0,\"\",_xlfn.CONCAT(Calcs!D81,\" \",Calcs!E81))","v":""},{"$f":"IF(Calcs!L81=0,\"\",Calcs!L81)","v":""}]
[{"$f":"IF(Calcs!L82=0,\"\",_xlfn.CONCAT(Calcs!C82,\" X \",Calcs!A82))","v":""},{"$f":"IF(Calcs!L82=0,\"\",_xlfn.CONCAT(Calcs!D82,\" \",Calcs!E82))","v":""},{"$f":"IF(Calcs!L82=0,\"\",Calcs!L82)","v":""}]
[{"$f":"IF(Calcs!L83=0,\"\",_xlfn.CONCAT(Calcs!C83,\" X \",Calcs!A83))","v":""},{"$f":"IF(Calcs!L83=0,\"\",_xlfn.CONCAT(Calcs!D83,\" \",Calcs!E83))","v":""},{"$f":"IF(Calcs!L83=0,\"\",Calcs!L83)","v":""}]
[{"$f":"IF(Calcs!L84=0,\"\",_xlfn.CONCAT(Calcs!C84,\" X \",Calcs!A84))","v":""},{"$f":"IF(Calcs!L84=0,\"\",_xlfn.CONCAT(Calcs!D84,\" \",Calcs!E84))","v":""},{"$f":"IF(Calcs!L84=0,\"\",Calcs!L84)","v":""}]
[{"$f":"IF(Calcs!L86=0,\"\",_xlfn.CONCAT(IMDIV(Calcs!C86,2),\" X \",Calcs!A86))","v":""},{"$f":"IF(Calcs!L86=0,\"\",_xlfn.CONCAT(Calcs!D86,\" \",Calcs!E86))","v":""},{"$f":"IF(Calcs!L86=0,\"\",Calcs!N86)","v":""}]
[{"$f":"IF(Calcs!L87=0,\"\",_xlfn.CONCAT(IMDIV(Calcs!C87,2),\" X \",Calcs!A87))","v":""},{"$f":"IF(Calcs!L87=0,\"\",_xlfn.CONCAT(Calcs!D87,\" \",Calcs!E87))","v":""},{"$f":"IF(Calcs!L87=0,\"\",Calcs!N87)","v":""}]
[{"$f":"IF(Calcs!L88=0,\"\",_xlfn.CONCAT(IMDIV(Calcs!C88,2),\" X \",Calcs!A88))","v":""},{"$f":"IF(Calcs!L88=0,\"\",_xlfn.CONCAT(Calcs!D88,\" \",Calcs!E88))","v":""},{"$f":"IF(Calcs!L88=0,\"\",Calcs!N88)","v":""}]
[{"$f":"IF(Calcs!L89=0,\"\",_xlfn.CONCAT(IMDIV(Calcs!C89,2),\" X \",Calcs!A89))","v":""},{"$f":"IF(Calcs!L89=0,\"\",_xlfn.CONCAT(Calcs!D89,\" \",Calcs!E89))","v":""},{"$f":"IF(Calcs!L89=0,\"\",Calcs!N89)","v":""}]
[{"$f":"IF(Calcs!L90=0,\"\",_xlfn.CONCAT(IMDIV(Calcs!C90,2),\" X \",Calcs!A90))","v":""},{"$f":"IF(Calcs!L90=0,\"\",_xlfn.CONCAT(Calcs!D90,\" \",Calcs!E90))","v":""},{"$f":"IF(Calcs!L90=0,\"\",Calcs!N90)","v":""}]
[{"$f":"IF(Calcs!L91=0,\"\",_xlfn.CONCAT(IMDIV(Calcs!C91,2),\" X \",Calcs!A91))","v":""},{"$f":"IF(Calcs!L91=0,\"\",_xlfn.CONCAT(Calcs!D91,\" \",Calcs!E91))","v":""},{"$f":"IF(Calcs!L91=0,\"\",Calcs!N91)","v":""}]
[{"$f":"IF(Calcs!L92=0,\"\",_xlfn.CONCAT(IMDIV(Calcs!C92,2),\" X \",Calcs!A92))","v":""},{"$f":"IF(Calcs!L92=0,\"\",_xlfn.CONCAT(Calcs!D92,\" \",Calcs!E92))","v":""},{"$f":"IF(Calcs!L92=0,\"\",Calcs!N92)","v":""}]
[{"$f":"IF(Calcs!L93=0,\"\",_xlfn.CONCAT(IMDIV(Calcs!C93,2),\" X \",Calcs!A93))","v":""},{"$f":"IF(Calcs!L93=0,\"\",_xlfn.CONCAT(Calcs!D93,\" \",Calcs!E93))","v":""},{"$f":"IF(Calcs!L93=0,\"\",Calcs!N93)","v":""}]
[{"$f":"IF(Calcs!L94=0,\"\",_xlfn.CONCAT(IMDIV(Calcs!C94,2),\" X \",Calcs!A94))","v":""},{"$f":"IF(Calcs!L94=0,\"\",_xlfn.CONCAT(Calcs!D94,\" \",Calcs!E94))","v":""},{"$f":"IF(Calcs!L94=0,\"\",Calcs!N94)","v":""}]
[{"$f":"IF(Calcs!L95=0,\"\",_xlfn.CONCAT(IMDIV(Calcs!C95,2),\" X \",Calcs!A95))","v":""},{"$f":"IF(Calcs!L95=0,\"\",_xlfn.CONCAT(Calcs!D95,\" \",Calcs!E95))","v":""},{"$f":"IF(Calcs!L95=0,\"\",Calcs!N95)","v":""}]
[{"$f":"IF(Calcs!L96=0,\"\",_xlfn.CONCAT(IMDIV(Calcs!C96,2),\" X \",Calcs!A96))","v":""},{"$f":"IF(Calcs!L96=0,\"\",_xlfn.CONCAT(Calcs!D96,\" \",Calcs!E96))","v":""},{"$f":"IF(Calcs!L96=0,\"\",Calcs!N96)","v":""}]
[{"$f":"IF(Calcs!L97=0,\"\",_xlfn.CONCAT(IMDIV(Calcs!C97,2),\" X \",Calcs!A97))","v":""},{"$f":"IF(Calcs!L97=0,\"\",_xlfn.CONCAT(Calcs!D97,\" \",Calcs!E97))","v":""},{"$f":"IF(Calcs!L97=0,\"\",Calcs!N97)","v":""}]
[{"$f":"IF(Calcs!L98=0,\"\",_xlfn.CONCAT(IMDIV(Calcs!C98,2),\" X \",Calcs!A98))","v":""},{"$f":"IF(Calcs!L98=0,\"\",_xlfn.CONCAT(Calcs!D98,\" \",Calcs!E98))","v":""},{"$f":"IF(Calcs!L98=0,\"\",Calcs!N98)","v":""}]
[{"$f":"IF(Calcs!L99=0,\"\",_xlfn.CONCAT(IMDIV(Calcs!C99,2),\" X \",Calcs!A99))","v":""},{"$f":"IF(Calcs!L99=0,\"\",_xlfn.CONCAT(Calcs!D99,\" \",Calcs!E99))","v":""},{"$f":"IF(Calcs!L99=0,\"\",Calcs!N99)","v":""}]
[{"$f":"IF(Calcs!L100=0,\"\",_xlfn.CONCAT(IMDIV(Calcs!C100,2),\" X \",Calcs!A100))","v":""},{"$f":"IF(Calcs!L100=0,\"\",_xlfn.CONCAT(Calcs!D100,\" \",Calcs!E100))","v":""},{"$f":"IF(Calcs!L100=0,\"\",Calcs!N100)","v":""}]
[{"$f":"IF(Calcs!L101=0,\"\",_xlfn.CONCAT(IMDIV(Calcs!C101,2),\" X \",Calcs!A101))","v":""},{"$f":"IF(Calcs!L101=0,\"\",_xlfn.CONCAT(Calcs!D101,\" \",Calcs!E101))","v":""},{"$f":"IF(Calcs!L101=0,\"\",Calcs!N101)","v":""}]
[{"$f":"IF(Calcs!L102=0,\"\",_xlfn.CONCAT(IMDIV(Calcs!C102,2),\" X \",Calcs!A102))","v":""},{"$f":"IF(Calcs!L102=0,\"\",_xlfn.CONCAT(Calcs!D102,\" \",Calcs!E102))","v":""},{"$f":"IF(Calcs!L102=0,\"\",Calcs!N102)","v":""}]
[{"$f":"IF(Calcs!L103=0,\"\",_xlfn.CONCAT(IMDIV(Calcs!C103,2),\" X \",Calcs!A103))","v":""},{"$f":"IF(Calcs!L103=0,\"\",_xlfn.CONCAT(Calcs!D103,\" \",Calcs!E103))","v":""},{"$f":"IF(Calcs!L103=0,\"\",Calcs!N103)","v":""}]
[{"$f":"IF(Calcs!L104=0,\"\",_xlfn.CONCAT(IMDIV(Calcs!C104,2),\" X \",Calcs!A104))","v":""},{"$f":"IF(Calcs!L104=0,\"\",_xlfn.CONCAT(Calcs!D104,\" \",Calcs!E104))","v":""},{"$f":"IF(Calcs!L104=0,\"\",Calcs!N104)","v":""}]
[{"$f":"IF(Calcs!L105=0,\"\",_xlfn.CONCAT(IMDIV(Calcs!C105,2),\" X \",Calcs!A105))","v":""},{"$f":"IF(Calcs!L105=0,\"\",_xlfn.CONCAT(Calcs!D105,\" \",Calcs!E105))","v":""},{"$f":"IF(Calcs!L105=0,\"\",Calcs!N105)","v":""}]
[{"$f":"IF(Calcs!L106=0,\"\",_xlfn.CONCAT(IMDIV(Calcs!C106,2),\" X \",Calcs!A106))","v":""},{"$f":"IF(Calcs!L106=0,\"\",_xlfn.CONCAT(Calcs!D106,\" \",Calcs!E106))","v":""},{"$f":"IF(Calcs!L106=0,\"\",Calcs!N106)","v":""}]
[{"$f":"IF(Calcs!L107=0,\"\",_xlfn.CONCAT(IMDIV(Calcs!C107,2),\" X \",Calcs!A107))","v":""},{"$f":"IF(Calcs!L107=0,\"\",_xlfn.CONCAT(Calcs!D107,\" \",Calcs!E107))","v":""},{"$f":"IF(Calcs!L107=0,\"\",Calcs!N107)","v":""}]
[{"$f":"IF(Calcs!L108=0,\"\",_xlfn.CONCAT(IMDIV(Calcs!C108,2),\" X \",Calcs!A108))","v":""},{"$f":"IF(Calcs!L108=0,\"\",_xlfn.CONCAT(Calcs!D108,\" \",Calcs!E108))","v":""},{"$f":"IF(Calcs!L108=0,\"\",Calcs!N108)","v":""}]
[{"$f":"IF(Calcs!L109=0,\"\",_xlfn.CONCAT(IMDIV(Calcs!C109,2),\" X \",Calcs!A109))","v":""},{"$f":"IF(Calcs!L109=0,\"\",_xlfn.CONCAT(Calcs!D109,\" \",Calcs!E109))","v":""},{"$f":"IF(Calcs!L109=0,\"\",Calcs!N109)","v":""}]
[{"$f":"IF(Calcs!L110=0,\"\",_xlfn.CONCAT(IMDIV(Calcs!C110,2),\" X \",Calcs!A110))","v":""},{"$f":"IF(Calcs!L110=0,\"\",_xlfn.CONCAT(Calcs!D110,\" \",Calcs!E110))","v":""},{"$f":"IF(Calcs!L110=0,\"\",Calcs!N110)","v":""}]
[{"$f":"IF(Calcs!L111=0,\"\",_xlfn.CONCAT(IMDIV(Calcs!C111,2),\" X \",Calcs!A111))","v":""},{"$f":"IF(Calcs!L111=0,\"\",_xlfn.CONCAT(Calcs!D111,\" \",Calcs!E111))","v":""},{"$f":"IF(Calcs!L111=0,\"\",Calcs!N111)","v":""}]
[{"$f":"IF(Calcs!L112=0,\"\",_xlfn.CONCAT(IMDIV(Calcs!C112,2),\" X \",Calcs!A112))","v":""},{"$f":"IF(Calcs!L112=0,\"\",_xlfn.CONCAT(Calcs!D112,\" \",Calcs!E112))","v":""},{"$f":"IF(Calcs!L112=0,\"\",Calcs!N112)","v":""}]
[{"$f":"IF(Calcs!L113=0,\"\",_xlfn.CONCAT(IMDIV(Calcs!C113,2),\" X \",Calcs!A113))","v":""},{"$f":"IF(Calcs!L113=0,\"\",_xlfn.CONCAT(Calcs!D113,\" \",Calcs!E113))","v":""},{"$f":"IF(Calcs!L113=0,\"\",Calcs!N113)","v":""}]
[{"$f":"IF(Calcs!L114=0,\"\",_xlfn.CONCAT(IMDIV(Calcs!C114,2),\" X \",Calcs!A114))","v":""},{"$f":"IF(Calcs!L114=0,\"\",_xlfn.CONCAT(Calcs!D114,\" \",Calcs!E114))","v":""},{"$f":"IF(Calcs!L114=0,\"\",Calcs!N114)","v":""}]
[{"$f":"IF(Calcs!L115=0,\"\",_xlfn.CONCAT(IMDIV(Calcs!C115,2),\" X \",Calcs!A115))","v":""},{"$f":"IF(Calcs!L115=0,\"\",_xlfn.CONCAT(Calcs!D115,\" \",Calcs!E115))","v":""},{"$f":"IF(Calcs!L115=0,\"\",Calcs!N115)","v":""}]
[{"$f":"IF(Calcs!L116=0,\"\",_xlfn.CONCAT(IMDIV(Calcs!C116,2),\" X \",Calcs!A116))","v":""},{"$f":"IF(Calcs!L116=0,\"\",_xlfn.CONCAT(Calcs!D116,\" \",Calcs!E116))","v":""},{"$f":"IF(Calcs!L116=0,\"\",Calcs!N116)","v":""}]
[{"$f":"IF(Calcs!L117=0,\"\",_xlfn.CONCAT(IMDIV(Calcs!C117,2),\" X \",Calcs!A117))","v":""},{"$f":"IF(Calcs!L117=0,\"\",_xlfn.CONCAT(Calcs!D117,\" \",Calcs!E117))","v":""},{"$f":"IF(Calcs!L117=0,\"\",Calcs!N117)","v":""}]
[{"$f":"IF(Calcs!L118=0,\"\",_xlfn.CONCAT(IMDIV(Calcs!C118,2),\" X \",Calcs!A118))","v":""},{"$f":"IF(Calcs!L118=0,\"\",_xlfn.CONCAT(Calcs!D118,\" \",Calcs!E118))","v":""},{"$f":"IF(Calcs!L118=0,\"\",Calcs!N118)","v":""}]
[{"$f":"IF(Calcs!L119=0,\"\",_xlfn.CONCAT(IMDIV(Calcs!C119,2),\" X \",Calcs!A119))","v":""},{"$f":"IF(Calcs!L119=0,\"\",_xlfn.CONCAT(Calcs!D119,\" \",Calcs!E119))","v":""},{"$f":"IF(Calcs!L119=0,\"\",Calcs!N119)","v":""}]
[{"$f":"IF(Calcs!L120=0,\"\",_xlfn.CONCAT(IMDIV(Calcs!C120,2),\" X \",Calcs!A120))","v":""},{"$f":"IF(Calcs!L120=0,\"\",_xlfn.CONCAT(Calcs!D120,\" \",Calcs!E120))","v":""},{"$f":"IF(Calcs!L120=0,\"\",Calcs!N120)","v":""}]
[{"$f":"IF(Calcs!L121=0,\"\",_xlfn.CONCAT(IMDIV(Calcs!C121,2),\" X \",Calcs!A121))","v":""},{"$f":"IF(Calcs!L121=0,\"\",_xlfn.CONCAT(Calcs!D121,\" \",Calcs!E121))","v":""},{"$f":"IF(Calcs!L121=0,\"\",Calcs!N121)","v":""}]
[{"$f":"IF(Calcs!L122=0,\"\",_xlfn.CONCAT(IMDIV(Calcs!C122,2),\" X \",Calcs!A122))","v":""},{"$f":"IF(Calcs!L122=0,\"\",_xlfn.CONCAT(Calcs!D122,\" \",Calcs!E122))","v":""},{"$f":"IF(Calcs!L122=0,\"\",Calcs!N122)","v":""}]
[{"$f":"IF(Calcs!L123=0,\"\",_xlfn.CONCAT(IMDIV(Calcs!C123,2),\" X \",Calcs!A123))","v":""},{"$f":"IF(Calcs!L123=0,\"\",_xlfn.CONCAT(Calcs!D123,\" \",Calcs!E123))","v":""},{"$f":"IF(Calcs!L123=0,\"\",Calcs!N123)","v":""}]
[{"$f":"IF(Calcs!L124=0,\"\",_xlfn.CONCAT(IMDIV(Calcs!C124,2),\" X \",Calcs!A124))","v":""},{"$f":"IF(Calcs!L124=0,\"\",_xlfn.CONCAT(Calcs!D124,\" \",Calcs!E124))","v":""},{"$f":"IF(Calcs!L124=0,\"\",Calcs!N124)","v":""}]
[{"$f":"IF(Calcs!L125=0,\"\",_xlfn.CONCAT(IMDIV(Calcs!C125,2),\" X \",Calcs!A125))","v":""},{"$f":"IF(Calcs!L125=0,\"\",_xlfn.CONCAT(Calcs!D125,\" \",Calcs!E125))","v":""},{"$f":"IF(Calcs!L125=0,\"\",Calcs!N125)","v":""}]
["Yard Trim"]
[{"$f":"IF('Report Calculator (Required)'!B400=0,\"\",_xlfn.CONCAT('Report Calculator (Required)'!B14,\" \",\"Acres\"))","v":""},{"$f":"IF(Calcs!D209=0,\"No Pickup\",_xlfn.CONCAT(Calcs!D209,\" \",Calcs!E209))","v":"No Pickup"},{"$f":"IF(Calcs!N209=0,\"\",Calcs!N209)","v":{"$error":"#VALUE!"}}]
["Trash"]
[{"$f":"IF(Calcs!L168=0,\"\",_xlfn.CONCAT(Calcs!C168,\" X \",Calcs!A168))","v":""},{"$f":"IF(Calcs!L168=0,\"\",_xlfn.CONCAT(Calcs!D168,\" \",Calcs!E168))","v":""},{"$f":"IF(Calcs!L168=0,\"\",Calcs!L168)","v":""}]
[{"$f":"IF(Calcs!L169=0,\"\",_xlfn.CONCAT(Calcs!C169,\" X \",Calcs!A169))","v":""},{"$f":"IF(Calcs!L169=0,\"\",_xlfn.CONCAT(Calcs!D169,\" \",Calcs!E169))","v":""},{"$f":"IF(Calcs!L169=0,\"\",Calcs!L169)","v":""}]
[{"$f":"IF(Calcs!L170=0,\"\",_xlfn.CONCAT(Calcs!C170,\" X \",Calcs!A170))","v":""},{"$f":"IF(Calcs!L170=0,\"\",_xlfn.CONCAT(Calcs!D170,\" \",Calcs!E170))","v":""},{"$f":"IF(Calcs!L170=0,\"\",Calcs!L170)","v":""}]
[{"$f":"IF(Calcs!L171=0,\"\",_xlfn.CONCAT(Calcs!C171,\" X \",Calcs!A171))","v":""},{"$f":"IF(Calcs!L171=0,\"\",_xlfn.CONCAT(Calcs!D171,\" \",Calcs!E171))","v":""},{"$f":"IF(Calcs!L171=0,\"\",Calcs!L171)","v":""}]
[{"$f":"IF(Calcs!L172=0,\"\",_xlfn.CONCAT(Calcs!C172,\" X \",Calcs!A172))","v":""},{"$f":"IF(Calcs!L172=0,\"\",_xlfn.CONCAT(Calcs!D172,\" \",Calcs!E172))","v":""},{"$f":"IF(Calcs!L172=0,\"\",Calcs!L172)","v":""}]
[{"$f":"IF(Calcs!L173=0,\"\",_xlfn.CONCAT(Calcs!C173,\" X \",Calcs!A173))","v":""},{"$f":"IF(Calcs!L173=0,\"\",_xlfn.CONCAT(Calcs!D173,\" \",Calcs!E173))","v":""},{"$f":"IF(Calcs!L173=0,\"\",Calcs!L173)","v":""}]
[{"$f":"IF(Calcs!L174=0,\"\",_xlfn.CONCAT(Calcs!C174,\" X \",Calcs!A174))","v":""},{"$f":"IF(Calcs!L174=0,\"\",_xlfn.CONCAT(Calcs!D174,\" \",Calcs!E174))","v":""},{"$f":"IF(Calcs!L174=0,\"\",Calcs!L174)","v":""}]
[{"$f":"IF(Calcs!L175=0,\"\",_xlfn.CONCAT(Calcs!C175,\" X \",Calcs!A175))","v":""},{"$f":"IF(Calcs!L175=0,\"\",_xlfn.CONCAT(Calcs!D175,\" \",Calcs!E175))","v":""},{"$f":"IF(Calcs!L175=0,\"\",Calcs!L175)","v":""}]
[{"$f":"IF(Calcs!L176=0,\"\",_xlfn.CONCAT(Calcs!C176,\" X \",Calcs!A176))","v":""},{"$f":"IF(Calcs!L176=0,\"\",_xlfn.CONCAT(Calcs!D176,\" \",Calcs!E176))","v":""},{"$f":"IF(Calcs!L176=0,\"\",Calcs!L176)","v":""}]
[{"$f":"IF(Calcs!L177=0,\"\",_xlfn.CONCAT(Calcs!C177,\" X \",Calcs!A177))","v":""},{"$f":"IF(Calcs!L177=0,\"\",_xlfn.CONCAT(Calcs!D177,\" \",Calcs!E177))","v":""},{"$f":"IF(Calcs!L177=0,\"\",Calcs!L177)","v":""}]
[{"$f":"IF(Calcs!L178=0,\"\",_xlfn.CONCAT(Calcs!C178,\" X \",Calcs!A178))","v":""},{"$f":"IF(Calcs!L178=0,\"\",_xlfn.CONCAT(Calcs!D178,\" \",Calcs!E178))","v":""},{"$f":"IF(Calcs!L178=0,\"\",Calcs!L178)","v":""}]
[{"$f":"IF(Calcs!L179=0,\"\",_xlfn.CONCAT(Calcs!C179,\" X \",Calcs!A179))","v":""},{"$f":"IF(Calcs!L179=0,\"\",_xlfn.CONCAT(Calcs!D179,\" \",Calcs!E179))","v":""},{"$f":"IF(Calcs!L179=0,\"\",Calcs!L179)","v":""}]
[{"$f":"IF(Calcs!L180=0,\"\",_xlfn.CONCAT(Calcs!C180,\" X \",Calcs!A180))","v":""},{"$f":"IF(Calcs!L180=0,\"\",_xlfn.CONCAT(Calcs!D180,\" \",Calcs!E180))","v":""},{"$f":"IF(Calcs!L180=0,\"\",Calcs!L180)","v":""}]
[{"$f":"IF(Calcs!L181=0,\"\",_xlfn.CONCAT(Calcs!C181,\" X \",Calcs!A181))","v":""},{"$f":"IF(Calcs!L181=0,\"\",_xlfn.CONCAT(Calcs!D181,\" \",Calcs!E181))","v":""},{"$f":"IF(Calcs!L181=0,\"\",Calcs!L181)","v":""}]
[{"$f":"IF(Calcs!L182=0,\"\",_xlfn.CONCAT(Calcs!C182,\" X \",Calcs!A182))","v":""},{"$f":"IF(Calcs!L182=0,\"\",_xlfn.CONCAT(Calcs!D182,\" \",Calcs!E182))","v":""},{"$f":"IF(Calcs!L182=0,\"\",Calcs!L182)","v":""}]
[{"$f":"IF(Calcs!L183=0,\"\",_xlfn.CONCAT(Calcs!C183,\" X \",Calcs!A183))","v":""},{"$f":"IF(Calcs!L183=0,\"\",_xlfn.CONCAT(Calcs!D183,\" \",Calcs!E183))","v":""},{"$f":"IF(Calcs!L183=0,\"\",Calcs!L183)","v":""}]
[{"$f":"IF(Calcs!L184=0,\"\",_xlfn.CONCAT(Calcs!C184,\" X \",Calcs!A184))","v":""},{"$f":"IF(Calcs!L184=0,\"\",_xlfn.CONCAT(Calcs!D184,\" \",Calcs!E184))","v":""},{"$f":"IF(Calcs!L184=0,\"\",Calcs!L184)","v":""}]
[{"$f":"IF(Calcs!L185=0,\"\",_xlfn.CONCAT(Calcs!C185,\" X \",Calcs!A185))","v":""},{"$f":"IF(Calcs!L185=0,\"\",_xlfn.CONCAT(Calcs!D185,\" \",Calcs!E185))","v":""},{"$f":"IF(Calcs!L185=0,\"\",Calcs!L185)","v":""}]
[{"$f":"IF(Calcs!L186=0,\"\",_xlfn.CONCAT(Calcs!C186,\" X \",Calcs!A186))","v":""},{"$f":"IF(Calcs!L186=0,\"\",_xlfn.CONCAT(Calcs!D186,\" \",Calcs!E186))","v":""},{"$f":"IF(Calcs!L186=0,\"\",Calcs!L186)","v":""}]
[{"$f":"IF(Calcs!L187=0,\"\",_xlfn.CONCAT(Calcs!C187,\" X \",Calcs!A187))","v":""},{"$f":"IF(Calcs!L187=0,\"\",_xlfn.CONCAT(Calcs!D187,\" \",Calcs!E187))","v":""},{"$f":"IF(Calcs!L187=0,\"\",Calcs!L187)","v":""}]
[{"$f":"IF(Calcs!L188=0,\"\",_xlfn.CONCAT(Calcs!C188,\" X \",Calcs!A188))","v":""},{"$f":"IF(Calcs!L188=0,\"\",_xlfn.CONCAT(Calcs!D188,\" \",Calcs!E188))","v":""},{"$f":"IF(Calcs!L188=0,\"\",Calcs!L188)","v":""}]
[{"$f":"IF(Calcs!L189=0,\"\",_xlfn.CONCAT(Calcs!C189,\" X \",Calcs!A189))","v":""},{"$f":"IF(Calcs!L189=0,\"\",_xlfn.CONCAT(Calcs!D189,\" \",Calcs!E189))","v":""},{"$f":"IF(Calcs!L189=0,\"\",Calcs!L189)","v":""}]
[{"$f":"IF(Calcs!L190=0,\"\",_xlfn.CONCAT(Calcs!C190,\" X \",Calcs!A190))","v":""},{"$f":"IF(Calcs!L190=0,\"\",_xlfn.CONCAT(Calcs!D190,\" \",Calcs!E190))","v":""},{"$f":"IF(Calcs!L190=0,\"\",Calcs!L190)","v":""}]
[{"$f":"IF(Calcs!L191=0,\"\",_xlfn.CONCAT(Calcs!C191,\" X \",Calcs!A191))","v":""},{"$f":"IF(Calcs!L191=0,\"\",_xlfn.CONCAT(Calcs!D191,\" \",Calcs!E191))","v":""},{"$f":"IF(Calcs!L191=0,\"\",Calcs!L191)","v":""}]
[{"$f":"IF(Calcs!L192=0,\"\",_xlfn.CONCAT(Calcs!C192,\" X \",Calcs!A192))","v":""},{"$f":"IF(Calcs!L192=0,\"\",_xlfn.CONCAT(Calcs!D192,\" \",Calcs!E192))","v":""},{"$f":"IF(Calcs!L192=0,\"\",Calcs!L192)","v":""}]
[{"$f":"IF(Calcs!L193=0,\"\",_xlfn.CONCAT(Calcs!C193,\" X \",Calcs!A193))","v":""},{"$f":"IF(Calcs!L193=0,\"\",_xlfn.CONCAT(Calcs!D193,\" \",Calcs!E193))","v":""},{"$f":"IF(Calcs!L193=0,\"\",Calcs!L193)","v":""}]
[{"$f":"IF(Calcs!L194=0,\"\",_xlfn.CONCAT(Calcs!C194,\" X \",Calcs!A194))","v":""},{"$f":"IF(Calcs!L194=0,\"\",_xlfn.CONCAT(Calcs!D194,\" \",Calcs!E194))","v":""},{"$f":"IF(Calcs!L194=0,\"\",Calcs!L194)","v":""}]
[{"$f":"IF(Calcs!L195=0,\"\",_xlfn.CONCAT(Calcs!C195,\" X \",Calcs!A195))","v":""},{"$f":"IF(Calcs!L195=0,\"\",_xlfn.CONCAT(Calcs!D195,\" \",Calcs!E195))","v":""},{"$f":"IF(Calcs!L195=0,\"\",Calcs!L195)","v":""}]
[{"$f":"IF(Calcs!L196=0,\"\",_xlfn.CONCAT(Calcs!C196,\" X \",Calcs!A196))","v":""},{"$f":"IF(Calcs!L196=0,\"\",_xlfn.CONCAT(Calcs!D196,\" \",Calcs!E196))","v":""},{"$f":"IF(Calcs!L196=0,\"\",Calcs!L196)","v":""}]
[{"$f":"IF(Calcs!L197=0,\"\",_xlfn.CONCAT(Calcs!C197,\" X \",Calcs!A197))","v":""},{"$f":"IF(Calcs!L197=0,\"\",_xlfn.CONCAT(Calcs!D197,\" \",Calcs!E197))","v":""},{"$f":"IF(Calcs!L197=0,\"\",Calcs!L197)","v":""}]
[{"$f":"IF(Calcs!L198=0,\"\",_xlfn.CONCAT(Calcs!C198,\" X \",Calcs!A198))","v":""},{"$f":"IF(Calcs!L198=0,\"\",_xlfn.CONCAT(Calcs!D198,\" \",Calcs!E198))","v":""},{"$f":"IF(Calcs!L198=0,\"\",Calcs!L198)","v":""}]
[{"$f":"IF(Calcs!L199=0,\"\",_xlfn.CONCAT(Calcs!C199,\" X \",Calcs!A199))","v":""},{"$f":"IF(Calcs!L199=0,\"\",_xlfn.CONCAT(Calcs!D199,\" \",Calcs!E199))","v":""},{"$f":"IF(Calcs!L199=0,\"\",Calcs!L199)","v":""}]
[{"$f":"IF(Calcs!L200=0,\"\",_xlfn.CONCAT(Calcs!C200,\" X \",Calcs!A200))","v":""},{"$f":"IF(Calcs!L200=0,\"\",_xlfn.CONCAT(Calcs!D200,\" \",Calcs!E200))","v":""},{"$f":"IF(Calcs!L200=0,\"\",Calcs!L200)","v":""}]
[{"$f":"IF(Calcs!L201=0,\"\",_xlfn.CONCAT(Calcs!C201,\" X \",Calcs!A201))","v":""},{"$f":"IF(Calcs!L201=0,\"\",_xlfn.CONCAT(Calcs!D201,\" \",Calcs!E201))","v":""},{"$f":"IF(Calcs!L201=0,\"\",Calcs!L201)","v":""}]
[{"$f":"IF(Calcs!L202=0,\"\",_xlfn.CONCAT(Calcs!C202,\" X \",Calcs!A202))","v":""},{"$f":"IF(Calcs!L202=0,\"\",_xlfn.CONCAT(Calcs!D202,\" \",Calcs!E202))","v":""},{"$f":"IF(Calcs!L202=0,\"\",Calcs!L202)","v":""}]
[{"$f":"IF(Calcs!L203=0,\"\",_xlfn.CONCAT(Calcs!C203,\" X \",Calcs!A203))","v":""},{"$f":"IF(Calcs!L203=0,\"\",_xlfn.CONCAT(Calcs!D203,\" \",Calcs!E203))","v":""},{"$f":"IF(Calcs!L203=0,\"\",Calcs!L203)","v":""}]
[{"$f":"IF(Calcs!L204=0,\"\",_xlfn.CONCAT(Calcs!C204,\" X \",Calcs!A204))","v":""},{"$f":"IF(Calcs!L204=0,\"\",_xlfn.CONCAT(Calcs!D204,\" \",Calcs!E204))","v":""},{"$f":"IF(Calcs!L204=0,\"\",Calcs!L204)","v":""}]
[{"$f":"IF(Calcs!L205=0,\"\",_xlfn.CONCAT(Calcs!C205,\" X \",Calcs!A205))","v":""},{"$f":"IF(Calcs!L205=0,\"\",_xlfn.CONCAT(Calcs!D205,\" \",Calcs!E205))","v":""},{"$f":"IF(Calcs!L205=0,\"\",Calcs!L205)","v":""}]
[{"$f":"IF(Calcs!L206=0,\"\",_xlfn.CONCAT(Calcs!C206,\" X \",Calcs!A206))","v":""},{"$f":"IF(Calcs!L206=0,\"\",_xlfn.CONCAT(Calcs!D206,\" \",Calcs!E206))","v":""},{"$f":"IF(Calcs!L206=0,\"\",Calcs!L206)","v":""}]
[{"$f":"IF(Calcs!L207=0,\"\",_xlfn.CONCAT(Calcs!C207,\" X \",Calcs!A207))","v":""},{"$f":"IF(Calcs!L207=0,\"\",_xlfn.CONCAT(Calcs!D207,\" \",Calcs!E207))","v":""},{"$f":"IF(Calcs!L207=0,\"\",Calcs!L207)","v":""}]
[]
[]
[]
[]
[]
[]
[]
[]
[]
[]
[]
[]
[]
[]
[]
[]
[]
[]
[]
[]
[]
[]
[]
[]
[]
[]
[]
[]
[]
[]
[]
[]
[]
[]
[]
[]
[]
[]
[]
[]
[]
[]
[]
[]
[]
[]
[]
[]
[]
[]
[]
[]
[]
[]
[]
[]
[]
[]
[]
[]
[]
[]
[]
[]
[]
[]
[]
[]
[]
[]
[]
[]
[]
[]
[]
[]
[]
[]
[]
[]
[]
[]
[]
[]
[]
[]
[]
["Voluntary Materials"]
[{"$f":"IF(Calcs!B298=0,\"\",Calcs!A298)","v":""},null,{"$f":"IF(Calcs!B298=0,\"\",Calcs!B298)","v":""}]
[{"$f":"IF(Calcs!B299=0,\"\",Calcs!A299)","v":""},null,{"$f":"IF(Calcs!B299=0,\"\",Calcs!B299)","v":""}]
[{"$f":"IF(Calcs!B300=0,\"\",Calcs!A300)","v":""},null,{"$f":"IF(Calcs!B300=0,\"\",Calcs!B300)","v":""}]
[{"$f":"IF(Calcs!B301=0,\"\",Calcs!A301)","v":""},null,{"$f":"IF(Calcs!B301=0,\"\",Calcs!B301)","v":""}]
[{"$f":"IF(Calcs!B302=0,\"\",Calcs!A302)","v":""},null,{"$f":"IF(Calcs!B302=0,\"\",Calcs!B302)","v":""}]
[{"$f":"IF(Calcs!B303=0,\"\",Calcs!A303)","v":""},null,{"$f":"IF(Calcs!B303=0,\"\",Calcs!B303)","v":""}]
[{"$f":"IF(Calcs!B304=0,\"\",Calcs!A304)","v":""},null,{"$f":"IF(Calcs!B304=0,\"\",Calcs!B304)","v":""}]
[{"$f":"IF(Calcs!B305=0,\"\",Calcs!A305)","v":""},null,{"$f":"IF(Calcs!B305=0,\"\",Calcs!B305)","v":""}]
[{"$f":"IF(Calcs!B306=0,\"\",Calcs!A306)","v":""},null,{"$f":"IF(Calcs!B306=0,\"\",Calcs!B306)","v":""}]
[{"$f":"IF(Calcs!B307=0,\"\",Calcs!A307)","v":""},null,{"$f":"IF(Calcs!B307=0,\"\",Calcs!B307)","v":""}]
[{"$f":"IF(Calcs!B308=0,\"\",Calcs!A308)","v":""},null,{"$f":"IF(Calcs!B308=0,\"\",Calcs!B308)","v":""}]
[{"$f":"IF(Calcs!B309=0,\"\",Calcs!A309)","v":""},null,{"$f":"IF(Calcs!B309=0,\"\",Calcs!B309)","v":""}]
[{"$f":"IF(Calcs!B310=0,\"\",Calcs!A310)","v":""},null,{"$f":"IF(Calcs!B310=0,\"\",Calcs!B310)","v":""}]
[{"$f":"IF(Calcs!B311=0,\"\",Calcs!A311)","v":""},null,{"$f":"IF(Calcs!B311=0,\"\",Calcs!B311)","v":""}]
[{"$f":"IF(Calcs!B312=0,\"\",Calcs!A312)","v":""},null,{"$f":"IF(Calcs!B312=0,\"\",Calcs!B312)","v":""}]
[{"$f":"IF(Calcs!B313=0,\"\",Calcs!A313)","v":""},null,{"$f":"IF(Calcs!B313=0,\"\",Calcs!B313)","v":""}]
[{"$f":"IF(Calcs!B314=0,\"\",Calcs!A314)","v":""},null,{"$f":"IF(Calcs!B314=0,\"\",Calcs!B314)","v":""}]
[{"$f":"IF(Calcs!B315=0,\"\",Calcs!A315)","v":""},null,{"$f":"IF(Calcs!B315=0,\"\",Calcs!B315)","v":""}]
[{"$f":"IF(Calcs!B316=0,\"\",Calcs!A316)","v":""},null,{"$f":"IF(Calcs!B316=0,\"\",Calcs!B316)","v":""}]
[{"$f":"IF(Calcs!B317=0,\"\",Calcs!A317)","v":""},null,{"$f":"IF(Calcs!B317=0,\"\",Calcs!B317)","v":""}]
[{"$f":"IF(Calcs!B318=0,\"\",Calcs!A318)","v":""},null,{"$f":"IF(Calcs!B318=0,\"\",Calcs!B318)","v":""}]
[{"$f":"IF(Calcs!B319=0,\"\",Calcs!A319)","v":""},null,{"$f":"IF(Calcs!B319=0,\"\",Calcs!B319)","v":""}]

{"sheet":"Lists","index":4,"n_rows":47,"n_cols":3,"rows_kept":47,"cut":false,"hidden":true,"merged":[]}
["I am filing for my business only. "]
["I am a property manager filing for one or more tenant(s) leasing property at a single site. "]
["I am filing from the Business Headquarters for multiple businesses in the County. "]
["I am a collector filing for my customer. "]
["I am a Program Specialist filing for the business(es) in my designated area. "]
[]
["County"]
["State"]
["Federal"]
["None of the above"]
[]
["Yes"]
["No"]
[]
["Dual Stream"]
["Single Stream"]
[]
["90-96 gallon container"]
["2-cubic yard dumpster"]
["4-cubic yard dumpster"]
["6-cubic yard dumpster"]
["8-cubic yard dumpster"]
["10-cubic yard roll-off"]
["20-cubic yard roll-off"]
["30-cubic yard roll-off"]
[]
["/week"]
["/month"]
["/year"]
[]
[]
["Large","2020-02-01","250+"]
["Medium","2020-03-01","100-249"]
["Small","2020-03-01",100]
["Property Owners of Multi-Tentant","2020-03-01"]
[]
[]
["gallon"]
["drum (55 gal)"]
[]
[]
["weeks"]
["months"]
["year"]
[]
["Hauled Away"]
["Left On-Site"]

{"sheet":"Calcs","index":5,"n_rows":319,"n_cols":14,"rows_kept":319,"cut":false,"hidden":true,"merged":[[0,0,0,2]]}
["Calculations"]
["Container Size","Weight","# Containers","# Pickups","Pickup Frequency","Pickup Per Week","Weeks (COVID-Adjusted)","Pickup Duration (Length)","Pickup Duration (Frequency)","Pickup Duration (Weeks)",null,"Total Yearly Pounds"]
["Mixed Paper"]
["90-96 gal Container",93,{"$f":"'Report Calculator (Required)'!B116","v":0},{"$f":"'Report Calculator (Required)'!B117","v":2},{"$f":"'Report Calculator (Required)'!C117","v":"/week"},{"$f":"IF(E4=\"/month\",IMDIV(D4,4.3),IF(E4=\"/week\",D4,IF(E4=\"/year\",IMDIV(D4,52),\"0\")))","v":2},{"$f":"52-'Report Calculator (Required)'!B17","v":52},{"$f":"'Report Calculator (Required)'!B132","v":1},{"$f":"'Report Calculator (Required)'!C132","v":"year"},{"$f":"IF(I4=\"months\",H4*4.3,IF(I4=\"year\",H4*52,IF(I4=\"weeks\",H4,\"0\")))","v":52},null,{"$f":"IF(J4=0,B4*C4*F4*G4,B4*C4*F4*J4)","v":0}]
["90-96 gal Container",93,{"$f":"'Report Calculator (Required)'!B135","v":0},{"$f":"'Report Calculator (Required)'!B136","v":1},{"$f":"'Report Calculator (Required)'!C136","v":"/week"},{"$f":"IF(E5=\"/month\",IMDIV(D5,4.3),IF(E5=\"/week\",D5,IF(E5=\"/year\",IMDIV(D5,52),\"0\")))","v":1},{"$f":"52-'Report Calculator (Required)'!B17","v":52},{"$f":"'Report Calculator (Required)'!B151","v":22},{"$f":"'Report Calculator (Required)'!C151","v":"weeks"},22,null,{"$f":"IF(J5=0,B5*C5*F5*G5,B5*C5*F5*J5)","v":0}]
["90-96 gal Container",93,{"$f":"'Report Calculator (Required)'!B154","v":0},{"$f":"'Report Calculator (Required)'!B155","v":0},{"$f":"'Report Calculator (Required)'!C155","v":0},"0",{"$f":"52-'Report Calculator (Required)'!B17","v":52},{"$f":"'Report Calculator (Required)'!B170","v":0},{"$f":"'Report Calculator (Required)'!C170","v":0},"0",null,0]
["90-96 gal Container",93,{"$f":"'Report Calculator (Required)'!B173","v":0},{"$f":"'Report Calculator (Required)'!B174","v":0},{"$f":"'Report Calculator (Required)'!C174","v":0},"0",{"$f":"52-'Report Calculator (Required)'!B17","v":52},{"$f":"'Report Calculator (Required)'!B189","v":0},{"$f":"'Report Calculator (Required)'!C189","v":0},"0",null,0]
["90-96 gal Container",93,{"$f":"'Report Calculator (Required)'!B192","v":0},{"$f":"'Report Calculator (Required)'!B193","v":0},{"$f":"'Report Calculator (Required)'!C193","v":0},"0",{"$f":"52-'Report Calculator (Required)'!B17","v":52},{"$f":"'Report Calculator (Required)'!B208","v":0},{"$f":"'Report Calculator (Required)'!C208","v":0},"0",null,0]
["2-Cubic Yard Dumpster",127,{"$f":"'Report Calculator (Required)'!B118","v":0},{"$f":"'Report Calculator (Required)'!B119","v":0},{"$f":"'Report Calculator (Required)'!C119","v":0},"0",{"$f":"52-'Report Calculator (Required)'!B17","v":52},{"$f":"'Report Calculator (Required)'!B132","v":1},{"$f":"'Report Calculator (Required)'!C132","v":"year"},52,null,0]
["2-Cubic Yard Dumpster",127,{"$f":"'Report Calculator (Required)'!B137","v":0},{"$f":"'Report Calculator (Required)'!B138","v":0},{"$f":"'Report Calculator (Required)'!C138","v":0},"0",{"$f":"52-'Report Calculator (Required)'!B17","v":52},{"$f":"'Report Calculator (Required)'!B151","v":22},{"$f":"'Report Calculator (Required)'!C151","v":"weeks"},22,null,0]
["2-Cubic Yard Dumpster",127,{"$f":"'Report Calculator (Required)'!B156","v":0},{"$f":"'Report Calculator (Required)'!B157","v":0},{"$f":"'Report Calculator (Required)'!C157","v":0},"0",{"$f":"52-'Report Calculator (Required)'!B17","v":52},{"$f":"'Report Calculator (Required)'!B170","v":0},{"$f":"'Report Calculator (Required)'!C170","v":0},"0",null,0]
["2-Cubic Yard Dumpster",127,{"$f":"'Report Calculator (Required)'!B175","v":0},{"$f":"'Report Calculator (Required)'!B176","v":0},{"$f":"'Report Calculator (Required)'!C176","v":0},"0",{"$f":"52-'Report Calculator (Required)'!B17","v":52},{"$f":"'Report Calculator (Required)'!B189","v":0},{"$f":"'Report Calculator (Required)'!C189","v":0},"0",null,0]
["2-Cubic Yard Dumpster",127,{"$f":"'Report Calculator (Required)'!B194","v":0},{"$f":"'Report Calculator (Required)'!B195","v":0},{"$f":"'Report Calculator (Required)'!C195","v":0},"0",{"$f":"52-'Report Calculator (Required)'!B17","v":52},{"$f":"'Report Calculator (Required)'!B208","v":0},{"$f":"'Report Calculator (Required)'!C208","v":0},"0",null,0]
["4-Cubic Yard Dumpster",254,{"$f":"'Report Calculator (Required)'!B120","v":0},{"$f":"'Report Calculator (Required)'!B121","v":0},{"$f":"'Report Calculator (Required)'!C121","v":0},"0",{"$f":"52-'Report Calculator (Required)'!B17","v":52},{"$f":"'Report Calculator (Required)'!B132","v":1},{"$f":"'Report Calculator (Required)'!C132","v":"year"},52,null,0]
["4-Cubic Yard Dumpster",254,{"$f":"'Report Calculator (Required)'!B139","v":0},{"$f":"'Report Calculator (Required)'!B140","v":0},{"$f":"'Report Calculator (Required)'!C140","v":0},"0",{"$f":"52-'Report Calculator (Required)'!B17","v":52},{"$f":"'Report Calculator (Required)'!B151","v":22},{"$f":"'Report Calculator (Required)'!C151","v":"weeks"},22,null,0]
["4-Cubic Yard Dumpster",254,{"$f":"'Report Calculator (Required)'!B158","v":0},{"$f":"'Report Calculator (Required)'!B159","v":0},{"$f":"'Report Calculator (Required)'!C159","v":0},"0",{"$f":"52-'Report Calculator (Required)'!B17","v":52},{"$f":"'Report Calculator (Required)'!B170","v":0},{"$f":"'Report Calculator (Required)'!C170","v":0},"0",null,0]
["4-Cubic Yard Dumpster",254,{"$f":"'Report Calculator (Required)'!B177","v":0},{"$f":"'Report Calculator (Required)'!B178","v":0},{"$f":"'Report Calculator (Required)'!C178","v":0},"0",{"$f":"52-'Report Calculator (Required)'!B17","v":52},{"$f":"'Report Calculator (Required)'!B189","v":0},{"$f":"'Report Calculator (Required)'!C189","v":0},"0",null,0]
["4-Cubic Yard Dumpster",254,{"$f":"'Report Calculator (Required)'!B196","v":0},{"$f":"'Report Calculator (Required)'!B197","v":0},{"$f":"'Report Calculator (Required)'!C197","v":0},"0",{"$f":"52-'Report Calculator (Required)'!B17","v":52},{"$f":"'Report Calculator (Required)'!B208","v":0},{"$f":"'Report Calculator (Required)'!C208","v":0},"0",null,0]
["6-Cubic Yard Dumpster",381,{"$f":"'Report Calculator (Required)'!B122","v":0},{"$f":"'Report Calculator (Required)'!B123","v":0},{"$f":"'Report Calculator (Required)'!C123","v":0},"0",{"$f":"52-'Report Calculator (Required)'!B17","v":52},{"$f":"'Report Calculator (Required)'!B132","v":1},{"$f":"'Report Calculator (Required)'!C132","v":"year"},52,null,0]
["6-Cubic Yard Dumpster",381,{"$f":"'Report Calculator (Required)'!B141","v":0},{"$f":"'Report Calculator (Required)'!B142","v":0},{"$f":"'Report Calculator (Required)'!C142","v":0},"0",{"$f":"52-'Report Calculator (Required)'!B17","v":52},{"$f":"'Report Calculator (Required)'!B151","v":22},{"$f":"'Report Calculator (Required)'!C151","v":"weeks"},22,null,0]
["6-Cubic Yard Dumpster",381,{"$f":"'Report Calculator (Required)'!B160","v":0},{"$f":"'Report Calculator (Required)'!B161","v":0},{"$f":"'Report Calculator (Required)'!C161","v":0},"0",{"$f":"52-'Report Calculator (Required)'!B17","v":52},{"$f":"'Report Calculator (Required)'!B170","v":0},{"$f":"'Report Calculator (Required)'!C170","v":0},"0",null,0]
["6-Cubic Yard Dumpster",381,{"$f":"'Report Calculator (Required)'!B179","v":0},{"$f":"'Report Calculator (Required)'!B180","v":0},{"$f":"'Report Calculator (Required)'!C180","v":0},"0",{"$f":"52-'Report Calculator (Required)'!B17","v":52},{"$f":"'Report Calculator (Required)'!B189","v":0},{"$f":"'Report Calculator (Required)'!C189","v":0},"0",null,0]
["6-Cubic Yard Dumpster",381,{"$f":"'Report Calculator (Required)'!B198","v":0},{"$f":"'Report Calculator (Required)'!B199","v":0},{"$f":"'Report Calculator (Required)'!C199","v":0},"0",{"$f":"52-'Report Calculator (Required)'!B17","v":52},{"$f":"'Report Calculator (Required)'!B208","v":0},{"$f":"'Report Calculator (Required)'!C208","v":0},"0",null,0]
["8-Cubic Yard Dumpster",508,{"$f":"'Report Calculator (Required)'!B124","v":0},{"$f":"'Report Calculator (Required)'!B125","v":0},{"$f":"'Report Calculator (Required)'!C125","v":0},"0",{"$f":"52-'Report Calculator (Required)'!B17","v":52},{"$f":"'Report Calculator (Required)'!B132","v":1},{"$f":"'Report Calculator (Required)'!C132","v":"year"},52,null,0]
["8-Cubic Yard Dumpster",508,{"$f":"'Report Calculator (Required)'!B143","v":0},{"$f":"'Report Calculator (Required)'!B144","v":0},{"$f":"'Report Calculator (Required)'!C144","v":0},"0",{"$f":"52-'Report Calculator (Required)'!B17","v":52},{"$f":"'Report Calculator (Required)'!B151","v":22},{"$f":"'Report Calculator (Required)'!C151","v":"weeks"},22,null,0]
["8-Cubic Yard Dumpster",508,{"$f":"'Report Calculator (Required)'!B162","v":0},{"$f":"'Report Calculator (Required)'!B163","v":0},{"$f":"'Report Calculator (Required)'!C163","v":0},"0",{"$f":"52-'Report Calculator (Required)'!B17","v":52},{"$f":"'Report Calculator (Required)'!B170","v":0},{"$f":"'Report Calculator (Required)'!C170","v":0},"0",null,0]
["8-Cubic Yard Dumpster",508,{"$f":"'Report Calculator (Required)'!B181","v":0},{"$f":"'Report Calculator (Required)'!B182","v":0},{"$f":"'Report Calculator (Required)'!C182","v":0},"0",{"$f":"52-'Report Calculator (Required)'!B17","v":52},{"$f":"'Report Calculator (Required)'!B189","v":0},{"$f":"'Report Calculator (Required)'!C189","v":0},"0",null,0]
["8-Cubic Yard Dumpster",508,{"$f":"'Report Calculator (Required)'!B200","v":0},{"$f":"'Report Calculator (Required)'!B201","v":0},{"$f":"'Report Calculator (Required)'!C201","v":0},"0",{"$f":"52-'Report Calculator (Required)'!B17","v":52},{"$f":"'Report Calculator (Required)'!B208","v":0},{"$f":"'Report Calculator (Required)'!C208","v":0},"0",null,0]
["10-Cubic Yard Roll-Off",635,{"$f":"'Report Calculator (Required)'!B126","v":0},{"$f":"'Report Calculator (Required)'!B127","v":0},{"$f":"'Report Calculator (Required)'!C127","v":0},"0",{"$f":"52-'Report Calculator (Required)'!B17","v":52},{"$f":"'Report Calculator (Required)'!B132","v":1},{"$f":"'Report Calculator (Required)'!C132","v":"year"},52,null,0]
["10-Cubic Yard Roll-Off",635,{"$f":"'Report Calculator (Required)'!B145","v":0},{"$f":"'Report Calculator (Required)'!B146","v":0},{"$f":"'Report Calculator (Required)'!C146","v":0},"0",{"$f":"52-'Report Calculator (Required)'!B17","v":52},{"$f":"'Report Calculator (Required)'!B151","v":22},{"$f":"'Report Calculator (Required)'!C151","v":"weeks"},22,null,0]
["10-Cubic Yard Roll-Off",635,{"$f":"'Report Calculator (Required)'!B164","v":0},{"$f":"'Report Calculator (Required)'!B165","v":0},{"$f":"'Report Calculator (Required)'!C165","v":0},"0",{"$f":"52-'Report Calculator (Required)'!B17","v":52},{"$f":"'Report Calculator (Required)'!B170","v":0},{"$f":"'Report Calculator (Required)'!C170","v":0},"0",null,0]
["10-Cubic Yard Roll-Off",635,{"$f":"'Report Calculator (Required)'!B183","v":0},{"$f":"'Report Calculator (Required)'!B184","v":0},{"$f":"'Report Calculator (Required)'!C184","v":0},"0",{"$f":"52-'Report Calculator (Required)'!B17","v":52},{"$f":"'Report Calculator (Required)'!B189","v":0},{"$f":"'Report Calculator (Required)'!C189","v":0},"0",null,0]
["10-Cubic Yard Roll-Off",635,{"$f":"'Report Calculator (Required)'!B202","v":0},{"$f":"'Report Calculator (Required)'!B203","v":0},{"$f":"'Report Calculator (Required)'!C203","v":0},"0",{"$f":"52-'Report Calculator (Required)'!B17","v":52},{"$f":"'Report Calculator (Required)'!B208","v":0},{"$f":"'Report Calculator (Required)'!C208","v":0},"0",null,0]
["20-Cubic Yard Roll-Off",1269,{"$f":"'Report Calculator (Required)'!B128","v":0},{"$f":"'Report Calculator (Required)'!B129","v":0},{"$f":"'Report Calculator (Required)'!C129","v":0},"0",{"$f":"52-'Report Calculator (Required)'!B17","v":52},{"$f":"'Report Calculator (Required)'!B132","v":1},{"$f":"'Report Calculator (Required)'!C132","v":"year"},52,null,0]
["20-Cubic Yard Roll-Off",1269,{"$f":"'Report Calculator (Required)'!B147","v":0},{"$f":"'Report Calculator (Required)'!B148","v":0},{"$f":"'Report Calculator (Required)'!C148","v":0},"0",{"$f":"52-'Report Calculator (Required)'!B17","v":52},{"$f":"'Report Calculator (Required)'!B151","v":22},{"$f":"'Report Calculator (Required)'!C151","v":"weeks"},22,null,0]
["20-Cubic Yard Roll-Off",1269,{"$f":"'Report Calculator (Required)'!B166","v":0},{"$f":"'Report Calculator (Required)'!B167","v":0},{"$f":"'Report Calculator (Required)'!C167","v":0},"0",{"$f":"52-'Report Calculator (Required)'!B17","v":52},{"$f":"'Report Calculator (Required)'!B170","v":0},{"$f":"'Report Calculator (Required)'!C170","v":0},"0",null,0]
["20-Cubic Yard Roll-Off",1269,{"$f":"'Report Calculator (Required)'!B185","v":0},{"$f":"'Report Calculator (Required)'!B186","v":0},{"$f":"'Report Calculator (Required)'!C186","v":0},"0",{"$f":"52-'Report Calculator (Required)'!B17","v":52},{"$f":"'Report Calculator (Required)'!B189","v":0},{"$f":"'Report Calculator (Required)'!C189","v":0},"0",null,0]
["20-Cubic Yard Roll-Off",1269,{"$f":"'Report Calculator (Required)'!B204","v":0},{"$f":"'Report Calculator (Required)'!B205","v":0},{"$f":"'Report Calculator (Required)'!C205","v":0},"0",{"$f":"52-'Report Calculator (Required)'!B17","v":52},{"$f":"'Report Calculator (Required)'!B208","v":0},{"$f":"'Report Calculator (Required)'!C208","v":0},"0",null,0]
["30-Cubic Yard Roll-Off",1904,{"$f":"'Report Calculator (Required)'!B130","v":0},{"$f":"'Report Calculator (Required)'!B256","v":0},{"$f":"'Report Calculator (Required)'!C256","v":0},"0",{"$f":"52-'Report Calculator (Required)'!B17","v":52},{"$f":"'Report Calculator (Required)'!B132","v":1},{"$f":"'Report Calculator (Required)'!C132","v":"year"},52,null,0]
["30-Cubic Yard Roll-Off",1904,{"$f":"'Report Calculator (Required)'!B149","v":0},{"$f":"'Report Calculator (Required)'!B150","v":0},{"$f":"'Report Calculator (Required)'!C150","v":0},"0",{"$f":"52-'Report Calculator (Required)'!B17","v":52},{"$f":"'Report Calculator (Required)'!B151","v":22},{"$f":"'Report Calculator (Required)'!C151","v":"weeks"},22,null,0]
["30-Cubic Yard Roll-Off",1904,{"$f":"'Report Calculator (Required)'!B168","v":0},{"$f":"'Report Calculator (Required)'!B169","v":0},{"$f":"'Report Calculator (Required)'!C169","v":0},"0",{"$f":"52-'Report Calculator (Required)'!B17","v":52},{"$f":"'Report Calculator (Required)'!B170","v":0},{"$f":"'Report Calculator (Required)'!C170","v":0},"0",null,0]
["30-Cubic Yard Roll-Off",1904,{"$f":"'Report Calculator (Required)'!B187","v":0},{"$f":"'Report Calculator (Required)'!B188","v":0},{"$f":"'Report Calculator (Required)'!C188","v":0},"0",{"$f":"52-'Report Calculator (Required)'!B17","v":52},{"$f":"'Report Calculator (Required)'!B189","v":0},{"$f":"'Report Calculator (Required)'!C189","v":0},"0",null,0]
["30-Cubic Yard Roll-Off",1904,{"$f":"'Report Calculator (Required)'!B206","v":0},{"$f":"'Report Calculator (Required)'!B207","v":0},{"$f":"'Report Calculator (Required)'!C207","v":0},"0",{"$f":"52-'Report Calculator (Required)'!B17","v":52},{"$f":"'Report Calculator (Required)'!B208","v":0},{"$f":"'Report Calculator (Required)'!C208","v":0},"0",null,0]
["Commingled","Weight","# Containers","# Pickups","Pickup Frequency","Pickup Per Week","Weeks (COVID-Adjusted)","Pickup Duration (Length)","Pickup Duration (Frequency)","Pickup Duration (Weeks)",null,"Total Yearly Pounds"]
["90-96 gal Container",60,{"$f":"'Report Calculator (Required)'!B306","v":0},{"$f":"'Report Calculator (Required)'!B307","v":0},{"$f":"'Report Calculator (Required)'!C307","v":0},"0",{"$f":"52-'Report Calculator (Required)'!B17","v":52},{"$f":"'Report Calculator (Required)'!B322","v":0},{"$f":"'Report Calculator (Required)'!C322","v":0},"0",null,0]
["90-96 gal Container",60,{"$f":"'Report Calculator (Required)'!B325","v":0},{"$f":"'Report Calculator (Required)'!B326","v":0},{"$f":"'Report Calculator (Required)'!C326","v":0},"0",{"$f":"52-'Report Calculator (Required)'!B17","v":52},{"$f":"'Report Calculator (Required)'!B341","v":0},{"$f":"'Report Calculator (Required)'!C341","v":0},"0",null,0]
["90-96 gal Container",60,{"$f":"'Report Calculator (Required)'!B344","v":0},{"$f":"'Report Calculator (Required)'!B345","v":0},{"$f":"'Report Calculator (Required)'!C345","v":0},"0",{"$f":"52-'Report Calculator (Required)'!B17","v":52},{"$f":"'Report Calculator (Required)'!B360","v":0},{"$f":"'Report Calculator (Required)'!C360","v":0},"0",null,0]
["90-96 gal Container",60,{"$f":"'Report Calculator (Required)'!B363","v":0},{"$f":"'Report Calculator (Required)'!B364","v":0},{"$f":"'Report Calculator (Required)'!C364","v":0},"0",{"$f":"52-'Report Calculator (Required)'!B17","v":52},{"$f":"'Report Calculator (Required)'!B379","v":0},{"$f":"'Report Calculator (Required)'!C379","v":0},"0",null,0]
["90-96 gal Container",60,{"$f":"'Report Calculator (Required)'!B382","v":0},{"$f":"'Report Calculator (Required)'!B383","v":0},{"$f":"'Report Calculator (Required)'!C383","v":0},"0",{"$f":"52-'Report Calculator (Required)'!B17","v":52},{"$f":"'Report Calculator (Required)'!B398","v":0},{"$f":"'Report Calculator (Required)'!C398","v":0},"0",null,0]
["2-Cubic Yard Dumpster",253,{"$f":"'Report Calculator (Required)'!B308","v":0},{"$f":"'Report Calculator (Required)'!B309","v":0},{"$f":"'Report Calculator (Required)'!C309","v":0},"0",{"$f":"52-'Report Calculator (Required)'!B17","v":52},{"$f":"'Report Calculator (Required)'!B322","v":0},{"$f":"'Report Calculator (Required)'!C322","v":0},"0",null,0]
["2-Cubic Yard Dumpster",253,{"$f":"'Report Calculator (Required)'!B327","v":0},{"$f":"'Report Calculator (Required)'!B328","v":0},{"$f":"'Report Calculator (Required)'!C328","v":0},"0",{"$f":"52-'Report Calculator (Required)'!B17","v":52},{"$f":"'Report Calculator (Required)'!B341","v":0},{"$f":"'Report Calculator (Required)'!C341","v":0},"0",null,0]
["2-Cubic Yard Dumpster",253,{"$f":"'Report Calculator (Required)'!B346","v":0},{"$f":"'Report Calculator (Required)'!B347","v":0},{"$f":"'Report Calculator (Required)'!C347","v":0},"0",{"$f":"52-'Report Calculator (Required)'!B17","v":52},{"$f":"'Report Calculator (Required)'!B360","v":0},{"$f":"'Report Calculator (Required)'!C360","v":0},"0",null,0]
["2-Cubic Yard Dumpster",253,{"$f":"'Report Calculator (Required)'!B365","v":0},{"$f":"'Report Calculator (Required)'!B366","v":0},{"$f":"'Report Calculator (Required)'!C366","v":0},"0",{"$f":"52-'Report Calculator (Required)'!B17","v":52},{"$f":"'Report Calculator (Required)'!B379","v":0},{"$f":"'Report Calculator (Required)'!C379","v":0},"0",null,0]
["2-Cubic Yard Dumpster",253,{"$f":"'Report Calculator (Required)'!B384","v":0},{"$f":"'Report Calculator (Required)'!B385","v":0},{"$f":"'Report Calculator (Required)'!C385","v":0},"0",{"$f":"52-'Report Calculator (Required)'!B17","v":52},{"$f":"'Report Calculator (Required)'!B398","v":0},{"$f":"'Report Calculator (Required)'!C398","v":0},"0",null,0]
["4-Cubic Yard Dumpster",506,{"$f":"'Report Calculator (Required)'!B310","v":0},{"$f":"'Report Calculator (Required)'!B311","v":0},{"$f":"'Report Calculator (Required)'!C311","v":0},"0",{"$f":"52-'Report Calculator (Required)'!B17","v":52},{"$f":"'Report Calculator (Required)'!B322","v":0},{"$f":"'Report Calculator (Required)'!C322","v":0},"0",null,0]
["4-Cubic Yard Dumpster",506,{"$f":"'Report Calculator (Required)'!B329","v":0},{"$f":"'Report Calculator (Required)'!B330","v":0},{"$f":"'Report Calculator (Required)'!C330","v":0},"0",{"$f":"52-'Report Calculator (Required)'!B17","v":52},{"$f":"'Report Calculator (Required)'!B341","v":0},{"$f":"'Report Calculator (Required)'!C341","v":0},"0",null,0]
["4-Cubic Yard Dumpster",506,{"$f":"'Report Calculator (Required)'!B348","v":0},{"$f":"'Report Calculator (Required)'!B349","v":0},{"$f":"'Report Calculator (Required)'!C349","v":0},"0",{"$f":"52-'Report Calculator (Required)'!B17","v":52},{"$f":"'Report Calculator (Required)'!B360","v":0},{"$f":"'Report Calculator (Required)'!C360","v":0},"0",null,0]
["4-Cubic Yard Dumpster",506,{"$f":"'Report Calculator (Required)'!B367","v":0},{"$f":"'Report Calculator (Required)'!B368","v":0},{"$f":"'Report Calculator (Required)'!C368","v":0},"0",{"$f":"52-'Report Calculator (Required)'!B17","v":52},{"$f":"'Report Calculator (Required)'!B379","v":0},{"$f":"'Report Calculator (Required)'!C379","v":0},"0",null,0]
["4-Cubic Yard Dumpster",506,{"$f":"'Report Calculator (Required)'!B386","v":0},{"$f":"'Report Calculator (Required)'!B387","v":0},{"$f":"'Report Calculator (Required)'!C387","v":0},"0",{"$f":"52-'Report Calculator (Required)'!B17","v":52},{"$f":"'Report Calculator (Required)'!B398","v":0},{"$f":"'Report Calculator (Required)'!C398","v":0},"0",null,0]
["6-Cubic Yard Dumpster",760,{"$f":"'Report Calculator (Required)'!B312","v":0},{"$f":"'Report Calculator (Required)'!B313","v":0},{"$f":"'Report Calculator (Required)'!C313","v":0},"0",{"$f":"52-'Report Calculator (Required)'!B17","v":52},{"$f":"'Report Calculator (Required)'!B322","v":0},{"$f":"'Report Calculator (Required)'!C322","v":0},"0",null,0]
["6-Cubic Yard Dumpster",760,{"$f":"'Report Calculator (Required)'!B331","v":0},{"$f":"'Report Calculator (Required)'!B332","v":0},{"$f":"'Report Calculator (Required)'!C332","v":0},"0",{"$f":"52-'Report Calculator (Required)'!B17","v":52},{"$f":"'Report Calculator (Required)'!B341","v":0},{"$f":"'Report Calculator (Required)'!C341","v":0},"0",null,0]
["6-Cubic Yard Dumpster",760,{"$f":"'Report Calculator (Required)'!B350","v":0},{"$f":"'Report Calculator (Required)'!B351","v":0},{"$f":"'Report Calculator (Required)'!C351","v":0},"0",{"$f":"52-'Report Calculator (Required)'!B17","v":52},{"$f":"'Report Calculator (Required)'!B360","v":0},{"$f":"'Report Calculator (Required)'!C360","v":0},"0",null,0]
["6-Cubic Yard Dumpster",760,{"$f":"'Report Calculator (Required)'!B369","v":0},{"$f":"'Report Calculator (Required)'!B370","v":0},{"$f":"'Report Calculator (Required)'!C370","v":0},"0",{"$f":"52-'Report Calculator (Required)'!B17","v":52},{"$f":"'Report Calculator (Required)'!B379","v":0},{"$f":"'Report Calculator (Required)'!C379","v":0},"0",null,0]
["6-Cubic Yard Dumpster",760,{"$f":"'Report Calculator (Required)'!B388","v":0},{"$f":"'Report Calculator (Required)'!B389","v":0},{"$f":"'Report Calculator (Required)'!C389","v":0},"0",{"$f":"52-'Report Calculator (Required)'!B17","v":52},{"$f":"'Report Calculator (Required)'!B398","v":0},{"$f":"'Report Calculator (Required)'!C398","v":0},"0",null,0]
["8-Cubic Yard Dumpster",1012,{"$f":"'Report Calculator (Required)'!B314","v":0},{"$f":"'Report Calculator (Required)'!B315","v":0},{"$f":"'Report Calculator (Required)'!C315","v":0},"0",{"$f":"52-'Report Calculator (Required)'!B17","v":52},{"$f":"'Report Calculator (Required)'!B322","v":0},{"$f":"'Report Calculator (Required)'!C322","v":0},{"$f":"IF(I65=\"months\",H65*4.3,IF(I65=\"year\",H65*52,IF(I65=\"weeks\",H65,\"0\")))","v":"0"},null,0]
["8-Cubic Yard Dumpster",1012,{"$f":"'Report Calculator (Required)'!B333","v":0},{"$f":"'Report Calculator (Required)'!B334","v":0},{"$f":"'Report Calculator (Required)'!C334","v":0},"0",{"$f":"52-'Report Calculator (Required)'!B17","v":52},{"$f":"'Report Calculator (Required)'!B341","v":0},{"$f":"'Report Calculator (Required)'!C341","v":0},{"$f":"IF(I66=\"months\",H66*4.3,IF(I66=\"year\",H66*52,IF(I66=\"weeks\",H66,\"0\")))","v":"0"},null,0]
["8-Cubic Yard Dumpster",1012,{"$f":"'Report Calculator (Required)'!B352","v":0},{"$f":"'Report Calculator (Required)'!B353","v":0},{"$f":"'Report Calculator (Required)'!C353","v":0},"0",{"$f":"52-'Report Calculator (Required)'!B17","v":52},{"$f":"'Report Calculator (Required)'!B360","v":0},{"$f":"'Report Calculator (Required)'!C360","v":0},"0",null,0]
["8-Cubic Yard Dumpster",1012,{"$f":"'Report Calculator (Required)'!B371","v":0},{"$f":"'Report Calculator (Required)'!B372","v":0},{"$f":"'Report Calculator (Required)'!C372","v":0},"0",{"$f":"52-'Report Calculator (Required)'!B17","v":52},{"$f":"'Report Calculator (Required)'!B379","v":0},{"$f":"'Report Calculator (Required)'!C379","v":0},"0",null,0]
["8-Cubic Yard Dumpster",1012,{"$f":"'Report Calculator (Required)'!B390","v":0},{"$f":"'Report Calculator (Required)'!B391","v":0},{"$f":"'Report Calculator (Required)'!C391","v":0},{"$f":"IF(E69=\"/month\",IMDIV(D69,4.3),IF(E69=\"/week\",D69,IF(E69=\"/year\",IMDIV(D69,52),\"0\")))","v":"0"},{"$f":"52-'Report Calculator (Required)'!B17","v":52},{"$f":"'Report Calculator (Required)'!B398","v":0},{"$f":"'Report Calculator (Required)'!C398","v":0},"0",null,{"$f":"IF(J69=0,B69*C69*F69*G69,B69*C69*F69*J69)","v":0}]
["10-Cubic Yard Roll-Off",1266,{"$f":"'Report Calculator (Required)'!B316","v":0},{"$f":"'Report Calculator (Required)'!B317","v":0},{"$f":"'Report Calculator (Required)'!C317","v":0},"0",{"$f":"52-'Report Calculator (Required)'!B17","v":52},{"$f":"'Report Calculator (Required)'!B322","v":0},{"$f":"'Report Calculator (Required)'!C322","v":0},"0",null,0]
["10-Cubic Yard Roll-Off",1266,{"$f":"'Report Calculator (Required)'!B335","v":0},{"$f":"'Report Calculator (Required)'!B336","v":0},{"$f":"'Report Calculator (Required)'!C336","v":0},"0",{"$f":"52-'Report Calculator (Required)'!B17","v":52},{"$f":"'Report Calculator (Required)'!B341","v":0},{"$f":"'Report Calculator (Required)'!C341","v":0},"0",null,0]
["10-Cubic Yard Roll-Off",1266,{"$f":"'Report Calculator (Required)'!B354","v":0},{"$f":"'Report Calculator (Required)'!B355","v":0},{"$f":"'Report Calculator (Required)'!C355","v":0},"0",{"$f":"52-'Report Calculator (Required)'!B17","v":52},{"$f":"'Report Calculator (Required)'!B360","v":0},{"$f":"'Report Calculator (Required)'!C360","v":0},"0",null,0]
["10-Cubic Yard Roll-Off",1266,{"$f":"'Report Calculator (Required)'!B373","v":0},{"$f":"'Report Calculator (Required)'!B374","v":0},{"$f":"'Report Calculator (Required)'!C374","v":0},"0",{"$f":"52-'Report Calculator (Required)'!B17","v":52},{"$f":"'Report Calculator (Required)'!B379","v":0},{"$f":"'Report Calculator (Required)'!C379","v":0},"0",null,0]
["10-Cubic Yard Roll-Off",1266,{"$f":"'Report Calculator (Required)'!B392","v":0},{"$f":"'Report Calculator (Required)'!B393","v":0},{"$f":"'Report Calculator (Required)'!C393","v":0},"0",{"$f":"52-'Report Calculator (Required)'!B17","v":52},{"$f":"'Report Calculator (Required)'!B398","v":0},{"$f":"'Report Calculator (Required)'!C398","v":0},"0",null,0]
["20-Cubic Yard Roll-Off",2532,{"$f":"'Report Calculator (Required)'!B318","v":0},{"$f":"'Report Calculator (Required)'!B319","v":0},{"$f":"'Report Calculator (Required)'!C319","v":0},"0",{"$f":"52-'Report Calculator (Required)'!B17","v":52},{"$f":"'Report Calculator (Required)'!B322","v":0},{"$f":"'Report Calculator (Required)'!C322","v":0},"0",null,0]
["20-Cubic Yard Roll-Off",2532,{"$f":"'Report Calculator (Required)'!B337","v":0},{"$f":"'Report Calculator (Required)'!B338","v":0},{"$f":"'Report Calculator (Required)'!C338","v":0},"0",{"$f":"52-'Report Calculator (Required)'!B17","v":52},{"$f":"'Report Calculator (Required)'!B341","v":0},{"$f":"'Report Calculator (Required)'!C341","v":0},"0",null,0]
["20-Cubic Yard Roll-Off",2532,{"$f":"'Report Calculator (Required)'!B356","v":0},{"$f":"'Report Calculator (Required)'!B357","v":0},{"$f":"'Report Calculator (Required)'!C357","v":0},"0",{"$f":"52-'Report Calculator (Required)'!B17","v":52},{"$f":"'Report Calculator (Required)'!B360","v":0},{"$f":"'Report Calculator (Required)'!C360","v":0},"0",null,0]
["20-Cubic Yard Roll-Off",2532,{"$f":"'Report Calculator (Required)'!B375","v":0},{"$f":"'Report Calculator (Required)'!B376","v":0},{"$f":"'Report Calculator (Required)'!C376","v":0},"0",{"$f":"52-'Report Calculator (Required)'!B17","v":52},{"$f":"'Report Calculator (Required)'!B379","v":0},{"$f":"'Report Calculator (Required)'!C379","v":0},"0",null,0]
["20-Cubic Yard Roll-Off",2532,{"$f":"'Report Calculator (Required)'!B394","v":0},{"$f":"'Report Calculator (Required)'!B395","v":0},{"$f":"'Report Calculator (Required)'!C395","v":0},"0",{"$f":"52-'Report Calculator (Required)'!B17","v":52},{"$f":"'Report Calculator (Required)'!B398","v":0},{"$f":"'Report Calculator (Required)'!C398","v":0},"0",null,0]
["30-Cubic Yard Roll-Off",3798,{"$f":"'Report Calculator (Required)'!B320","v":0},{"$f":"'Report Calculator (Required)'!B321","v":0},{"$f":"'Report Calculator (Required)'!C321","v":0},"0",{"$f":"52-'Report Calculator (Required)'!B17","v":52},{"$f":"'Report Calculator (Required)'!B322","v":0},{"$f":"'Report Calculator (Required)'!C322","v":0},"0",null,0]
["30-Cubic Yard Roll-Off",3798,{"$f":"'Report Calculator (Required)'!B339","v":0},{"$f":"'Report Calculator (Required)'!B340","v":0},{"$f":"'Report Calculator (Required)'!C340","v":0},"0",{"$f":"52-'Report Calculator (Required)'!B17","v":52},{"$f":"'Report Calculator (Required)'!B341","v":0},{"$f":"'Report Calculator (Required)'!C341","v":0},"0",null,0]
["30-Cubic Yard Roll-Off",3798,{"$f":"'Report Calculator (Required)'!B358","v":0},{"$f":"'Report Calculator (Required)'!B359","v":0},{"$f":"'Report Calculator (Required)'!C359","v":0},"0",{"$f":"52-'Report Calculator (Required)'!B17","v":52},{"$f":"'Report Calculator (Required)'!B360","v":0},{"$f":"'Report Calculator (Required)'!C360","v":0},"0",null,0]
["30-Cubic Yard Roll-Off",3798,{"$f":"'Report Calculator (Required)'!B377","v":0},{"$f":"'Report Calculator (Required)'!B378","v":0},{"$f":"'Report Calculator (Required)'!C378","v":0},"0",{"$f":"52-'Report Calculator (Required)'!B17","v":52},{"$f":"'Report Calculator (Required)'!B379","v":0},{"$f":"'Report Calculator (Required)'!C379","v":0},"0",null,0]
["30-Cubic Yard Roll-Off",3798,{"$f":"'Report Calculator (Required)'!B396","v":0},{"$f":"'Report Calculator (Required)'!B397","v":0},{"$f":"'Report Calculator (Required)'!C397","v":0},"0",{"$f":"52-'Report Calculator (Required)'!B17","v":52},{"$f":"'Report Calculator (Required)'!B398","v":0},{"$f":"'Report Calculator (Required)'!C398","v":0},"0",null,0]
["Single Steam","Weight","# Containers","# Pickups","Pickup Frequency","Pickup Per Week","Weeks (COVID-Adjusted)","Pickup Duration (Length)","Pickup Duration (Frequency)","Pickup Duration (Weeks)",null,"Total Yearly Pounds","Mixed Paper Weight","Commingled Weight"]
["90-96 gal Container",76.5,{"$f":"'Report Calculator (Required)'!B21","v":0},{"$f":"'Report Calculator (Required)'!B22","v":0},{"$f":"'Report Calculator (Required)'!C22","v":0},"0",{"$f":"52-'Report Calculator (Required)'!B17","v":52},{"$f":"'Report Calculator (Required)'!B37","v":0},{"$f":"'Report Calculator (Required)'!C37","v":0},"0",null,0,{"$f":"L86*$B$212","v":0},{"$f":"L86*$B$213","v":0}]
["90-96 gal Container",76.5,{"$f":"'Report Calculator (Required)'!B40","v":0},{"$f":"'Report Calculator (Required)'!B41","v":0},{"$f":"'Report Calculator (Required)'!C41","v":0},"0",{"$f":"52-'Report Calculator (Required)'!B17","v":52},{"$f":"'Report Calculator (Required)'!B56","v":0},{"$f":"'Report Calculator (Required)'!C56","v":0},"0",null,0,0,0]
["90-96 gal Container",76.5,{"$f":"'Report Calculator (Required)'!B59","v":0},{"$f":"'Report Calculator (Required)'!B60","v":0},{"$f":"'Report Calculator (Required)'!C60","v":0},"0",{"$f":"52-'Report Calculator (Required)'!B17","v":52},{"$f":"'Report Calculator (Required)'!B75","v":0},{"$f":"'Report Calculator (Required)'!C75","v":0},"0",null,0,0,0]
["90-96 gal Container",76.5,{"$f":"'Report Calculator (Required)'!B78","v":0},{"$f":"'Report Calculator (Required)'!B79","v":0},{"$f":"'Report Calculator (Required)'!C79","v":0},"0",{"$f":"52-'Report Calculator (Required)'!B17","v":52},{"$f":"'Report Calculator (Required)'!B94","v":0},{"$f":"'Report Calculator (Required)'!C94","v":0},"0",null,0,0,0]
["90-96 gal Container",76.5,{"$f":"'Report Calculator (Required)'!B97","v":0},{"$f":"'Report Calculator (Required)'!B98","v":0},{"$f":"'Report Calculator (Required)'!C98","v":0},"0",{"$f":"52-'Report Calculator (Required)'!B17","v":52},{"$f":"'Report Calculator (Required)'!B113","v":0},{"$f":"'Report Calculator (Required)'!C113","v":0},"0",null,0,0,0]
["2-Cubic Yard Dumpster",190,{"$f":"'Report Calculator (Required)'!B23","v":0},{"$f":"'Report Calculator (Required)'!B24","v":0},{"$f":"'Report Calculator (Required)'!C24","v":0},"0",{"$f":"52-'Report Calculator (Required)'!B17","v":52},{"$f":"'Report Calculator (Required)'!B37","v":0},{"$f":"'Report Calculator (Required)'!C37","v":0},"0",null,0,0,0]
["2-Cubic Yard Dumpster",190,{"$f":"'Report Calculator (Required)'!B42","v":0},{"$f":"'Report Calculator (Required)'!B43","v":0},{"$f":"'Report Calculator (Required)'!C43","v":0},"0",{"$f":"52-'Report Calculator (Required)'!B17","v":52},{"$f":"'Report Calculator (Required)'!B56","v":0},{"$f":"'Report Calculator (Required)'!C56","v":0},"0",null,0,0,0]
["2-Cubic Yard Dumpster",190,{"$f":"'Report Calculator (Required)'!B61","v":0},{"$f":"'Report Calculator (Required)'!B62","v":0},{"$f":"'Report Calculator (Required)'!C62","v":0},"0",{"$f":"52-'Report Calculator (Required)'!B17","v":52},{"$f":"'Report Calculator (Required)'!B75","v":0},{"$f":"'Report Calculator (Required)'!C75","v":0},"0",null,0,0,0]
["2-Cubic Yard Dumpster",190,{"$f":"'Report Calculator (Required)'!B80","v":0},{"$f":"'Report Calculator (Required)'!B81","v":0},{"$f":"'Report Calculator (Required)'!C81","v":0},"0",{"$f":"52-'Report Calculator (Required)'!B17","v":52},{"$f":"'Report Calculator (Required)'!B94","v":0},{"$f":"'Report Calculator (Required)'!C94","v":0},"0",null,0,0,0]
["2-Cubic Yard Dumpster",190,{"$f":"'Report Calculator (Required)'!B99","v":0},{"$f":"'Report Calculator (Required)'!B100","v":0},{"$f":"'Report Calculator (Required)'!C100","v":0},"0",{"$f":"52-'Report Calculator (Required)'!B17","v":52},{"$f":"'Report Calculator (Required)'!B113","v":0},{"$f":"'Report Calculator (Required)'!C113","v":0},"0",null,0,0,0]
["4-Cubic Yard Dumpster",380,{"$f":"'Report Calculator (Required)'!B25","v":0},{"$f":"'Report Calculator (Required)'!B26","v":0},{"$f":"'Report Calculator (Required)'!C26","v":0},"0",{"$f":"52-'Report Calculator (Required)'!B17","v":52},{"$f":"'Report Calculator (Required)'!B37","v":0},{"$f":"'Report Calculator (Required)'!C37","v":0},"0",null,0,0,0]
["4-Cubic Yard Dumpster",380,{"$f":"'Report Calculator (Required)'!B44","v":0},{"$f":"'Report Calculator (Required)'!B45","v":0},{"$f":"'Report Calculator (Required)'!C45","v":0},"0",{"$f":"52-'Report Calculator (Required)'!B17","v":52},{"$f":"'Report Calculator (Required)'!B56","v":0},{"$f":"'Report Calculator (Required)'!C56","v":0},"0",null,0,0,0]
["4-Cubic Yard Dumpster",380,{"$f":"'Report Calculator (Required)'!B63","v":0},{"$f":"'Report Calculator (Required)'!B64","v":0},{"$f":"'Report Calculator (Required)'!C64","v":0},"0",{"$f":"52-'Report Calculator (Required)'!B17","v":52},{"$f":"'Report Calculator (Required)'!B75","v":0},{"$f":"'Report Calculator (Required)'!C75","v":0},"0",null,0,0,0]
["4-Cubic Yard Dumpster",380,{"$f":"'Report Calculator (Required)'!B82","v":0},{"$f":"'Report Calculator (Required)'!B83","v":0},{"$f":"'Report Calculator (Required)'!C83","v":0},"0",{"$f":"52-'Report Calculator (Required)'!B17","v":52},{"$f":"'Report Calculator (Required)'!B94","v":0},{"$f":"'Report Calculator (Required)'!C94","v":0},"0",null,0,0,0]
["4-Cubic Yard Dumpster",380,{"$f":"'Report Calculator (Required)'!B101","v":0},{"$f":"'Report Calculator (Required)'!B102","v":0},{"$f":"'Report Calculator (Required)'!C102","v":0},"0",{"$f":"52-'Report Calculator (Required)'!B17","v":52},{"$f":"'Report Calculator (Required)'!B113","v":0},{"$f":"'Report Calculator (Required)'!C113","v":0},"0",null,0,0,0]
["6-Cubic Yard Dumpster",571,{"$f":"'Report Calculator (Required)'!B27","v":0},{"$f":"'Report Calculator (Required)'!B28","v":0},{"$f":"'Report Calculator (Required)'!C28","v":0},"0",{"$f":"52-'Report Calculator (Required)'!B17","v":52},{"$f":"'Report Calculator (Required)'!B37","v":0},{"$f":"'Report Calculator (Required)'!C37","v":0},"0",null,0,0,0]
["6-Cubic Yard Dumpster",571,{"$f":"'Report Calculator (Required)'!B46","v":0},{"$f":"'Report Calculator (Required)'!B47","v":0},{"$f":"'Report Calculator (Required)'!C47","v":0},"0",{"$f":"52-'Report Calculator (Required)'!B17","v":52},{"$f":"'Report Calculator (Required)'!B56","v":0},{"$f":"'Report Calculator (Required)'!C56","v":0},"0",null,0,0,0]
["6-Cubic Yard Dumpster",571,{"$f":"'Report Calculator (Required)'!B65","v":0},{"$f":"'Report Calculator (Required)'!B66","v":0},{"$f":"'Report Calculator (Required)'!C66","v":0},"0",{"$f":"52-'Report Calculator (Required)'!B17","v":52},{"$f":"'Report Calculator (Required)'!B75","v":0},{"$f":"'Report Calculator (Required)'!C75","v":0},"0",null,0,0,0]
["6-Cubic Yard Dumpster",571,{"$f":"'Report Calculator (Required)'!B84","v":0},{"$f":"'Report Calculator (Required)'!B85","v":0},{"$f":"'Report Calculator (Required)'!C85","v":0},"0",{"$f":"52-'Report Calculator (Required)'!B17","v":52},{"$f":"'Report Calculator (Required)'!B94","v":0},{"$f":"'Report Calculator (Required)'!C94","v":0},"0",null,0,0,0]
["6-Cubic Yard Dumpster",571,{"$f":"'Report Calculator (Required)'!B103","v":0},{"$f":"'Report Calculator (Required)'!B104","v":0},{"$f":"'Report Calculator (Required)'!C104","v":0},"0",{"$f":"52-'Report Calculator (Required)'!B17","v":52},{"$f":"'Report Calculator (Required)'!B113","v":0},{"$f":"'Report Calculator (Required)'!C113","v":0},"0",null,0,0,0]
["8-Cubic Yard Dumpster",760,{"$f":"'Report Calculator (Required)'!B29","v":0},{"$f":"'Report Calculator (Required)'!B30","v":0},{"$f":"'Report Calculator (Required)'!C30","v":0},"0",{"$f":"52-'Report Calculator (Required)'!B17","v":52},{"$f":"'Report Calculator (Required)'!B37","v":0},{"$f":"'Report Calculator (Required)'!C37","v":0},"0",null,0,0,0]
["8-Cubic Yard Dumpster",760,{"$f":"'Report Calculator (Required)'!B48","v":0},{"$f":"'Report Calculator (Required)'!B49","v":0},{"$f":"'Report Calculator (Required)'!C49","v":0},"0",{"$f":"52-'Report Calculator (Required)'!B17","v":52},{"$f":"'Report Calculator (Required)'!B56","v":0},{"$f":"'Report Calculator (Required)'!C56","v":0},"0",null,0,0,0]
["8-Cubic Yard Dumpster",760,{"$f":"'Report Calculator (Required)'!B67","v":0},{"$f":"'Report Calculator (Required)'!B68","v":0},{"$f":"'Report Calculator (Required)'!C68","v":0},"0",{"$f":"52-'Report Calculator (Required)'!B17","v":52},{"$f":"'Report Calculator (Required)'!B75","v":0},{"$f":"'Report Calculator (Required)'!C75","v":0},"0",null,0,0,0]
["8-Cubic Yard Dumpster",760,{"$f":"'Report Calculator (Required)'!B86","v":0},{"$f":"'Report Calculator (Required)'!B87","v":0},{"$f":"'Report Calculator (Required)'!C87","v":0},"0",{"$f":"52-'Report Calculator (Required)'!B17","v":52},{"$f":"'Report Calculator (Required)'!B94","v":0},{"$f":"'Report Calculator (Required)'!C94","v":0},"0",null,0,0,0]
["8-Cubic Yard Dumpster",760,{"$f":"'Report Calculator (Required)'!B105","v":0},{"$f":"'Report Calculator (Required)'!B106","v":0},{"$f":"'Report Calculator (Required)'!C106","v":0},"0",{"$f":"52-'Report Calculator (Required)'!B17","v":52},{"$f":"'Report Calculator (Required)'!B113","v":0},{"$f":"'Report Calculator (Required)'!C113","v":0},"0",null,0,0,0]
["10-Cubic Yard Roll-Off",950,{"$f":"'Report Calculator (Required)'!B31","v":0},{"$f":"'Report Calculator (Required)'!B32","v":0},{"$f":"'Report Calculator (Required)'!C32","v":0},"0",{"$f":"52-'Report Calculator (Required)'!B17","v":52},{"$f":"'Report Calculator (Required)'!B37","v":0},{"$f":"'Report Calculator (Required)'!C37","v":0},"0",null,0,{"$f":"L111*$B$212","v":0},{"$f":"L111*$B$213","v":0}]
["10-Cubic Yard Roll-Off",950,{"$f":"'Report Calculator (Required)'!B50","v":0},{"$f":"'Report Calculator (Required)'!B51","v":0},{"$f":"'Report Calculator (Required)'!C51","v":0},"0",{"$f":"52-'Report Calculator (Required)'!B17","v":52},{"$f":"'Report Calculator (Required)'!B56","v":0},{"$f":"'Report Calculator (Required)'!C56","v":0},"0",null,0,0,0]
["10-Cubic Yard Roll-Off",950,{"$f":"'Report Calculator (Required)'!B69","v":0},{"$f":"'Report Calculator (Required)'!B70","v":0},{"$f":"'Report Calculator (Required)'!C70","v":0},"0",{"$f":"52-'Report Calculator (Required)'!B17","v":52},{"$f":"'Report Calculator (Required)'!B75","v":0},{"$f":"'Report Calculator (Required)'!C75","v":0},"0",null,0,0,0]
["10-Cubic Yard Roll-Off",950,{"$f":"'Report Calculator (Required)'!B88","v":0},{"$f":"'Report Calculator (Required)'!B89","v":0},{"$f":"'Report Calculator (Required)'!C89","v":0},"0",{"$f":"52-'Report Calculator (Required)'!B17","v":52},{"$f":"'Report Calculator (Required)'!B94","v":0},{"$f":"'Report Calculator (Required)'!C94","v":0},"0",null,0,0,0]
["10-Cubic Yard Roll-Off",950,{"$f":"'Report Calculator (Required)'!B107","v":0},{"$f":"'Report Calculator (Required)'!B108","v":0},{"$f":"'Report Calculator (Required)'!C108","v":0},"0",{"$f":"52-'Report Calculator (Required)'!B17","v":52},{"$f":"'Report Calculator (Required)'!B113","v":0},{"$f":"'Report Calculator (Required)'!C113","v":0},"0",null,0,0,0]
["20-Cubic Yard Roll-Off",1900,{"$f":"'Report Calculator (Required)'!B33","v":0},{"$f":"'Report Calculator (Required)'!B34","v":0},{"$f":"'Report Calculator (Required)'!C34","v":0},"0",{"$f":"52-'Report Calculator (Required)'!B17","v":52},{"$f":"'Report Calculator (Required)'!B37","v":0},{"$f":"'Report Calculator (Required)'!C37","v":0},"0",null,0,0,0]
["20-Cubic Yard Roll-Off",1900,{"$f":"'Report Calculator (Required)'!B52","v":0},{"$f":"'Report Calculator (Required)'!B53","v":0},{"$f":"'Report Calculator (Required)'!C53","v":0},"0",{"$f":"52-'Report Calculator (Required)'!B17","v":52},{"$f":"'Report Calculator (Required)'!B56","v":0},{"$f":"'Report Calculator (Required)'!C56","v":0},"0",null,0,0,0]
["20-Cubic Yard Roll-Off",1900,{"$f":"'Report Calculator (Required)'!B71","v":0},{"$f":"'Report Calculator (Required)'!B72","v":0},{"$f":"'Report Calculator (Required)'!C72","v":0},"0",{"$f":"52-'Report Calculator (Required)'!B17","v":52},{"$f":"'Report Calculator (Required)'!B75","v":0},{"$f":"'Report Calculator (Required)'!C75","v":0},"0",null,0,0,0]
["20-Cubic Yard Roll-Off",1900,{"$f":"'Report Calculator (Required)'!B90","v":0},{"$f":"'Report Calculator (Required)'!B91","v":0},{"$f":"'Report Calculator (Required)'!C91","v":0},"0",{"$f":"52-'Report Calculator (Required)'!B17","v":52},{"$f":"'Report Calculator (Required)'!B94","v":0},{"$f":"'Report Calculator (Required)'!C94","v":0},"0",null,0,0,0]
["20-Cubic Yard Roll-Off",1900,{"$f":"'Report Calculator (Required)'!B109","v":0},{"$f":"'Report Calculator (Required)'!B110","v":0},{"$f":"'Report Calculator (Required)'!C110","v":0},"0",{"$f":"52-'Report Calculator (Required)'!B17","v":52},{"$f":"'Report Calculator (Required)'!B113","v":0},{"$f":"'Report Calculator (Required)'!C113","v":0},"0",null,0,0,0]
["30-Cubic Yard Roll-Off",2850,{"$f":"'Report Calculator (Required)'!B35","v":0},{"$f":"'Report Calculator (Required)'!B36","v":0},{"$f":"'Report Calculator (Required)'!C36","v":0},"0",{"$f":"52-'Report Calculator (Required)'!B17","v":52},{"$f":"'Report Calculator (Required)'!B37","v":0},{"$f":"'Report Calculator (Required)'!C37","v":0},"0",null,0,0,0]
["30-Cubic Yard Roll-Off",2850,{"$f":"'Report Calculator (Required)'!B54","v":0},{"$f":"'Report Calculator (Required)'!B55","v":0},{"$f":"'Report Calculator (Required)'!C55","v":0},"0",{"$f":"52-'Report Calculator (Required)'!B17","v":52},{"$f":"'Report Calculator (Required)'!B56","v":0},{"$f":"'Report Calculator (Required)'!C56","v":0},"0",null,0,0,0]
["30-Cubic Yard Roll-Off",2850,{"$f":"'Report Calculator (Required)'!B73","v":0},{"$f":"'Report Calculator (Required)'!B74","v":0},{"$f":"'Report Calculator (Required)'!C74","v":0},"0",{"$f":"52-'Report Calculator (Required)'!B17","v":52},{"$f":"'Report Calculator (Required)'!B75","v":0},{"$f":"'Report Calculator (Required)'!C75","v":0},"0",null,0,0,0]
["30-Cubic Yard Roll-Off",2850,{"$f":"'Report Calculator (Required)'!B92","v":0},{"$f":"'Report Calculator (Required)'!B93","v":0},{"$f":"'Report Calculator (Required)'!C93","v":0},"0",{"$f":"52-'Report Calculator (Required)'!B17","v":52},{"$f":"'Report Calculator (Required)'!B94","v":0},{"$f":"'Report Calculator (Required)'!C94","v":0},"0",null,0,0,0]
["30-Cubic Yard Roll-Off",2850,{"$f":"'Report Calculator (Required)'!B111","v":0},{"$f":"'Report Calculator (Required)'!B112","v":0},{"$f":"'Report Calculator (Required)'!C112","v":0},"0",{"$f":"52-'Report Calculator (Required)'!B17","v":52},{"$f":"'Report Calculator (Required)'!B113","v":0},{"$f":"'Report Calculator (Required)'!C113","v":0},"0",null,0,0,0]
["Cardboard","Weight","# Containers","# Pickups","Pickup Frequency","Pickup Per Week","Weeks (COVID-Adjusted)","Pickup Duration (Length)","Pickup Duration (Frequency)","Pickup Duration (Weeks)",null,"Total Yearly Pounds"]
["90-96 gal Container",25,{"$f":"'Report Calculator (Required)'!B211","v":0},{"$f":"'Report Calculator (Required)'!B212","v":0},{"$f":"'Report Calculator (Required)'!C212","v":0},"0",{"$f":"52-'Report Calculator (Required)'!B17","v":52},{"$f":"'Report Calculator (Required)'!B227","v":0},{"$f":"'Report Calculator (Required)'!C227","v":0},"0",null,0]
["90-96 gal Container",25,{"$f":"'Report Calculator (Required)'!B230","v":0},{"$f":"'Report Calculator (Required)'!B231","v":0},{"$f":"'Report Calculator (Required)'!C231","v":0},"0",{"$f":"52-'Report Calculator (Required)'!B17","v":52},{"$f":"'Report Calculator (Required)'!B246","v":0},{"$f":"'Report Calculator (Required)'!C246","v":0},"0",null,0]
["90-96 gal Container",25,{"$f":"'Report Calculator (Required)'!B249","v":0},{"$f":"'Report Calculator (Required)'!B250","v":0},{"$f":"'Report Calculator (Required)'!C250","v":0},"0",{"$f":"52-'Report Calculator (Required)'!B17","v":52},{"$f":"'Report Calculator (Required)'!B265","v":0},{"$f":"'Report Calculator (Required)'!C265","v":0},"0",null,0]
["90-96 gal Container",25,{"$f":"'Report Calculator (Required)'!B268","v":0},{"$f":"'Report Calculator (Required)'!B269","v":0},{"$f":"'Report Calculator (Required)'!C269","v":0},"0",{"$f":"52-'Report Calculator (Required)'!B17","v":52},{"$f":"'Report Calculator (Required)'!B284","v":0},{"$f":"'Report Calculator (Required)'!C284","v":0},{"$f":"IF(I130=\"months\",H130*4.3,IF(I130=\"year\",H130*52,IF(I130=\"weeks\",H130,\"0\")))","v":"0"},null,0]
["90-96 gal Container",25,{"$f":"'Report Calculator (Required)'!B287","v":0},{"$f":"'Report Calculator (Required)'!B288","v":0},{"$f":"'Report Calculator (Required)'!C288","v":0},"0",{"$f":"52-'Report Calculator (Required)'!B17","v":52},{"$f":"'Report Calculator (Required)'!B303","v":0},{"$f":"'Report Calculator (Required)'!C303","v":0},"0",null,0]
["2-Cubic Yard Dumpster",73,{"$f":"'Report Calculator (Required)'!B213","v":0},{"$f":"'Report Calculator (Required)'!B214","v":0},{"$f":"'Report Calculator (Required)'!C214","v":0},"0",{"$f":"52-'Report Calculator (Required)'!B17","v":52},{"$f":"'Report Calculator (Required)'!B227","v":0},{"$f":"'Report Calculator (Required)'!C227","v":0},"0",null,0]
["2-Cubic Yard Dumpster",73,{"$f":"'Report Calculator (Required)'!B232","v":0},{"$f":"'Report Calculator (Required)'!B233","v":0},{"$f":"'Report Calculator (Required)'!C233","v":0},"0",{"$f":"52-'Report Calculator (Required)'!B17","v":52},{"$f":"'Report Calculator (Required)'!B246","v":0},{"$f":"'Report Calculator (Required)'!C246","v":0},"0",null,0]
["2-Cubic Yard Dumpster",73,{"$f":"'Report Calculator (Required)'!B251","v":0},{"$f":"'Report Calculator (Required)'!B252","v":0},{"$f":"'Report Calculator (Required)'!C252","v":0},"0",{"$f":"52-'Report Calculator (Required)'!B17","v":52},{"$f":"'Report Calculator (Required)'!B265","v":0},{"$f":"'Report Calculator (Required)'!C265","v":0},"0",null,0]
["2-Cubic Yard Dumpster",73,{"$f":"'Report Calculator (Required)'!B270","v":0},{"$f":"'Report Calculator (Required)'!B271","v":0},{"$f":"'Report Calculator (Required)'!C271","v":0},"0",{"$f":"52-'Report Calculator (Required)'!B17","v":52},{"$f":"'Report Calculator (Required)'!B284","v":0},{"$f":"'Report Calculator (Required)'!C284","v":0},"0",null,0]
["2-Cubic Yard Dumpster",73,{"$f":"'Report Calculator (Required)'!B289","v":0},{"$f":"'Report Calculator (Required)'!B290","v":0},{"$f":"'Report Calculator (Required)'!C290","v":0},"0",{"$f":"52-'Report Calculator (Required)'!B17","v":52},{"$f":"'Report Calculator (Required)'!B303","v":0},{"$f":"'Report Calculator (Required)'!C303","v":0},"0",null,0]
["4-Cubic Yard Dumpster",146,{"$f":"'Report Calculator (Required)'!B215","v":0},{"$f":"'Report Calculator (Required)'!B216","v":0},{"$f":"'Report Calculator (Required)'!C216","v":0},"0",{"$f":"52-'Report Calculator (Required)'!B17","v":52},{"$f":"'Report Calculator (Required)'!B227","v":0},{"$f":"'Report Calculator (Required)'!C227","v":0},"0",null,0]
["4-Cubic Yard Dumpster",146,{"$f":"'Report Calculator (Required)'!B234","v":0},{"$f":"'Report Calculator (Required)'!B235","v":0},{"$f":"'Report Calculator (Required)'!C235","v":0},"0",{"$f":"52-'Report Calculator (Required)'!B17","v":52},{"$f":"'Report Calculator (Required)'!B246","v":0},{"$f":"'Report Calculator (Required)'!C246","v":0},"0",null,{"$f":"IF(J138=0,B138*C138*F138*G138,B138*C138*F138*J138)","v":0}]
["4-Cubic Yard Dumpster",146,{"$f":"'Report Calculator (Required)'!B253","v":0},{"$f":"'Report Calculator (Required)'!B254","v":0},{"$f":"'Report Calculator (Required)'!C254","v":0},"0",{"$f":"52-'Report Calculator (Required)'!B17","v":52},{"$f":"'Report Calculator (Required)'!B265","v":0},{"$f":"'Report Calculator (Required)'!C265","v":0},"0",null,0]
["4-Cubic Yard Dumpster",146,{"$f":"'Report Calculator (Required)'!B272","v":0},{"$f":"'Report Calculator (Required)'!B273","v":0},{"$f":"'Report Calculator (Required)'!C273","v":0},"0",{"$f":"52-'Report Calculator (Required)'!B17","v":52},{"$f":"'Report Calculator (Required)'!B284","v":0},{"$f":"'Report Calculator (Required)'!C284","v":0},"0",null,0]
["4-Cubic Yard Dumpster",146,{"$f":"'Report Calculator (Required)'!B291","v":0},{"$f":"'Report Calculator (Required)'!B292","v":0},{"$f":"'Report Calculator (Required)'!C292","v":0},"0",{"$f":"52-'Report Calculator (Required)'!B17","v":52},{"$f":"'Report Calculator (Required)'!B303","v":0},{"$f":"'Report Calculator (Required)'!C303","v":0},"0",null,0]
["6-Cubic Yard Dumpster",219,{"$f":"'Report Calculator (Required)'!B217","v":0},{"$f":"'Report Calculator (Required)'!B218","v":0},{"$f":"'Report Calculator (Required)'!C218","v":0},"0",{"$f":"52-'Report Calculator (Required)'!B17","v":52},{"$f":"'Report Calculator (Required)'!B227","v":0},{"$f":"'Report Calculator (Required)'!C227","v":0},"0",null,0]
["6-Cubic Yard Dumpster",219,{"$f":"'Report Calculator (Required)'!B236","v":0},{"$f":"'Report Calculator (Required)'!B237","v":0},{"$f":"'Report Calculator (Required)'!C237","v":0},"0",{"$f":"52-'Report Calculator (Required)'!B17","v":52},{"$f":"'Report Calculator (Required)'!B246","v":0},{"$f":"'Report Calculator (Required)'!C246","v":0},"0",null,0]
["6-Cubic Yard Dumpster",219,{"$f":"'Report Calculator (Required)'!B255","v":0},{"$f":"'Report Calculator (Required)'!B256","v":0},{"$f":"'Report Calculator (Required)'!C256","v":0},"0",{"$f":"52-'Report Calculator (Required)'!B17","v":52},{"$f":"'Report Calculator (Required)'!B265","v":0},{"$f":"'Report Calculator (Required)'!C265","v":0},"0",null,0]
["6-Cubic Yard Dumpster",219,{"$f":"'Report Calculator (Required)'!B274","v":0},{"$f":"'Report Calculator (Required)'!B275","v":0},{"$f":"'Report Calculator (Required)'!C275","v":0},"0",{"$f":"52-'Report Calculator (Required)'!B17","v":52},{"$f":"'Report Calculator (Required)'!B284","v":0},{"$f":"'Report Calculator (Required)'!C284","v":0},"0",null,0]
["6-Cubic Yard Dumpster",219,{"$f":"'Report Calculator (Required)'!B293","v":0},{"$f":"'Report Calculator (Required)'!B294","v":0},{"$f":"'Report Calculator (Required)'!C294","v":0},"0",{"$f":"52-'Report Calculator (Required)'!B17","v":52},{"$f":"'Report Calculator (Required)'!B303","v":0},{"$f":"'Report Calculator (Required)'!C303","v":0},"0",null,0]
["8-Cubic Yard Dumpster",292,{"$f":"'Report Calculator (Required)'!B219","v":0},{"$f":"'Report Calculator (Required)'!B220","v":0},{"$f":"'Report Calculator (Required)'!C220","v":0},"0",{"$f":"52-'Report Calculator (Required)'!B17","v":52},{"$f":"'Report Calculator (Required)'!B227","v":0},{"$f":"'Report Calculator (Required)'!C227","v":0},"0",null,0]
["8-Cubic Yard Dumpster",292,{"$f":"'Report Calculator (Required)'!B238","v":0},{"$f":"'Report Calculator (Required)'!B239","v":0},{"$f":"'Report Calculator (Required)'!C239","v":0},"0",{"$f":"52-'Report Calculator (Required)'!B17","v":52},{"$f":"'Report Calculator (Required)'!B246","v":0},{"$f":"'Report Calculator (Required)'!C246","v":0},"0",null,0]
["8-Cubic Yard Dumpster",292,{"$f":"'Report Calculator (Required)'!B257","v":0},{"$f":"'Report Calculator (Required)'!B258","v":0},{"$f":"'Report Calculator (Required)'!C258","v":0},"0",{"$f":"52-'Report Calculator (Required)'!B17","v":52},{"$f":"'Report Calculator (Required)'!B265","v":0},{"$f":"'Report Calculator (Required)'!C265","v":0},"0",null,0]
["8-Cubic Yard Dumpster",292,{"$f":"'Report Calculator (Required)'!B276","v":0},{"$f":"'Report Calculator (Required)'!B277","v":0},{"$f":"'Report Calculator (Required)'!C277","v":0},"0",{"$f":"52-'Report Calculator (Required)'!B17","v":52},{"$f":"'Report Calculator (Required)'!B284","v":0},{"$f":"'Report Calculator (Required)'!C284","v":0},"0",null,0]
["8-Cubic Yard Dumpster",292,{"$f":"'Report Calculator (Required)'!B295","v":0},{"$f":"'Report Calculator (Required)'!B296","v":0},{"$f":"'Report Calculator (Required)'!C296","v":0},"0",{"$f":"52-'Report Calculator (Required)'!B17","v":52},{"$f":"'Report Calculator (Required)'!B303","v":0},{"$f":"'Report Calculator (Required)'!C303","v":0},"0",null,0]
["10-Cubic Yard Roll-Off",365,{"$f":"'Report Calculator (Required)'!B221","v":0},{"$f":"'Report Calculator (Required)'!B222","v":0},{"$f":"'Report Calculator (Required)'!C222","v":0},"0",{"$f":"52-'Report Calculator (Required)'!B17","v":52},{"$f":"'Report Calculator (Required)'!B227","v":0},{"$f":"'Report Calculator (Required)'!C227","v":0},"0",null,0]
["10-Cubic Yard Roll-Off",365,{"$f":"'Report Calculator (Required)'!B240","v":0},{"$f":"'Report Calculator (Required)'!B241","v":0},{"$f":"'Report Calculator (Required)'!C241","v":0},{"$f":"IF(E153=\"/month\",IMDIV(D153,4.3),IF(E153=\"/week\",D153,IF(E153=\"/year\",IMDIV(D153,52),\"0\")))","v":"0"},{"$f":"52-'Report Calculator (Required)'!B17","v":52},{"$f":"'Report Calculator (Required)'!B246","v":0},{"$f":"'Report Calculator (Required)'!C246","v":0},"0",null,0]
["10-Cubic Yard Roll-Off",365,{"$f":"'Report Calculator (Required)'!B259","v":0},{"$f":"'Report Calculator (Required)'!B260","v":0},{"$f":"'Report Calculator (Required)'!C260","v":0},"0",{"$f":"52-'Report Calculator (Required)'!B17","v":52},{"$f":"'Report Calculator (Required)'!B265","v":0},{"$f":"'Report Calculator (Required)'!C265","v":0},"0",null,0]
["10-Cubic Yard Roll-Off",365,{"$f":"'Report Calculator (Required)'!B278","v":0},{"$f":"'Report Calculator (Required)'!B279","v":0},{"$f":"'Report Calculator (Required)'!C279","v":0},"0",{"$f":"52-'Report Calculator (Required)'!B17","v":52},{"$f":"'Report Calculator (Required)'!B284","v":0},{"$f":"'Report Calculator (Required)'!C284","v":0},"0",null,0]
["10-Cubic Yard Roll-Off",365,{"$f":"'Report Calculator (Required)'!B297","v":0},{"$f":"'Report Calculator (Required)'!B298","v":0},{"$f":"'Report Calculator (Required)'!C298","v":0},"0",{"$f":"52-'Report Calculator (Required)'!B17","v":52},{"$f":"'Report Calculator (Required)'!B303","v":0},{"$f":"'Report Calculator (Required)'!C303","v":0},"0",null,0]
["20-Cubic Yard Roll-Off",730,{"$f":"'Report Calculator (Required)'!B223","v":0},{"$f":"'Report Calculator (Required)'!B224","v":0},{"$f":"'Report Calculator (Required)'!C224","v":0},"0",{"$f":"52-'Report Calculator (Required)'!B17","v":52},{"$f":"'Report Calculator (Required)'!B227","v":0},{"$f":"'Report Calculator (Required)'!C227","v":0},"0",null,0]
["20-Cubic Yard Roll-Off",730,{"$f":"'Report Calculator (Required)'!B242","v":0},{"$f":"'Report Calculator (Required)'!B243","v":0},{"$f":"'Report Calculator (Required)'!C243","v":0},"0",{"$f":"52-'Report Calculator (Required)'!B17","v":52},{"$f":"'Report Calculator (Required)'!B246","v":0},{"$f":"'Report Calculator (Required)'!C246","v":0},"0",null,0]
["20-Cubic Yard Roll-Off",730,{"$f":"'Report Calculator (Required)'!B261","v":0},{"$f":"'Report Calculator (Required)'!B262","v":0},{"$f":"'Report Calculator (Required)'!C262","v":0},"0",{"$f":"52-'Report Calculator (Required)'!B17","v":52},{"$f":"'Report Calculator (Required)'!B265","v":0},{"$f":"'Report Calculator (Required)'!C265","v":0},"0",null,0]
["20-Cubic Yard Roll-Off",730,{"$f":"'Report Calculator (Required)'!B280","v":0},{"$f":"'Report Calculator (Required)'!B281","v":0},{"$f":"'Report Calculator (Required)'!C281","v":0},"0",{"$f":"52-'Report Calculator (Required)'!B17","v":52},{"$f":"'Report Calculator (Required)'!B284","v":0},{"$f":"'Report Calculator (Required)'!C284","v":0},"0",null,0]
["20-Cubic Yard Roll-Off",730,{"$f":"'Report Calculator (Required)'!B299","v":0},{"$f":"'Report Calculator (Required)'!B300","v":0},{"$f":"'Report Calculator (Required)'!C300","v":0},"0",{"$f":"52-'Report Calculator (Required)'!B17","v":52},{"$f":"'Report Calculator (Required)'!B303","v":0},{"$f":"'Report Calculator (Required)'!C303","v":0},"0",null,0]
["30-Cubic Yard Roll-Off",1095,{"$f":"'Report Calculator (Required)'!B225","v":0},{"$f":"'Report Calculator (Required)'!B226","v":0},{"$f":"'Report Calculator (Required)'!C226","v":0},"0",{"$f":"52-'Report Calculator (Required)'!B17","v":52},{"$f":"'Report Calculator (Required)'!B227","v":0},{"$f":"'Report Calculator (Required)'!C227","v":0},"0",null,0]
["30-Cubic Yard Roll-Off",1095,{"$f":"'Report Calculator (Required)'!B244","v":0},{"$f":"'Report Calculator (Required)'!B245","v":0},{"$f":"'Report Calculator (Required)'!C245","v":0},"0",{"$f":"52-'Report Calculator (Required)'!B17","v":52},{"$f":"'Report Calculator (Required)'!B246","v":0},{"$f":"'Report Calculator (Required)'!C246","v":0},"0",null,0]
["30-Cubic Yard Roll-Off",1095,{"$f":"'Report Calculator (Required)'!B263","v":0},{"$f":"'Report Calculator (Required)'!B264","v":0},{"$f":"'Report Calculator (Required)'!C264","v":0},"0",{"$f":"52-'Report Calculator (Required)'!B17","v":52},{"$f":"'Report Calculator (Required)'!B265","v":0},{"$f":"'Report Calculator (Required)'!C265","v":0},"0",null,0]
["30-Cubic Yard Roll-Off",1095,{"$f":"'Report Calculator (Required)'!B282","v":0},{"$f":"'Report Calculator (Required)'!B283","v":0},{"$f":"'Report Calculator (Required)'!C283","v":0},"0",{"$f":"52-'Report Calculator (Required)'!B17","v":52},{"$f":"'Report Calculator (Required)'!B284","v":0},{"$f":"'Report Calculator (Required)'!C284","v":0},"0",null,0]
["30-Cubic Yard Roll-Off",1095,{"$f":"'Report Calculator (Required)'!B301","v":0},{"$f":"'Report Calculator (Required)'!B302","v":0},{"$f":"'Report Calculator (Required)'!C302","v":0},"0",{"$f":"52-'Report Calculator (Required)'!B17","v":52},{"$f":"'Report Calculator (Required)'!B303","v":0},{"$f":"'Report Calculator (Required)'!C303","v":0},"0",null,0]
["Trash","Weight","# Containers","# Pickups","Pickup Frequency","Pickup Per Week","Weeks (COVID-Adjusted)","Pickup Duration (Length)","Pickup Duration (Frequency)","Pickup Duration (Weeks)",null,"Total Yearly Pounds"]
["90-96 gal Container",60,{"$f":"'Report Calculator (Required)'!B405","v":0},{"$f":"'Report Calculator (Required)'!B406","v":0},{"$f":"'Report Calculator (Required)'!C406","v":0},{"$f":"IF(E168=\"/month\",IMDIV(D168,4.3),IF(E168=\"/week\",D168,IF(E168=\"/year\",IMDIV(D168,52),\"0\")))","v":"0"},{"$f":"52-'Report Calculator (Required)'!B17","v":52},{"$f":"'Report Calculator (Required)'!B421","v":0},{"$f":"'Report Calculator (Required)'!C421","v":0},"0",null,0]
["90-96 gal Container",60,{"$f":"'Report Calculator (Required)'!B424","v":0},{"$f":"'Report Calculator (Required)'!B425","v":0},{"$f":"'Report Calculator (Required)'!C425","v":0},"0",{"$f":"52-'Report Calculator (Required)'!B17","v":52},{"$f":"'Report Calculator (Required)'!B440","v":0},{"$f":"'Report Calculator (Required)'!C440","v":0},"0",null,0]
["90-96 gal Container",60,{"$f":"'Report Calculator (Required)'!B443","v":0},{"$f":"'Report Calculator (Required)'!B444","v":0},{"$f":"'Report Calculator (Required)'!C444","v":0},"0",{"$f":"52-'Report Calculator (Required)'!B17","v":52},{"$f":"'Report Calculator (Required)'!B459","v":0},{"$f":"'Report Calculator (Required)'!C459","v":0},"0",null,0]
["90-96 gal Container",60,{"$f":"'Report Calculator (Required)'!B462","v":0},{"$f":"'Report Calculator (Required)'!B463","v":0},{"$f":"'Report Calculator (Required)'!C463","v":0},"0",{"$f":"52-'Report Calculator (Required)'!B17","v":52},{"$f":"'Report Calculator (Required)'!B478","v":0},{"$f":"'Report Calculator (Required)'!C478","v":0},"0",null,0]
["90-96 gal Container",60,{"$f":"'Report Calculator (Required)'!B481","v":0},{"$f":"'Report Calculator (Required)'!B482","v":0},{"$f":"'Report Calculator (Required)'!C482","v":0},"0",{"$f":"52-'Report Calculator (Required)'!B17","v":52},{"$f":"'Report Calculator (Required)'!B497","v":0},{"$f":"'Report Calculator (Required)'!C497","v":0},"0",null,0]
["2-Cubic Yard Dumpster",240,{"$f":"'Report Calculator (Required)'!B407","v":0},{"$f":"'Report Calculator (Required)'!B408","v":0},{"$f":"'Report Calculator (Required)'!C408","v":0},"0",{"$f":"52-'Report Calculator (Required)'!B17","v":52},{"$f":"'Report Calculator (Required)'!B421","v":0},{"$f":"'Report Calculator (Required)'!C421","v":0},"0",null,0]
["2-Cubic Yard Dumpster",240,{"$f":"'Report Calculator (Required)'!B426","v":0},{"$f":"'Report Calculator (Required)'!B427","v":0},{"$f":"'Report Calculator (Required)'!C427","v":0},"0",{"$f":"52-'Report Calculator (Required)'!B17","v":52},{"$f":"'Report Calculator (Required)'!B440","v":0},{"$f":"'Report Calculator (Required)'!C440","v":0},"0",null,0]
["2-Cubic Yard Dumpster",240,{"$f":"'Report Calculator (Required)'!B445","v":0},{"$f":"'Report Calculator (Required)'!B446","v":0},{"$f":"'Report Calculator (Required)'!C446","v":0},"0",{"$f":"52-'Report Calculator (Required)'!B17","v":52},{"$f":"'Report Calculator (Required)'!B459","v":0},{"$f":"'Report Calculator (Required)'!C459","v":0},"0",null,0]
["2-Cubic Yard Dumpster",240,{"$f":"'Report Calculator (Required)'!B464","v":0},{"$f":"'Report Calculator (Required)'!B465","v":0},{"$f":"'Report Calculator (Required)'!C465","v":0},"0",{"$f":"52-'Report Calculator (Required)'!B17","v":52},{"$f":"'Report Calculator (Required)'!B478","v":0},{"$f":"'Report Calculator (Required)'!C478","v":0},"0",null,0]
["2-Cubic Yard Dumpster",240,{"$f":"'Report Calculator (Required)'!B483","v":0},{"$f":"'Report Calculator (Required)'!B484","v":0},{"$f":"'Report Calculator (Required)'!C484","v":0},"0",{"$f":"52-'Report Calculator (Required)'!B17","v":52},{"$f":"'Report Calculator (Required)'!B497","v":0},{"$f":"'Report Calculator (Required)'!C497","v":0},"0",null,0]
["4-Cubic Yard Dumpster",480,{"$f":"'Report Calculator (Required)'!B409","v":0},{"$f":"'Report Calculator (Required)'!B410","v":0},{"$f":"'Report Calculator (Required)'!C410","v":0},"0",{"$f":"52-'Report Calculator (Required)'!B17","v":52},{"$f":"'Report Calculator (Required)'!B421","v":0},{"$f":"'Report Calculator (Required)'!C421","v":0},"0",null,0]
["4-Cubic Yard Dumpster",480,{"$f":"'Report Calculator (Required)'!B428","v":0},{"$f":"'Report Calculator (Required)'!B429","v":0},{"$f":"'Report Calculator (Required)'!C429","v":0},"0",{"$f":"52-'Report Calculator (Required)'!B17","v":52},{"$f":"'Report Calculator (Required)'!B440","v":0},{"$f":"'Report Calculator (Required)'!C440","v":0},"0",null,0]
["4-Cubic Yard Dumpster",480,{"$f":"'Report Calculator (Required)'!B447","v":0},{"$f":"'Report Calculator (Required)'!B448","v":0},{"$f":"'Report Calculator (Required)'!C448","v":0},"0",{"$f":"52-'Report Calculator (Required)'!B17","v":52},{"$f":"'Report Calculator (Required)'!B459","v":0},{"$f":"'Report Calculator (Required)'!C459","v":0},"0",null,0]
["4-Cubic Yard Dumpster",480,{"$f":"'Report Calculator (Required)'!B466","v":0},{"$f":"'Report Calculator (Required)'!B467","v":0},{"$f":"'Report Calculator (Required)'!C467","v":0},"0",{"$f":"52-'Report Calculator (Required)'!B17","v":52},{"$f":"'Report Calculator (Required)'!B478","v":0},{"$f":"'Report Calculator (Required)'!C478","v":0},"0",null,0]
["4-Cubic Yard Dumpster",480,{"$f":"'Report Calculator (Required)'!B485","v":0},{"$f":"'Report Calculator (Required)'!B486","v":0},{"$f":"'Report Calculator (Required)'!C486","v":0},"0",{"$f":"52-'Report Calculator (Required)'!B17","v":52},{"$f":"'Report Calculator (Required)'!B497","v":0},{"$f":"'Report Calculator (Required)'!C497","v":0},"0",null,0]
["6-Cubic Yard Dumpster",720,{"$f":"'Report Calculator (Required)'!B411","v":0},{"$f":"'Report Calculator (Required)'!B412","v":0},{"$f":"'Report Calculator (Required)'!C412","v":0},"0",{"$f":"52-'Report Calculator (Required)'!B17","v":52},{"$f":"'Report Calculator (Required)'!B421","v":0},{"$f":"'Report Calculator (Required)'!C421","v":0},"0",null,0]
["6-Cubic Yard Dumpster",720,{"$f":"'Report Calculator (Required)'!B430","v":0},{"$f":"'Report Calculator (Required)'!B431","v":0},{"$f":"'Report Calculator (Required)'!C431","v":0},"0",{"$f":"52-'Report Calculator (Required)'!B17","v":52},{"$f":"'Report Calculator (Required)'!B440","v":0},{"$f":"'Report Calculator (Required)'!C440","v":0},"0",null,0]
["6-Cubic Yard Dumpster",720,{"$f":"'Report Calculator (Required)'!B449","v":0},{"$f":"'Report Calculator (Required)'!B450","v":0},{"$f":"'Report Calculator (Required)'!C450","v":0},"0",{"$f":"52-'Report Calculator (Required)'!B17","v":52},{"$f":"'Report Calculator (Required)'!B459","v":0},{"$f":"'Report Calculator (Required)'!C459","v":0},"0",null,0]
["6-Cubic Yard Dumpster",720,{"$f":"'Report Calculator (Required)'!B468","v":0},{"$f":"'Report Calculator (Required)'!B469","v":0},{"$f":"'Report Calculator (Required)'!C469","v":0},"0",{"$f":"52-'Report Calculator (Required)'!B17","v":52},{"$f":"'Report Calculator (Required)'!B478","v":0},{"$f":"'Report Calculator (Required)'!C478","v":0},"0",null,0]
["6-Cubic Yard Dumpster",720,{"$f":"'Report Calculator (Required)'!B487","v":0},{"$f":"'Report Calculator (Required)'!B488","v":0},{"$f":"'Report Calculator (Required)'!C488","v":0},"0",{"$f":"52-'Report Calculator (Required)'!B17","v":52},{"$f":"'Report Calculator (Required)'!B497","v":0},{"$f":"'Report Calculator (Required)'!C497","v":0},"0",null,0]
["8-Cubic Yard Dumpster",960,{"$f":"'Report Calculator (Required)'!B413","v":0},{"$f":"'Report Calculator (Required)'!B414","v":0},{"$f":"'Report Calculator (Required)'!C414","v":0},"0",{"$f":"52-'Report Calculator (Required)'!B17","v":52},{"$f":"'Report Calculator (Required)'!B421","v":0},{"$f":"'Report Calculator (Required)'!C421","v":0},"0",null,0]
["8-Cubic Yard Dumpster",960,{"$f":"'Report Calculator (Required)'!B432","v":0},{"$f":"'Report Calculator (Required)'!B433","v":0},{"$f":"'Report Calculator (Required)'!C433","v":0},"0",{"$f":"52-'Report Calculator (Required)'!B17","v":52},{"$f":"'Report Calculator (Required)'!B440","v":0},{"$f":"'Report Calculator (Required)'!C440","v":0},"0",null,0]
["8-Cubic Yard Dumpster",960,{"$f":"'Report Calculator (Required)'!B451","v":0},{"$f":"'Report Calculator (Required)'!B452","v":0},{"$f":"'Report Calculator (Required)'!C452","v":0},"0",{"$f":"52-'Report Calculator (Required)'!B17","v":52},{"$f":"'Report Calculator (Required)'!B459","v":0},{"$f":"'Report Calculator (Required)'!C459","v":0},"0",null,0]
["8-Cubic Yard Dumpster",960,{"$f":"'Report Calculator (Required)'!B470","v":0},{"$f":"'Report Calculator (Required)'!B471","v":0},{"$f":"'Report Calculator (Required)'!C471","v":0},"0",{"$f":"52-'Report Calculator (Required)'!B17","v":52},{"$f":"'Report Calculator (Required)'!B478","v":0},{"$f":"'Report Calculator (Required)'!C478","v":0},"0",null,0]
["8-Cubic Yard Dumpster",960,{"$f":"'Report Calculator (Required)'!B489","v":0},{"$f":"'Report Calculator (Required)'!B490","v":0},{"$f":"'Report Calculator (Required)'!C490","v":0},"0",{"$f":"52-'Report Calculator (Required)'!B17","v":52},{"$f":"'Report Calculator (Required)'!B497","v":0},{"$f":"'Report Calculator (Required)'!C497","v":0},"0",null,0]
["10-Cubic Yard Roll-Off",1200,{"$f":"'Report Calculator (Required)'!B415","v":0},{"$f":"'Report Calculator (Required)'!B416","v":0},{"$f":"'Report Calculator (Required)'!C416","v":0},"0",{"$f":"52-'Report Calculator (Required)'!B17","v":52},{"$f":"'Report Calculator (Required)'!B421","v":0},{"$f":"'Report Calculator (Required)'!C421","v":0},"0",null,0]
["10-Cubic Yard Roll-Off",1200,{"$f":"'Report Calculator (Required)'!B434","v":0},{"$f":"'Report Calculator (Required)'!B435","v":0},{"$f":"'Report Calculator (Required)'!C435","v":0},"0",{"$f":"52-'Report Calculator (Required)'!B17","v":52},{"$f":"'Report Calculator (Required)'!B440","v":0},{"$f":"'Report Calculator (Required)'!C440","v":0},{"$f":"IF(I194=\"months\",H194*4.3,IF(I194=\"year\",H194*52,IF(I194=\"weeks\",H194,\"0\")))","v":"0"},null,0]
["10-Cubic Yard Roll-Off",1200,{"$f":"'Report Calculator (Required)'!B453","v":0},{"$f":"'Report Calculator (Required)'!B454","v":0},{"$f":"'Report Calculator (Required)'!C454","v":0},"0",{"$f":"52-'Report Calculator (Required)'!B17","v":52},{"$f":"'Report Calculator (Required)'!B459","v":0},{"$f":"'Report Calculator (Required)'!C459","v":0},"0",null,0]
["10-Cubic Yard Roll-Off",1200,{"$f":"'Report Calculator (Required)'!B472","v":0},{"$f":"'Report Calculator (Required)'!B473","v":0},{"$f":"'Report Calculator (Required)'!C473","v":0},"0",{"$f":"52-'Report Calculator (Required)'!B17","v":52},{"$f":"'Report Calculator (Required)'!B478","v":0},{"$f":"'Report Calculator (Required)'!C478","v":0},"0",null,0]
["10-Cubic Yard Roll-Off",1200,{"$f":"'Report Calculator (Required)'!B491","v":0},{"$f":"'Report Calculator (Required)'!B492","v":0},{"$f":"'Report Calculator (Required)'!C492","v":0},"0",{"$f":"52-'Report Calculator (Required)'!B17","v":52},{"$f":"'Report Calculator (Required)'!B497","v":0},{"$f":"'Report Calculator (Required)'!C497","v":0},"0",null,0]
["20-Cubic Yard Roll-Off",2400,{"$f":"'Report Calculator (Required)'!B417","v":0},{"$f":"'Report Calculator (Required)'!B418","v":0},{"$f":"'Report Calculator (Required)'!C418","v":0},"0",{"$f":"52-'Report Calculator (Required)'!B17","v":52},{"$f":"'Report Calculator (Required)'!B421","v":0},{"$f":"'Report Calculator (Required)'!C421","v":0},"0",null,0]
["20-Cubic Yard Roll-Off",2400,{"$f":"'Report Calculator (Required)'!B436","v":0},{"$f":"'Report Calculator (Required)'!B437","v":0},{"$f":"'Report Calculator (Required)'!C437","v":0},"0",{"$f":"52-'Report Calculator (Required)'!B17","v":52},{"$f":"'Report Calculator (Required)'!B440","v":0},{"$f":"'Report Calculator (Required)'!C440","v":0},"0",null,0]
["20-Cubic Yard Roll-Off",2400,{"$f":"'Report Calculator (Required)'!B455","v":0},{"$f":"'Report Calculator (Required)'!B456","v":0},{"$f":"'Report Calculator (Required)'!C456","v":0},"0",{"$f":"52-'Report Calculator (Required)'!B17","v":52},{"$f":"'Report Calculator (Required)'!B459","v":0},{"$f":"'Report Calculator (Required)'!C459","v":0},"0",null,0]
["20-Cubic Yard Roll-Off",2400,{"$f":"'Report Calculator (Required)'!B474","v":0},{"$f":"'Report Calculator (Required)'!B475","v":0},{"$f":"'Report Calculator (Required)'!C475","v":0},"0",{"$f":"52-'Report Calculator (Required)'!B17","v":52},{"$f":"'Report Calculator (Required)'!B478","v":0},{"$f":"'Report Calculator (Required)'!C478","v":0},"0",null,0]
["20-Cubic Yard Roll-Off",2400,{"$f":"'Report Calculator (Required)'!B493","v":0},{"$f":"'Report Calculator (Required)'!B494","v":0},{"$f":"'Report Calculator (Required)'!C494","v":0},"0",{"$f":"52-'Report Calculator (Required)'!B17","v":52},{"$f":"'Report Calculator (Required)'!B497","v":0},{"$f":"'Report Calculator (Required)'!C497","v":0},"0",null,{"$f":"IF(J202=0,B202*C202*F202*G202,B202*C202*F202*J202)","v":0}]
["30-Cubic Yard Roll-Off",3600,{"$f":"'Report Calculator (Required)'!B419","v":0},{"$f":"'Report Calculator (Required)'!B420","v":0},{"$f":"'Report Calculator (Required)'!C420","v":0},"0",{"$f":"52-'Report Calculator (Required)'!B17","v":52},{"$f":"'Report Calculator (Required)'!B421","v":0},{"$f":"'Report Calculator (Required)'!C421","v":0},"0",null,0]
["30-Cubic Yard Roll-Off",3600,{"$f":"'Report Calculator (Required)'!B438","v":0},{"$f":"'Report Calculator (Required)'!B439","v":0},{"$f":"'Report Calculator (Required)'!C439","v":0},"0",{"$f":"52-'Report Calculator (Required)'!B17","v":52},{"$f":"'Report Calculator (Required)'!B440","v":0},{"$f":"'Report Calculator (Required)'!C440","v":0},"0",null,0]
["30-Cubic Yard Roll-Off",3600,{"$f":"'Report Calculator (Required)'!B457","v":0},{"$f":"'Report Calculator (Required)'!B458","v":0},{"$f":"'Report Calculator (Required)'!C458","v":0},"0",{"$f":"52-'Report Calculator (Required)'!B17","v":52},{"$f":"'Report Calculator (Required)'!B459","v":0},{"$f":"'Report Calculator (Required)'!C459","v":0},"0",null,0]
["30-Cubic Yard Roll-Off",3600,{"$f":"'Report Calculator (Required)'!B476","v":0},{"$f":"'Report Calculator (Required)'!B477","v":0},{"$f":"'Report Calculator (Required)'!C477","v":0},"0",{"$f":"52-'Report Calculator (Required)'!B17","v":52},{"$f":"'Report Calculator (Required)'!B478","v":0},{"$f":"'Report Calculator (Required)'!C478","v":0},"0",null,0]
["30-Cubic Yard Roll-Off",3600,{"$f":"'Report Calculator (Required)'!B495","v":0},{"$f":"'Report Calculator (Required)'!B496","v":0},{"$f":"'Report Calculator (Required)'!C496","v":0},"0",{"$f":"52-'Report Calculator (Required)'!B17","v":52},{"$f":"'Report Calculator (Required)'!B497","v":0},{"$f":"'Report Calculator (Required)'!C497","v":0},"0",null,0]
["Yard Trim",null,"Acerage",null,null,null,null,null,null,null,null,"Tons",null,"Pounds"]
["--","--",{"$f":"'Report Calculator (Required)'!B401","v":""},{"$f":"'Report Calculator (Required)'!B402","v":0},{"$f":"'Report Calculator (Required)'!C402","v":0},"0",{"$f":"52-'Report Calculator (Required)'!B17","v":52},null,null,null,null,{"$f":"IF('Report Calculator (Required)'!B400=\"Hauled Away\",(C209*F209*G209)*7.6,C209*7.6)","v":{"$error":"#VALUE!"}},null,{"$f":"L209*2000","v":{"$error":"#VALUE!"}}]
[]
["Percentages"]
["Mixed Paper",0.59099999999999997]
["Commingled",0.35299999999999998]
[]
["Computers & Electronic Equipment","Weight","Amounts",null,null,null,null,null,null,null,null,"Total Yearly Pounds"]
["     Desktop",27,{"$f":"'Report Calculator (Voluntary)'!C6","v":0},null,null,null,null,null,null,null,null,{"$f":"B216*C216","v":0}]
["     Laptop",7,{"$f":"'Report Calculator (Voluntary)'!C7","v":0},null,null,null,null,null,null,null,null,{"$f":"B217*C217","v":0}]
["     CRT Monitor - 15\"",17,{"$f":"'Report Calculator (Voluntary)'!C9","v":0},null,null,null,null,null,null,null,null,0]
["     CRT Monitor - 17\"",25,{"$f":"'Report Calculator (Voluntary)'!C10","v":0},null,null,null,null,null,null,null,null,0]
["     CRT Monitor - 21\"",60,{"$f":"'Report Calculator (Voluntary)'!C11","v":0},null,null,null,null,null,null,null,null,0]
["     Flat Panel Monitor",10,{"$f":"'Report Calculator (Voluntary)'!C12","v":0},null,null,null,null,null,null,null,null,0]
["     Printer",16.100000000000001,{"$f":"'Report Calculator (Voluntary)'!C13","v":0},null,null,null,null,null,null,null,null,0]
["     Mouse",0.2,{"$f":"'Report Calculator (Voluntary)'!C14","v":0},null,null,null,null,null,null,null,null,0]
["     Keyboard",2.9,{"$f":"'Report Calculator (Voluntary)'!C15","v":0},null,null,null,null,null,null,null,null,0]
["     Television",29,{"$f":"'Report Calculator (Voluntary)'!C17","v":0},null,null,null,null,null,null,null,null,0]
["     Cell Phone",0.22,{"$f":"'Report Calculator (Voluntary)'!C18","v":0},null,null,null,null,null,null,null,null,0]
["     Toner Cartridge",2.5,{"$f":"'Report Calculator (Voluntary)'!C19","v":0},null,null,null,null,null,null,null,null,0]
["Automotive"]
["     Passenger/Light Truck",20,{"$f":"'Report Calculator (Voluntary)'!C22","v":0},null,null,null,null,null,null,null,null,0]
["     Bus",75,{"$f":"'Report Calculator (Voluntary)'!C23","v":0},null,null,null,null,null,null,null,null,0]
["     Commercial/Heavy Truck",100,{"$f":"'Report Calculator (Voluntary)'!C24","v":0},null,null,null,null,null,null,null,null,0]
["     Passenger/Light Truck",36,{"$f":"'Report Calculator (Voluntary)'!C26","v":0},null,null,null,null,null,null,null,null,0]
["     Commercial/Heavy Truck",47,{"$f":"'Report Calculator (Voluntary)'!C27","v":0},null,null,null,null,null,null,null,null,0]
["     Antifreeze",8.42,{"$f":"IF(COUNTIF('Report Calculator (Voluntary)'!B29,\"drum (55 gal)\")>0,0,'Report Calculator (Voluntary)'!C29)","v":0},null,null,null,null,null,null,null,null,0]
["     Antifreeze",463.1,{"$f":"IF(COUNTIF('Report Calculator (Voluntary)'!B29,\"drum (55 gal)\")>0,'Report Calculator (Voluntary)'!C29,0)","v":0},null,null,null,null,null,null,null,null,0]
["     Used Motor Oil",7.4,{"$f":"IF(COUNTIF('Report Calculator (Voluntary)'!B30,\"drum (55 gal)\")>0,0,'Report Calculator (Voluntary)'!C30)","v":0},null,null,null,null,null,null,null,null,0]
["     Used Motor Oil",407,{"$f":"IF(COUNTIF('Report Calculator (Voluntary)'!B30,\"drum (55 gal)\")>0,'Report Calculator (Voluntary)'!C30,0)","v":0},null,null,null,null,null,null,null,null,0]
["     Oil Filters - Not Crushed",5,{"$f":"IF(COUNTIF('Report Calculator (Voluntary)'!B31,\"drum (55 gal)\")>0,0,'Report Calculator (Voluntary)'!C31)","v":0},null,null,null,null,null,null,null,null,0]
["     Oil Filters - Not Crushed",275,{"$f":"IF(COUNTIF('Report Calculator (Voluntary)'!B31,\"drum (55 gal)\")>0,'Report Calculator (Voluntary)'!C31,0)","v":0},null,null,null,null,null,null,null,null,0]
["     Oil Filters - Crushed",700,{"$f":"'Report Calculator (Voluntary)'!C32","v":0},null,null,null,null,null,null,null,null,0]
["Construction/Demolition"]
["     Composite Roofing",731,{"$f":"'Report Calculator (Voluntary)'!C35","v":0},null,null,null,null,null,null,null,null,0]
["     Asphalt Roofing",731,{"$f":"'Report Calculator (Voluntary)'!C36","v":0},null,null,null,null,null,null,null,null,0]
["     Miscenaleous Lumber",169,{"$f":"'Report Calculator (Voluntary)'!C38","v":0},null,null,null,null,null,null,null,null,0]
["     Concrete",860,{"$f":"'Report Calculator (Voluntary)'!C40","v":0},null,null,null,null,null,null,null,null,0]
["     Asphalt Paving",773,{"$f":"'Report Calculator (Voluntary)'!C41","v":0},null,null,null,null,null,null,null,null,0]
["     Gypsum Board (Drywall)",467,{"$f":"'Report Calculator (Voluntary)'!C42","v":0},null,null,null,null,null,null,null,null,0]
["     Aggregate",999,{"$f":"'Report Calculator (Voluntary)'!C43","v":0},null,null,null,null,null,null,null,null,0]
["     Dirt & Sand",929,{"$f":"'Report Calculator (Voluntary)'!C44","v":0},null,null,null,null,null,null,null,null,0]
["     Remainder/Composite C&D Debris",450,{"$f":"'Report Calculator (Voluntary)'!C45","v":0},null,null,null,null,null,null,null,null,0]
["     Light Bulbs - 4 foot",0.625,{"$f":"'Report Calculator (Voluntary)'!C46","v":0},null,null,null,null,null,null,null,null,0]
["Wood"]
["     Saw Dust - Dry",275,{"$f":"'Report Calculator (Voluntary)'!C48","v":0},null,null,null,null,null,null,null,null,0]
["     Saw Dust - Wet",530,{"$f":"'Report Calculator (Voluntary)'!C49","v":0},null,null,null,null,null,null,null,null,0]
["     Pallet",25,{"$f":"'Report Calculator (Voluntary)'!C50","v":0},null,null,null,null,null,null,null,null,0]
["     Wood Chips - Dry",243,{"$f":"'Report Calculator (Voluntary)'!C51","v":0},null,null,null,null,null,null,null,null,0]
["     Wood Chips - Green",473,{"$f":"'Report Calculator (Voluntary)'!C52","v":0},null,null,null,null,null,null,null,null,0]
["     Crates",169,{"$f":"'Report Calculator (Voluntary)'!C53","v":0},null,null,null,null,null,null,null,null,0]
["     Christmas Trees",30,{"$f":"'Report Calculator (Voluntary)'!C54","v":0},null,null,null,null,null,null,null,null,0]
["Clothing & Textiles"]
["     Clothing - Loose",225,{"$f":"'Report Calculator (Voluntary)'!C56","v":0},null,null,null,null,null,null,null,null,0]
["     Clothing - Compacted",540,{"$f":"'Report Calculator (Voluntary)'!C57","v":0},null,null,null,null,null,null,null,null,0]
["     Textiles - Loose",150,{"$f":"'Report Calculator (Voluntary)'!C58","v":0},null,null,null,null,null,null,null,null,0]
["     Carpeting",147,{"$f":"'Report Calculator (Voluntary)'!C59","v":0},null,null,null,null,null,null,null,null,0]
["     Carpet Padding",62,{"$f":"'Report Calculator (Voluntary)'!C60","v":0},null,null,null,null,null,null,null,null,0]
["     Mattress",55,{"$f":"'Report Calculator (Voluntary)'!C61","v":0},null,null,null,null,null,null,null,null,0]
["Household Batteries"]
["     Small Batteries - Mixed",10.91,{"$f":"IF(COUNTIF('Report Calculator (Voluntary)'!B63,\"drum (55 gal)\")>0,0,'Report Calculator (Voluntary)'!C63)","v":0},null,null,null,null,null,null,null,null,0]
["     Small Batteries - Mixed",600,{"$f":"IF(COUNTIF('Report Calculator (Voluntary)'!B63,\"drum (55 gal)\")>0,'Report Calculator (Voluntary)'!C63,0)","v":0},null,null,null,null,null,null,null,null,0]
["Food & Food Waste"]
["     Grease - Cooking",7.45,{"$f":"IF(COUNTIF('Report Calculator (Voluntary)'!B65,\"drum (55 gal)\")>0,0,'Report Calculator (Voluntary)'!C65)","v":0},null,null,null,null,null,null,null,null,0]
["     Grease - Cooking",410,{"$f":"IF(COUNTIF('Report Calculator (Voluntary)'!B65,\"drum (55 gal)\")>0,'Report Calculator (Voluntary)'!C65,0)","v":0},null,null,null,null,null,null,null,null,0]
["     Food Waste - General",463,{"$f":"'Report Calculator (Voluntary)'!C66","v":0},null,null,null,null,null,null,null,null,0]
["Other Plastics"]
["     Bags & Films - Loose",35,{"$f":"'Report Calculator (Voluntary)'!C68","v":0},null,null,null,null,null,null,null,null,0]
["     Bags & Films - Compacted",150,{"$f":"'Report Calculator (Voluntary)'!C69","v":0},null,null,null,null,null,null,null,null,0]
["Other Papers"]
["     Paper - Loose",420,{"$f":"'Report Calculator (Voluntary)'!C72","v":0},null,null,null,null,null,null,null,null,0]
["     Paper - Compacted",840,{"$f":"'Report Calculator (Voluntary)'!C73","v":0},null,null,null,null,null,null,null,null,0]
["     Paper - Shredded",128,{"$f":"'Report Calculator (Voluntary)'!C74","v":0},null,null,null,null,null,null,null,null,0]
["     Books - Hardback",529.29,{"$f":"'Report Calculator (Voluntary)'!C76","v":0},null,null,null,null,null,null,null,null,{"$f":"B281*C281","v":0}]
["     Books - Paperback",427.5,{"$f":"'Report Calculator (Voluntary)'!C77","v":0},null,null,null,null,null,null,null,null,0]
["     Magazines - Stacked",1215,{"$f":"'Report Calculator (Voluntary)'!C79","v":0},null,null,null,null,null,null,null,null,0]
["     Magazines - Loose",950,{"$f":"'Report Calculator (Voluntary)'!C80","v":0},null,null,null,null,null,null,null,null,0]
["     Newsprint - Loose",400,{"$f":"'Report Calculator (Voluntary)'!C81","v":0},null,null,null,null,null,null,null,null,0]
["Major Appliances"]
["     Dishwasher",92,{"$f":"'Report Calculator (Voluntary)'!C83","v":0},null,null,null,null,null,null,null,null,0]
["     Microwave",50,{"$f":"'Report Calculator (Voluntary)'!C84","v":0},null,null,null,null,null,null,null,null,0]
["     Range",181.1,{"$f":"'Report Calculator (Voluntary)'!C85","v":0},null,null,null,null,null,null,null,null,0]
["     Refrigerator",267,{"$f":"'Report Calculator (Voluntary)'!C86","v":0},null,null,null,null,null,null,null,null,0]
["     Freezer",193,{"$f":"'Report Calculator (Voluntary)'!C87","v":0},null,null,null,null,null,null,null,null,0]
["     Dryer - Clothes",130,{"$f":"'Report Calculator (Voluntary)'!C88","v":0},null,null,null,null,null,null,null,null,0]
["     Washer - Clothes",177,{"$f":"'Report Calculator (Voluntary)'!C89","v":0},null,null,null,null,null,null,null,null,0]
["     Air Conditioner",64.2,{"$f":"'Report Calculator (Voluntary)'!C90","v":0},null,null,null,null,null,null,null,null,0]
["     Water Heater",131,{"$f":"'Report Calculator (Voluntary)'!C91","v":0},null,null,null,null,null,null,null,null,0]
[]
[]
["Antifreeze",{"$f":"SUM(L234:L235)","v":0}]
["Batteries (Lead-Acid / Rechargable)",{"$f":"SUM(L232:L233)","v":0}]
["Batteries (Mixed Types)",{"$f":"SUM(L268:L269)","v":0}]
["Books / Catalogs / Magazines",{"$f":"SUM(L281:L285)","v":0}]
["Building Materials",{"$f":"SUM(L242:L243)","v":0}]
["Carpet / Carpet Padding",{"$f":"SUM(L264:L265)","v":0}]
["Cell Phones",{"$f":"L226","v":0}]
["Clothing / Textiles",{"$f":"SUM(L261:L263)","v":0}]
["Construction / Demolition Debris",{"$f":"SUM(L244:L248,L250,L287:L295)","v":0}]
["Dirt",{"$f":"L249","v":0}]
["Electronic Waste",{"$f":"SUM(L216:L225)","v":0}]
["Food Waste",{"$f":"SUM(L273)","v":0}]
["Lights",{"$f":"L251","v":0}]
["Mattresses",{"$f":"L266","v":0}]
["Oil (Cooking / Grease)",{"$f":"SUM(L271:L272)","v":0}]
["Oil (Motor)",{"$f":"SUM(L236:L237)","v":0}]
["Oil Filters",{"$f":"SUM(L238:L240)","v":0}]
["Pallets (Wood)",{"$f":"L255","v":0}]
["Plastic (Bags / Film / Shrink Wrap)",{"$f":"SUM(L275:L276)","v":0}]
["Tires",{"$f":"SUM(L229:L231)","v":0}]
["Toner / Ink / Fax / Printer Cartridges",{"$f":"L227","v":0}]
["Wood (Sawdust / Miscellaneous)",{"$f":"SUM(L253:L254,L256:L259)","v":0}]

{"sheet":"Zips","index":6,"n_rows":60,"n_cols":3,"rows_kept":60,"cut":false,"hidden":true,"merged":[]}
["Zip Code","Program Specialist","Email"]
[21770,"LaToia Walker-James","LaToia.Walker-James@montgomerycountymd.gov"]
[21771,"LaToia Walker-James","LaToia.Walker-James@montgomerycountymd.gov"]
[20872,"LaToia Walker-James","LaToia.Walker-James@montgomerycountymd.gov"]
[21797,"LaToia Walker-James","LaToia.Walker-James@montgomerycountymd.gov"]
[20871,"LaToia Walker-James","LaToia.Walker-James@montgomerycountymd.gov"]
[20881,"LaToia Walker-James","LaToia.Walker-James@montgomerycountymd.gov"]
[20876,"LaToia Walker-James","LaToia.Walker-James@montgomerycountymd.gov"]
[20886,"LaToia Walker-James","LaToia.Walker-James@montgomerycountymd.gov"]
[20833,"LaToia Walker-James","LaToia.Walker-James@montgomerycountymd.gov"]
[20879,"LaToia Walker-James","LaToia.Walker-James@montgomerycountymd.gov"]
[20877,"LaToia Walker-James","LaToia.Walker-James@montgomerycountymd.gov"]
[20880,"LaToia Walker-James","LaToia.Walker-James@montgomerycountymd.gov"]
[20855,"LaToia Walker-James","LaToia.Walker-James@montgomerycountymd.gov"]
[20862,"LaToia Walker-James","LaToia.Walker-James@montgomerycountymd.gov"]
[20777,"LaToia Walker-James","LaToia.Walker-James@montgomerycountymd.gov"]
[20860,"LaToia Walker-James","LaToia.Walker-James@montgomerycountymd.gov"]
[20832,"LaToia Walker-James","LaToia.Walker-James@montgomerycountymd.gov"]
[20861,"LaToia Walker-James","LaToia.Walker-James@montgomerycountymd.gov"]
[20853,"LaToia Walker-James","LaToia.Walker-James@montgomerycountymd.gov"]
[20851,"LaToia Walker-James","LaToia.Walker-James@montgomerycountymd.gov"]
[20905,"LaToia Walker-James","LaToia.Walker-James@montgomerycountymd.gov"]
[20842,"Laurence Guillat","Laurence.Guillat@montgomerycountymd.gov"]
[20838,"Laurence Guillat","Laurence.Guillat@montgomerycountymd.gov"]
[20839,"Laurence Guillat","Laurence.Guillat@montgomerycountymd.gov"]
[20841,"Laurence Guillat","Laurence.Guillat@montgomerycountymd.gov"]
[20837,"Laurence Guillat","Laurence.Guillat@montgomerycountymd.gov"]
[20874,"Laurence Guillat","Laurence.Guillat@montgomerycountymd.gov"]
[20878,"Laurence Guillat","Laurence.Guillat@montgomerycountymd.gov"]
[20898,"Laurence Guillat","Laurence.Guillat@montgomerycountymd.gov"]
[20850,"Laurence Guillat","Laurence.Guillat@montgomerycountymd.gov"]
[20854,"Laurence Guillat","Laurence.Guillat@montgomerycountymd.gov"]
[20852,"Sharon D'Emidio","Sharon.D'Emidio@montgomerycountymd.gov"]
[20814,"Sharon D'Emidio","Sharon.D'Emidio@montgomerycountymd.gov"]
[20892,"Sharon D'Emidio","Sharon.D'Emidio@montgomerycountymd.gov"]
[20889,"Sharon D'Emidio","Sharon.D'Emidio@montgomerycountymd.gov"]
[20894,"Sharon D'Emidio","Sharon.D'Emidio@montgomerycountymd.gov"]
[20815,"Sharon D'Emidio","Sharon.D'Emidio@montgomerycountymd.gov"]
[20817,"Sharon D'Emidio","Sharon.D'Emidio@montgomerycountymd.gov"]
[20818,"Sharon D'Emidio","Sharon.D'Emidio@montgomerycountymd.gov"]
[20812,"Sharon D'Emidio","Sharon.D'Emidio@montgomerycountymd.gov"]
[20815,"Sharon D'Emidio","Sharon.D'Emidio@montgomerycountymd.gov"]
[20816,"Sharon D'Emidio","Sharon.D'Emidio@montgomerycountymd.gov"]
[20906,"Kelsey Johnson","Kelsey.Johnson@montgomerycountymd.gov"]
[20707,"Kelsey Johnson","Kelsey.Johnson@montgomerycountymd.gov"]
[20866,"Kelsey Johnson","Kelsey.Johnson@montgomerycountymd.gov"]
[20904,"Kelsey Johnson","Kelsey.Johnson@montgomerycountymd.gov"]
[20902,"Kelsey Johnson","Kelsey.Johnson@montgomerycountymd.gov"]
[20896,"Kelsey Johnson","Kelsey.Johnson@montgomerycountymd.gov"]
[20895,"Kelsey Johnson","Kelsey.Johnson@montgomerycountymd.gov"]
[20910,"Kelsey Johnson","Kelsey.Johnson@montgomerycountymd.gov"]
[20901,"Kelsey Johnson","Kelsey.Johnson@montgomerycountymd.gov"]
[20993,"Kelsey Johnson","Kelsey.Johnson@montgomerycountymd.gov"]
[20705,"Kelsey Johnson","Kelsey.Johnson@montgomerycountymd.gov"]
[20783,"Kelsey Johnson","Kelsey.Johnson@montgomerycountymd.gov"]
[20903,"Kelsey Johnson","Kelsey.Johnson@montgomerycountymd.gov"]
[20912,"Kelsey Johnson","Kelsey.Johnson@montgomerycountymd.gov"]
[20868,"Kelsey Johnson","Kelsey.Johnson@montgomerycountymd.gov"]
[]
["County","Barbara Fonseca","Barbara.Fonseca@montgomerycountymd.gov"]